{"text_format":"1","workbook":"xlsx","n_sheets":11,"sheets":["Hoofdmenu","Toelichting","NAW_gegevens","Voorblad","Kostenverzamelstaat","Specifieke informatie A","Specifieke informatie C","Contractinformatie","Controleoverzicht","Blad1","Parameters"],"not_rendered":{"charts":0,"images":1,"macros":1,"external_links":0,"defined_names":442,"comments":1,"pivot_tables":0},"unopened":[],"bounds":{"document_bytes":16777216,"sheet_cells":100000,"rows_first":2000,"rows_last":500,"rows_between":2000,"halvings":0,"cell_chars":16384,"cell_head_chars":4096},"cells_cut":0,"cells_raw":0,"read":"whole","date_system":"1900"}

{"sheet":"Hoofdmenu","index":0,"n_rows":3,"n_cols":2,"rows_kept":3,"cut":false,"hidden":false,"merged":[[0,0,0,1],[1,0,1,1]]}
["HOOFDMENU"]
[{"$f":"CONCATENATE(\"JAARSTAAT ZVW \",jaar_id)","v":"JAARSTAAT ZVW 2024"}]
["Navigatie","Afdrukken"]

{"sheet":"Toelichting","index":1,"n_rows":3,"n_cols":2,"rows_kept":3,"cut":false,"hidden":false,"merged":[]}
[]
[]
[null,{"$f":"CONCATENATE(\" JAARSTAAT ZVW \",jaar_id,\" (VERSIE: \",document_id,\")\")","v":" JAARSTAAT ZVW 2024 (VERSIE: JS2024ZVW.C)"}]

{"sheet":"NAW_gegevens","index":2,"n_rows":36,"n_cols":5,"rows_kept":36,"cut":false,"hidden":false,"merged":[[2,0,2,1],[3,0,3,1]]}
[]
[]
["NAW-GEGEVENS"]
[{"$f":"CONCATENATE(\"JAARSTAAT ZVW 2024\")","v":"JAARSTAAT ZVW 2024"}]
[" Selecteer uw nummer:>","0000 KIES UW UZOVI-NUMMER"]
[" Uzovi-nummer:",{"$f":"MID(keuze_uzovi_nummer,1,4)","v":"0000"}]
[" Verzekeraar:",{"$f":"MID(keuze_uzovi_nummer,6,40)","v":"KIES UW UZOVI-NUMMER"}]
[" Plaats:",{"$f":"VLOOKUP(naw_uzovi_zorgverzekeraar,A17:E36,5,FALSE)","v":{"$error":"#N/A"}}]
[" Contactpersoon:"]
[" Telefoonnummer:"]
[" E-mail:"]
[]
[]
["Let op dat u het goede UZOVI-nummer invult, zie onderstaand overzicht:"]
[]
["UZOVI","NAAM",null,null,"PLAATS"]
["0101","N.V. UNIVÉ ZORG",null,null,"ARNHEM"]
["0104","CENTRALE ZORGVERZEKERINGEN NZV N.V.",null,null,"TILBURG"]
["0201","OHRA ZORGVERZEKERINGEN N.V.",null,null,"TILBURG"]
["0403","ASR BASIS ZIEKTEKOSTENVERZEKERINGEN N.V.",null,null,"UTRECHT"]
["0699","IZA ZORGVERZEKERAAR N.V.",null,null,"ARNHEM"]
["0736","N.V. ZORGVERZEKERAAR UMC",null,null,"ARNHEM"]
["3311","ZILVEREN KRUIS ACHMEA ZORGVERZEKERINGEN N.V.",null,null,"UTRECHT"]
["3313","INTERPOLIS ZORGVERZEKERINGEN N.V.",null,null,"UTRECHT"]
[3332,"MENZIS ZORGVERZEKERAAR NV",null,null,"WAGENINGEN"]
[3333,"ANDERZORG NV",null,null,"WAGENINGEN"]
[3343,"ONVZ ZIEKTEKOSTENVERZEKERAAR N.V.",null,null,"HOUTEN"]
[3347,"SALLAND ZORGVERZEKERAAR N.V.",null,null,"DEVENTER"]
[3351,"FBTO ZORGVERZEKERINGEN N.V.",null,null,"LEEUWARDEN"]
[3358,"DE FRIESLAND ZORGVERZEKERAAR N.V.",null,null,"LEEUWARDEN"]
[3359,"EUCARE INSURANCE PCC LTD",null,null,"TA' XBIEX"]
["7029","OWM ZORGVERZEKERAAR 'DSW' U.A.",null,null,"SCHIEDAM"]
["7037","STAD HOLLAND ZORGVERZEKERAAR OWM U.A.",null,null,"SCHIEDAM"]
["7085","OWM ZORGVERZEKERAAR ZORG EN ZEKERHEID U.A.",null,null,"LEIDEN"]
["7095","VGZ ZORGVERZEKERAAR N.V.",null,null,"ARNHEM"]
["7119","CZ ZORGVERZEKERINGEN N.V.",null,null,"TILBURG"]

{"sheet":"Voorblad","index":3,"n_rows":33,"n_cols":4,"rows_kept":33,"cut":false,"hidden":false,"merged":[[13,3,14,11],[15,3,16,11],[19,3,20,11],[21,3,22,11]]}
[null,null,"VOORBLAD"]
[]
[]
[]
[]
["Pagina 1"]
[]
[]
[]
[]
[]
[]
[]
[]
[]
[null,null,null,{"$f":"CONCATENATE(\"JAARSTAAT ZVW \",jaar_id)","v":"JAARSTAAT ZVW 2024"}]
[]
[]
[]
[null,null,null,"SPECIFIEKE INFORMATIE"]
[]
[]
[]
[null,null,null,"  SPECIFIEKE INFORMATIE A (met accountantsverklaring)"]
[null,null,null,"     ● Kostenverzamelstaat (pagina 1 t/m 3)"]
[null,null,null,"     ● Specificatie informatie A (pagina 1 t/m 3)"]
[]
[null,null,null,"  SPECIFIEKE INFORMATIE C (beleidsinformatie zonder accountantsverklaring)"]
[null,null,null,"     ● Specificaties van kosten en productie (pagina 1 t/m 3)"]
[]
[null,null,null,"  CONTRACTINFORMATIE (pagina 1 t/m 2)"]
[]
[null,null,null,"  CONTROLEOVERZICHT (pagina 1 t/m 6)"]

{"sheet":"Kostenverzamelstaat","index":4,"n_rows":147,"n_cols":17,"rows_kept":147,"cut":false,"hidden":false,"merged":[[139,12,140,12],[129,3,130,11],[10,12,11,12],[12,12,13,12],[129,13,130,13],[129,12,130,12],[10,13,11,13],[12,13,13,13],[94,12,95,12],[96,12,97,12],[87,3,87,4],[69,3,69,6],[70,3,70,6],[61,3,61,6],[73,3,73,6],[75,3,75,6],[79,3,79,6],[71,3,71,6],[72,3,72,6],[142,3,142,6],[146,3,146,4],[139,9,140,9],[139,10,140,10],[139,11,140,11],[139,3,140,6],[139,7,140,7],[139,8,140,8],[139,13,140,13],[141,3,141,6],[94,3,97,6],[94,8,95,9],[94,10,95,11],[94,13,95,13],[96,7,97,7],[96,8,97,8],[96,9,97,9],[96,10,97,10],[96,11,97,11],[96,13,97,13],[100,3,100,6],[101,3,101,6],[104,3,104,7],[99,3,99,6],[42,9,42,13],[49,10,50,11],[49,13,50,13],[51,7,52,7],[51,8,52,8],[51,9,52,9],[51,10,52,10],[51,11,52,11],[51,13,52,13],[49,12,50,12],[51,12,52,12],[19,3,19,6],[42,3,42,4],[41,3,41,4],[20,3,20,6],[21,3,21,6],[22,3,22,6],[10,3,13,6],[10,8,11,9],[10,10,11,11],[12,7,13,7],[12,8,13,8],[12,9,13,9],[12,10,13,10],[12,11,13,11],[49,3,52,6],[57,3,57,6],[134,3,135,11],[134,12,135,12],[134,13,135,13],[59,3,59,6],[60,3,60,6],[49,8,50,9],[80,3,80,6],[81,3,81,6],[82,3,82,6],[87,9,87,13],[62,3,62,6],[63,3,63,6],[67,3,67,6],[68,3,68,6]]}
[null,null,"INVULSPECIFICATIES SPECIFIEKE INFORMATIE A"]
[]
[]
[]
[]
["Pagina 1",null,null,{"$f":"CONCATENATE(\"JAARSTAAT ZVW \", jaar_id)","v":"JAARSTAAT ZVW 2024"}]
[null,null,null,"SPECIFIEKE INFORMATIE A: KOSTENVERZAMELSTAAT"]
[null,null,null,{"$f":"IF(naw_uzovi_zorgverzekeraar<>\"0000\",CONCATENATE(UPPER(naw_naam_zorgverzekeraar),\", \",UPPER(naw_plaats_zorgverzekeraar)),\"\")","v":""},null,null,null,null,null,null,null,null,null,{"$f":"CONCATENATE(\"UZOVI: \",naw_uzovi_zorgverzekeraar)","v":"UZOVI: 0000"}]
[null,null,null,"SPECIFICATIES INFORMATIE RISICOVEREVENING"]
[null,null,null,{"$f":"$D$7","v":"SPECIFIEKE INFORMATIE A: KOSTENVERZAMELSTAAT"}]
[null,null,null," KOSTENRUBRIEK",null,null,null,null,{"$f":"CONCATENATE(\"LASTEN \",jaar_id)","v":"LASTEN 2024"},null,{"$f":"CONCATENATE(\"LASTEN \",jaar_id-1)","v":"LASTEN 2023"},null,{"$f":"CONCATENATE(\"LASTEN \",jaar_id-2)","v":"LASTEN 2022"},"LASTEN uit eerdere jaren"]
[]
[null,null,null,null,null,null,null,"Code",{"$f":"CONCATENATE(\"LASTEN \",jaar_id,\" inclusief balanspost \")","v":"LASTEN 2024 inclusief balanspost "},{"$f":"CONCATENATE(\"Ontvangen en geaccepteerde declaraties m.b.t. \",jaar_id)","v":"Ontvangen en geaccepteerde declaraties m.b.t. 2024"},{"$f":"CONCATENATE(\"LASTEN \",jaar_id-1,\" inclusief balanspost \")","v":"LASTEN 2023 inclusief balanspost "},{"$f":"CONCATENATE(\"Ontvangen en geaccepteerde declaraties m.b.t. \",jaar_id-1)","v":"Ontvangen en geaccepteerde declaraties m.b.t. 2023"},{"$f":"CONCATENATE(\"Ontvangen en geaccepteerde declaraties m.b.t. \",jaar_id-2)","v":"Ontvangen en geaccepteerde declaraties m.b.t. 2022"},"In 2024 ontvangen en geaccepteerde declaraties m.b.t. 2021 en ouder"]
[null,null,null,null,null,null,null,null,null,"Ontvangen en geaccepteerde declaraties mbt jaar T",null,"Ontvangen en geaccepteerde declaraties mbt jaar T","Ontvangen en geaccepteerde declaraties mbt jaar T","Ontvangen en geaccepteerde declaraties mbt jaar T-1"]
[null,null,null," 01  HUISARTSENZORG en MDZ"]
[null,null,null," Bijzondere betalingen",null,null,null,"503   ",null,null,null,null,null,null,null,null,{"$f":"IF(OR((I16-J16)/IF(I16=0,1,I16)<-10%,(K16-L16)/IF(K16=0,1,K16)<-10%,(N16-O16)/IF(N16=0,1,N16)<-10%),\"De balans is < -10%, als dit plausibel is dan vragen wij u dit nader toe te lichten bij de opmerkingen, zo niet dan dient u uw raming aan te scherpen.\",\"\")","v":""}]
[null,null,null," Avond-, nacht- en weekenddiensten",null,null,null,"504   ",null,null,null,null,null,null,null,null,""]
[null,null,null," Inschrijftarieven",null,null,null,"505   ",null,null,null,null,null,null,null,null,""]
[null,null,null," Consulttarieven",null,null,null,"506   ",null,null,null,null,null,null,null,null,""]
[null,null,null," Overige tarieven",null,null,null,"507   ",null,null,null,null,null,null,null,null,""]
[null,null,null," Multidisciplinaire zorg",null,null,null,"510   ",null,null,null,null,null,null,null,null,""]
[null,null,null," Resultaatbeloning en zorgvernieuwing huisartsen",null,null,null,"515   ",null,null,null,null,null,null,null,null,""]
[null,null,null," Resultaatbeloning en zorgvernieuwing MDZ",null,null,null,"516   ",null,null,null,null,null,null,null,null,""]
[null,null,null," TOTAAL RUBRIEK 01",null,null,null,null,{"$f":"SUM(I16:I23)","v":0},{"$f":"SUM(J16:J23)","v":0},{"$f":"SUM(K16:K23)","v":0},{"$f":"SUM(L16:L23)","v":0},{"$f":"SUM(M16:M23)","v":0},{"$f":"SUM(N16:N23)","v":0}]
[null,null,null," 02 FARMACEUTISCHE ZORG"]
[null,null,null," Farmaceutische zorg",null,null,null,"520   ",null,null,null,null,null,null,null,null,{"$f":"IF(OR((I26-J26)/IF(I26=0,1,I26)<-10%,(K26-L26)/IF(K26=0,1,K26)<-10%,(N26-O26)/IF(N26=0,1,N26)<-10%),\"De balans is < -10%, als dit plausibel is dan vragen wij u dit nader toe te lichten bij de opmerkingen, zo niet dan dient u uw raming aan te scherpen.\",\"\")","v":""}]
[null,null,null," TOTAAL RUBRIEK 02",null,null,null,null,{"$f":"SUM(I26:I26)","v":0},{"$f":"SUM(J26:J26)","v":0},{"$f":"SUM(K26:K26)","v":0},{"$f":"SUM(L26:L26)","v":0},{"$f":"SUM(M26:M26)","v":0},{"$f":"SUM(N26:N26)","v":0},null,null,{"$f":"IF(OR((I27-J27)/IF(I27=0,1,I27)<-10%,(K27-L27)/IF(K27=0,1,K27)<-10%,(N27-O27)/IF(N27=0,1,N27)<-10%),\"De balans is < -10%, als dit plausibel is dan vragen wij u dit nader toe te lichten bij de opmerkingen, zo niet dan dient u uw raming aan te scherpen.\",\"\")","v":""}]
[null,null,null," 03 VERPLEGING EN VERZORGING"]
[null,null,null," Kosten van verpleging en verzorging ",null,null,null,"530   ",null,null,null,null,null,null,null,null,{"$f":"IF(OR((I29-J29)/IF(I29=0,1,I29)<-10%,(K29-L29)/IF(K29=0,1,K29)<-10%,(N29-O29)/IF(N29=0,1,N29)<-10%),\"De balans is < -10%, als dit plausibel is dan vragen wij u dit nader toe te lichten bij de opmerkingen, zo niet dan dient u uw raming aan te scherpen.\",\"\")","v":""}]
[null,null,null," Meerkosten COVID-19, indirect",null,null,null,"803.1 ",null,null,null,null,null,null,null,null,{"$f":"IF(OR((I30-J30)/IF(I30=0,1,I30)<-10%,(K30-L30)/IF(K30=0,1,K30)<-10%,(N30-O30)/IF(N30=0,1,N30)<-10%),\"De balans is < -10%, als dit plausibel is dan vragen wij u dit nader toe te lichten bij de opmerkingen, zo niet dan dient u uw raming aan te scherpen.\",\"\")","v":""}]
[null,null,null," TOTAAL RUBRIEK 03",null,null,null,null,{"$f":"SUM(I29:I30)","v":0},{"$f":"SUM(J29:J30)","v":0},{"$f":"SUM(K29:K30)","v":0},{"$f":"SUM(L29:L30)","v":0},{"$f":"SUM(M29:M30)","v":0},{"$f":"SUM(N29:N30)","v":0},null,null,{"$f":"IF(OR((I31-J31)/IF(I31=0,1,I31)<-10%,(K31-L31)/IF(K31=0,1,K31)<-10%,(N31-O31)/IF(N31=0,1,N31)<-10%),\"De balans is < -10%, als dit plausibel is dan vragen wij u dit nader toe te lichten bij de opmerkingen, zo niet dan dient u uw raming aan te scherpen.\",\"\")","v":""}]
[null,null,null," 04  MONDZORG"]
[null,null,null," Kosten mondzorg volwassen verzekerden",null,null,null,"560.1",null,null,null,null,null,null,null,null,{"$f":"IF(OR((I33-J33)/IF(I33=0,1,I33)<-10%,(K33-L33)/IF(K33=0,1,K33)<-10%,(N33-O33)/IF(N33=0,1,N33)<-10%),\"De balans is < -10%, als dit plausibel is dan vragen wij u dit nader toe te lichten bij de opmerkingen, zo niet dan dient u uw raming aan te scherpen.\",\"\")","v":""}]
[null,null,null," Kosten mondzorg jeugdige verzekerden",null,null,null,"560.2",null,null,null,null,null,null,null,null,{"$f":"IF(OR((I34-J34)/IF(I34=0,1,I34)<-10%,(K34-L34)/IF(K34=0,1,K34)<-10%,(N34-O34)/IF(N34=0,1,N34)<-10%),\"De balans is < -10%, als dit plausibel is dan vragen wij u dit nader toe te lichten bij de opmerkingen, zo niet dan dient u uw raming aan te scherpen.\",\"\")","v":""}]
[null,null,null," Kosten gebitsprothesen",null,null,null,"561   ",null,null,null,null,null,null,null,null,{"$f":"IF(OR((I35-J35)/IF(I35=0,1,I35)<-10%,(K35-L35)/IF(K35=0,1,K35)<-10%,(N35-O35)/IF(N35=0,1,N35)<-10%),\"De balans is < -10%, als dit plausibel is dan vragen wij u dit nader toe te lichten bij de opmerkingen, zo niet dan dient u uw raming aan te scherpen.\",\"\")","v":""}]
[null,null,null," TOTAAL RUBRIEK 04",null,null,null,null,{"$f":"SUM(I33:I35)","v":0},{"$f":"SUM(J33:J35)","v":0},{"$f":"SUM(K33:K35)","v":0},{"$f":"SUM(L33:L35)","v":0},{"$f":"SUM(M33:M35)","v":0},{"$f":"SUM(N33:N35)","v":0}]
[null,null,null," 05  VERLOSKUNDIGE ZORG"]
[null,null,null," Kosten verloskundige zorg door verloskundigen",null,null,null,"580   ",null,null,null,null,null,null,null,null,{"$f":"IF(OR((I38-J38)/IF(I38=0,1,I38)<-10%,(K38-L38)/IF(K38=0,1,K38)<-10%,(N38-O38)/IF(N38=0,1,N38)<-10%),\"De balans is < -10%, als dit plausibel is dan vragen wij u dit nader toe te lichten bij de opmerkingen, zo niet dan dient u uw raming aan te scherpen.\",\"\")","v":""}]
[null,null,null," Kosten Integrale geboortezorg ",null,null,null,"582   ",null,null,null,null,null,null,null,null,{"$f":"IF(OR((I39-J39)/IF(I39=0,1,I39)<-10%,(K39-L39)/IF(K39=0,1,K39)<-10%,(N39-O39)/IF(N39=0,1,N39)<-10%),\"De balans is < -10%, als dit plausibel is dan vragen wij u dit nader toe te lichten bij de opmerkingen, zo niet dan dient u uw raming aan te scherpen.\",\"\")","v":""}]
[null,null,null," TOTAAL RUBRIEK 05",null,null,null,null,{"$f":"SUM(I38:I39)","v":0},{"$f":"SUM(J38:J39)","v":0},{"$f":"SUM(K38:K39)","v":0},{"$f":"SUM(L38:L39)","v":0},{"$f":"SUM(M38:M39)","v":0},{"$f":"SUM(N38:N39)","v":0}]
[]
[]
[null,null,null,{"$f":"NOW()","v":"2025-03-06T09:47:57.760"},null,null,null,null,null,{"$f":"CONCATENATE(\"Specifieke informatie A: kostenverzamelstaat \",\"2024\",\", \",LOWER(A6))","v":"Specifieke informatie A: kostenverzamelstaat 2024, pagina 1"}]
[]
["Pagina 2",null,null,{"$f":"CONCATENATE(\"JAARSTAAT ZVW \", jaar_id)","v":"JAARSTAAT ZVW 2024"}]
[null,null,null,{"$f":"$D$7","v":"SPECIFIEKE INFORMATIE A: KOSTENVERZAMELSTAAT"}]
[null,null,null,{"$f":"IF(naw_uzovi_zorgverzekeraar<>\"0000\",CONCATENATE(UPPER(naw_naam_zorgverzekeraar),\", \",UPPER(naw_plaats_zorgverzekeraar)),\"\")","v":""},null,null,null,null,null,null,null,null,null,{"$f":"CONCATENATE(\"UZOVI: \",naw_uzovi_zorgverzekeraar)","v":"UZOVI: 0000"}]
[null,null,null,"SPECIFICATIES INFORMATIE RISICOVEREVENING"]
[null,null,null,"SPECIFIEKE INFORMATIE A: KOSTENVERZAMELSTAAT - vervolg"]
[null,null,null," KOSTENRUBRIEK",null,null,null,null,{"$f":"I11","v":"LASTEN 2024"},null,{"$f":"K11","v":"LASTEN 2023"},null,{"$f":"M11","v":"LASTEN 2022"},{"$f":"N11","v":"LASTEN uit eerdere jaren"}]
[]
[null,null,null,null,null,null,null,"Code",{"$f":"I$13","v":"LASTEN 2024 inclusief balanspost "},{"$f":"J$13","v":"Ontvangen en geaccepteerde declaraties m.b.t. 2024"},"LASTEN 2023 inclusief balanspost ","Ontvangen en geaccepteerde declaraties m.b.t. 2023","Ontvangen en geaccepteerde declaraties m.b.t. 2022","In 2024 ontvangen en geaccepteerde declaraties m.b.t. 2021 en ouder"]
[]
[null,null,null," 06  MEDISCH SPECIALISTISCHE ZORG"]
[null,null,null," Kosten specialisten mondziekten en kaakchirurgie",null,null,null,"545   ",null,null,null,null,null,null,null,null,{"$f":"IF(OR((I55-J55)/IF(I55=0,1,I55)<-10%,(K55-L55)/IF(K55=0,1,K55)<-10%,(N55-O55)/IF(N55=0,1,N55)<-10%),\"De balans is < -10%, als dit plausibel is dan vragen wij u dit nader toe te lichten bij de opmerkingen, zo niet dan dient u uw raming aan te scherpen.\",\"\")","v":""}]
[null,null,null," Overige kosten ziekenhuiszorg en curatieve zorg",null,null,null,"610   ",null,null,null,null,null,null,null,null,{"$f":"IF(OR((I56-J56)/IF(I56=0,1,I56)<-10%,(K56-L56)/IF(K56=0,1,K56)<-10%,(N56-O56)/IF(N56=0,1,N56)<-10%),\"De balans is < -10%, als dit plausibel is dan vragen wij u dit nader toe te lichten bij de opmerkingen, zo niet dan dient u uw raming aan te scherpen.\",\"\")","v":""}]
[null,null,null," NTS",null,null,null,"610.1"]
[null,null,null,"Eerstelijnsdiagnostiek aangevraagd door eerstelijnszorg-aanbieders geleverd door huisartsenlaboratoria en Trombosediensten",null,null,null,"610.2"]
[null,null,null," Overige zorgproducten ",null,null,null,"611   ",null,null,null,null,null,null,null,null,{"$f":"IF(OR((I59-J59)/IF(I59=0,1,I59)<-10%,(K59-L59)/IF(K59=0,1,K59)<-10%,(N59-O59)/IF(N59=0,1,N59)<-10%),\"De balans is < -10%, als dit plausibel is dan vragen wij u dit nader toe te lichten bij de opmerkingen, zo niet dan dient u uw raming aan te scherpen.\",\"\")","v":""}]
[null,null,null," Kosten add-ons - Dure geneesmiddelen",null,null,null,"  612.1   ",null,null,null,null,null,null,null,null,""]
[null,null,null," Kosten add-ons - IC",null,null,null,"  612.2   ",null,null,null,null,null,null,null,null,""]
[null,null,null," Integrale kosten DBC-zorgproduct gereguleerde segment ",null,null,null,"613.1",null,null,null,null,null,null,null,null,""]
[null,null,null," Integrale kosten DBC-zorgproduct vrije segment ",null,null,null,"615.1",null,null,null,null,null,null,null,null,""]
[null,null,null," Integrale kosten extramuraal werkende \n specialisten",null,null,null,"619   ",null,null,null,null,null,null,null,null,""]
[null,null,null," Meerkosten COVID-19, indirect",null,null,null,"806.1 ",null,null,null,null,null,null,null,null,""]
[null,null,null," Meerkosten COVID-19, toeslagen",null,null,null,"806.2 ",null,null,null,null,null,null,null,null,""]
[null,null,null," TOTAAL RUBRIEK 06",null,null,null,null,{"$f":"SUM(I55:I66)","v":0},{"$f":"SUM(J55:J66)","v":0},{"$f":"SUM(K55:K66)","v":0},{"$f":"SUM(L55:L66)","v":0},{"$f":"SUM(M55:M66)","v":0},{"$f":"SUM(N55:N66)","v":0}]
[null,null,null," 07  PARAMEDISCHE ZORG"]
[null,null,null," Kosten fysiotherapie",null,null,null,"620   ",null,null,null,null,null,null,null,null,{"$f":"IF(OR((I69-J69)/IF(I69=0,1,I69)<-10%,(K69-L69)/IF(K69=0,1,K69)<-10%,(N69-O69)/IF(N69=0,1,N69)<-10%),\"De balans is < -10%, als dit plausibel is dan vragen wij u dit nader toe te lichten bij de opmerkingen, zo niet dan dient u uw raming aan te scherpen.\",\"\")","v":""}]
[null,null,null," Kosten oefentherapie Mensendieck/Cesar",null,null,null,"621   ",null,null,null,null,null,null,null,null,""]
[null,null,null," Kosten logopedie",null,null,null,"623   ",null,null,null,null,null,null,null,null,""]
[null,null,null," Kosten ergotherapie",null,null,null,"624   ",null,null,null,null,null,null,null,null,""]
[null,null,null," Kosten dieetadvisering",null,null,null,"625   ",null,null,null,null,null,null,null,null,""]
[null,null,null," Gecombineerde Leefstijl Interventie (GLI)",null,null,null,"626   ",null,null,null,null,null,null,null,null,""]
[null,null,null," TOTAAL RUBRIEK 07",null,null,null,null,{"$f":"SUM(I69:I74)","v":0},{"$f":"SUM(J69:J74)","v":0},{"$f":"SUM(K69:K74)","v":0},{"$f":"SUM(L69:L74)","v":0},{"$f":"SUM(M69:M74)","v":0},{"$f":"SUM(N69:N74)","v":0}]
[null,null,null," 08  HULPMIDDELENZORG"]
[null,null,null," Hulpmiddelenzorg ",null,null,null,"640   ",null,null,null,null,null,null,null,null,{"$f":"IF(OR((I77-J77)/IF(I77=0,1,I77)<-10%,(K77-L77)/IF(K77=0,1,K77)<-10%,(N77-O77)/IF(N77=0,1,N77)<-10%),\"De balans is < -10%, als dit plausibel is dan vragen wij u dit nader toe te lichten bij de opmerkingen, zo niet dan dient u uw raming aan te scherpen.\",\"\")","v":""}]
[null,null,null," Meerkosten COVID-19, indirect",null,null,null,"808.1 ",null,null,null,null,null,null,null,null,{"$f":"IF(OR((I78-J78)/IF(I78=0,1,I78)<-10%,(K78-L78)/IF(K78=0,1,K78)<-10%,(N78-O78)/IF(N78=0,1,N78)<-10%),\"De balans is < -10%, als dit plausibel is dan vragen wij u dit nader toe te lichten bij de opmerkingen, zo niet dan dient u uw raming aan te scherpen.\",\"\")","v":""}]
[null,null,null," TOTAAL RUBRIEK 08",null,null,null,null,{"$f":"SUM(I77:I78)","v":0},{"$f":"SUM(J77:J78)","v":0},{"$f":"SUM(K77:K78)","v":0},{"$f":"SUM(L77:L78)","v":0},{"$f":"SUM(M77:M78)","v":0},{"$f":"SUM(N77:N78)","v":0},null,null,{"$f":"IF(OR((I79-J79)/IF(I79=0,1,I79)<-10%,(K79-L79)/IF(K79=0,1,K79)<-10%,(N79-O79)/IF(N79=0,1,N79)<-10%),\"De balans is < -10%, als dit plausibel is dan vragen wij u dit nader toe te lichten bij de opmerkingen, zo niet dan dient u uw raming aan te scherpen.\",\"\")","v":""}]
[null,null,null," 09  ZIEKENVERVOER"]
[null,null,null," Kosten vervoer per ambulance/helikopter",null,null,null,"650   ",null,null,null,null,null,null,null,null,{"$f":"IF(OR((I81-J81)/IF(I81=0,1,I81)<-10%,(K81-L81)/IF(K81=0,1,K81)<-10%,(N81-O81)/IF(N81=0,1,N81)<-10%),\"De balans is < -10%, als dit plausibel is dan vragen wij u dit nader toe te lichten bij de opmerkingen, zo niet dan dient u uw raming aan te scherpen.\",\"\")","v":""}]
[null,null,null," Opbrengstenverrekeningen regionale ambulancevoorzieningen ",null,null,null,"650.1",null,null,null,null,null,null,null,null,{"$f":"IF(OR((I82-J82)/IF(I82=0,1,I82)<-10%,(K82-L82)/IF(K82=0,1,K82)<-10%,(N82-O82)/IF(N82=0,1,N82)<-10%),\"De balans is < -10%, als dit plausibel is dan vragen wij u dit nader toe te lichten bij de opmerkingen, zo niet dan dient u uw raming aan te scherpen.\",\"\")","v":""}]
[null,null,null," Kosten vervoer per openbaar vervoer, taxi \n en eigen auto",null,null,null,"651   ",null,null,null,null,null,null,null,null,{"$f":"IF(OR((I83-J83)/IF(I83=0,1,I83)<-10%,(K83-L83)/IF(K83=0,1,K83)<-10%,(N83-O83)/IF(N83=0,1,N83)<-10%),\"De balans is < -10%, als dit plausibel is dan vragen wij u dit nader toe te lichten bij de opmerkingen, zo niet dan dient u uw raming aan te scherpen.\",\"\")","v":""}]
[null,null,null," Meerkosten COVID-19, indirect",null,null,null,"809.1 ",null,null,null,null,null,null,null,null,{"$f":"IF(OR((I84-J84)/IF(I84=0,1,I84)<-10%,(K84-L84)/IF(K84=0,1,K84)<-10%,(N84-O84)/IF(N84=0,1,N84)<-10%),\"De balans is < -10%, als dit plausibel is dan vragen wij u dit nader toe te lichten bij de opmerkingen, zo niet dan dient u uw raming aan te scherpen.\",\"\")","v":""}]
[null,null,null," TOTAAL RUBRIEK 09",null,null,null,null,{"$f":"SUM(I81:I84)","v":0},{"$f":"SUM(J81:J84)","v":0},{"$f":"SUM(K81:K84)","v":0},{"$f":"SUM(L81:L84)","v":0},{"$f":"SUM(M81:M84)","v":0},{"$f":"SUM(N81:N84)","v":0}]
[]
[]
[null,null,null,{"$f":"NOW()","v":"2025-03-06T09:47:57.760"},null,null,null,null,null,{"$f":"CONCATENATE(\"Specifieke informatie A: kostenverzamelstaat \",\"2024\",\", \",LOWER(A45))","v":"Specifieke informatie A: kostenverzamelstaat 2024, pagina 2"}]
[]
["Pagina 3",null,null,{"$f":"CONCATENATE(\"JAARSTAAT ZVW \", jaar_id)","v":"JAARSTAAT ZVW 2024"}]
[null,null,null,{"$f":"D7","v":"SPECIFIEKE INFORMATIE A: KOSTENVERZAMELSTAAT"}]
[null,null,null,{"$f":"IF(naw_uzovi_zorgverzekeraar<>\"0000\",CONCATENATE(UPPER(naw_naam_zorgverzekeraar),\", \",UPPER(naw_plaats_zorgverzekeraar)),\"\")","v":""},null,null,null,null,null,null,null,null,null,{"$f":"CONCATENATE(\"UZOVI: \",naw_uzovi_zorgverzekeraar)","v":"UZOVI: 0000"}]
[null,null,null,"SPECIFICATIES INFORMATIE RISICOVEREVENING"]
[null,null,null,{"$f":"D49","v":"SPECIFIEKE INFORMATIE A: KOSTENVERZAMELSTAAT - vervolg"}]
[null,null,null," KOSTENRUBRIEK",null,null,null,null,{"$f":"I11","v":"LASTEN 2024"},null,{"$f":"K11","v":"LASTEN 2023"},null,{"$f":"M11","v":"LASTEN 2022"},{"$f":"N11","v":"LASTEN uit eerdere jaren"}]
[]
[null,null,null,null,null,null,null,"Code",{"$f":"I$13","v":"LASTEN 2024 inclusief balanspost "},{"$f":"J$13","v":"Ontvangen en geaccepteerde declaraties m.b.t. 2024"},"LASTEN 2023 inclusief balanspost ","Ontvangen en geaccepteerde declaraties m.b.t. 2023","Ontvangen en geaccepteerde declaraties m.b.t. 2022","In 2024 ontvangen en geaccepteerde declaraties m.b.t. 2021 en ouder"]
[]
[null,null,null," 10 GENEESKUNDIGE GEESTELIJKE GEZONDHEIDSZORG  \n     "]
[null,null,null," Kosten consulten GGZ",null,null,null,"    666   ",null,null,null,null,null,null,null,null,{"$f":"IF(OR((I100-J100)/IF(I100=0,1,I100)<-10%,(K100-L100)/IF(K100=0,1,K100)<-10%,(N100-O100)/IF(N100=0,1,N100)<-10%),\"De balans is < -10%, als dit plausibel is dan vragen wij u dit nader toe te lichten bij de opmerkingen, zo niet dan dient u uw raming aan te scherpen.\",\"\")","v":""}]
[null,null,null," Kosten intramuraal verblijf GGZ",null,null,null,"    667   ",null,null,null,null,null,null,null,null,{"$f":"IF(OR((I101-J101)/IF(I101=0,1,I101)<-10%,(K101-L101)/IF(K101=0,1,K101)<-10%,(N101-O101)/IF(N101=0,1,N101)<-10%),\"De balans is < -10%, als dit plausibel is dan vragen wij u dit nader toe te lichten bij de opmerkingen, zo niet dan dient u uw raming aan te scherpen.\",\"\")","v":""}]
[null,null,null," Kosten overige prestaties GGZ",null,null,null,"    668   ",null,null,null,null,null,null,null,null,{"$f":"IF(OR((I102-J102)/IF(I102=0,1,I102)<-10%,(K102-L102)/IF(K102=0,1,K102)<-10%,(N102-O102)/IF(N102=0,1,N102)<-10%),\"De balans is < -10%, als dit plausibel is dan vragen wij u dit nader toe te lichten bij de opmerkingen, zo niet dan dient u uw raming aan te scherpen.\",\"\")","v":""}]
[null,null,null," Meerkosten COVID-19, indirect",null,null,null,"810.1 ",null,null,null,null,null,null,null,null,{"$f":"IF(OR((I103-J103)/IF(I103=0,1,I103)<-10%,(K103-L103)/IF(K103=0,1,K103)<-10%,(N103-O103)/IF(N103=0,1,N103)<-10%),\"De balans is < -10%, als dit plausibel is dan vragen wij u dit nader toe te lichten bij de opmerkingen, zo niet dan dient u uw raming aan te scherpen.\",\"\")","v":""}]
[null,null,null," TOTAAL RUBRIEK 10",null,null,null,null,{"$f":"SUM(I100:I103)","v":0},{"$f":"SUM(J100:J103)","v":0},{"$f":"SUM(K100:K103)","v":0},{"$f":"SUM(L100:L103)","v":0},{"$f":"SUM(M100:M103)","v":0},{"$f":"SUM(N100:N103)","v":0}]
[null,null,null," 11 GRZ, ELV EN GZSP"]
[null,null,null," Geriatrische Revalidatie ",null,null,null,"670   ",null,null,null,null,null,null,null,null,{"$f":"IF(OR((I106-J106)/IF(I106=0,1,I106)<-10%,(K106-L106)/IF(K106=0,1,K106)<-10%,(N106-O106)/IF(N106=0,1,N106)<-10%),\"De balans is < -10%, als dit plausibel is dan vragen wij u dit nader toe te lichten bij de opmerkingen, zo niet dan dient u uw raming aan te scherpen.\",\"\")","v":""}]
[null,null,null," Meerkosten COVID-19, indirect GRZ",null,null,null,"811.1.1",null,null,null,null,null,null,null,null,{"$f":"IF(OR((I107-J107)/IF(I107=0,1,I107)<-10%,(K107-L107)/IF(K107=0,1,K107)<-10%,(N107-O107)/IF(N107=0,1,N107)<-10%),\"De balans is < -10%, als dit plausibel is dan vragen wij u dit nader toe te lichten bij de opmerkingen, zo niet dan dient u uw raming aan te scherpen.\",\"\")","v":""}]
[null,null,null," Eerstelijnsverblijf ",null,null,null,"671   ",null,null,null,null,null,null,null,null,{"$f":"IF(OR((I108-J108)/IF(I108=0,1,I108)<-10%,(K108-L108)/IF(K108=0,1,K108)<-10%,(N108-O108)/IF(N108=0,1,N108)<-10%),\"De balans is < -10%, als dit plausibel is dan vragen wij u dit nader toe te lichten bij de opmerkingen, zo niet dan dient u uw raming aan te scherpen.\",\"\")","v":""}]
[null,null,null," Meerkosten COVID-19, indirect ELV",null,null,null,"811.2.1",null,null,null,null,null,null,null,null,{"$f":"IF(OR((I109-J109)/IF(I109=0,1,I109)<-10%,(K109-L109)/IF(K109=0,1,K109)<-10%,(N109-O109)/IF(N109=0,1,N109)<-10%),\"De balans is < -10%, als dit plausibel is dan vragen wij u dit nader toe te lichten bij de opmerkingen, zo niet dan dient u uw raming aan te scherpen.\",\"\")","v":""}]
[null,null,null," Generalistische Geneeskundige Zorg Specifieke Patiëntgroepen",null,null,null,"672   ",null,null,null,null,null,null,null,null,{"$f":"IF(OR((I110-J110)/IF(I110=0,1,I110)<-10%,(K110-L110)/IF(K110=0,1,K110)<-10%,(N110-O110)/IF(N110=0,1,N110)<-10%),\"De balans is < -10%, als dit plausibel is dan vragen wij u dit nader toe te lichten bij de opmerkingen, zo niet dan dient u uw raming aan te scherpen.\",\"\")","v":""}]
[null,null,null," TOTAAL RUBRIEK 11",null,null,null,null,{"$f":"SUM(I106:I110)","v":0},{"$f":"SUM(J106:J110)","v":0},{"$f":"SUM(K106:K110)","v":0},{"$f":"SUM(L106:L110)","v":0},{"$f":"SUM(M106:M110)","v":0},{"$f":"SUM(N106:N110)","v":0}]
[null,null,null," 12  KRAAMZORG"]
[null,null,null," Kraamzorg",null,null,null,"680   ",null,null,null,null,null,null,null,null,{"$f":"IF(OR((I113-J113)/IF(I113=0,1,I113)<-10%,(K113-L113)/IF(K113=0,1,K113)<-10%,(N113-O113)/IF(N113=0,1,N113)<-10%),\"De balans is < -10%, als dit plausibel is dan vragen wij u dit nader toe te lichten bij de opmerkingen, zo niet dan dient u uw raming aan te scherpen.\",\"\")","v":""}]
[null,null,null," TOTAAL RUBRIEK 12",null,null,null,null,{"$f":"SUM(I113:I113)","v":0},0,0,0,0,0,null,null,{"$f":"IF(OR((I114-J114)/IF(I114=0,1,I114)<-10%,(K114-L114)/IF(K114=0,1,K114)<-10%,(N114-O114)/IF(N114=0,1,N114)<-10%),\"De balans is < -10%, als dit plausibel is dan vragen wij u dit nader toe te lichten bij de opmerkingen, zo niet dan dient u uw raming aan te scherpen.\",\"\")","v":""}]
[null,null,null," 13  DIVERSE OVERIGE KOSTEN"]
[null,null,null," Overige kosten",null,null,null,"700   ",null,null,null,null,null,null,null,null,{"$f":"IF(OR((I116-J116)/IF(I116=0,1,I116)<-10%,(K116-L116)/IF(K116=0,1,K116)<-10%,(N116-O116)/IF(N116=0,1,N116)<-10%),\"De balans is < -10%, als dit plausibel is dan vragen wij u dit nader toe te lichten bij de opmerkingen, zo niet dan dient u uw raming aan te scherpen.\",\"\")","v":""}]
[null,null,null," Overige geneeskundige zorg",null,null,null,"701   ",null,null,null,null,null,null,null,null,{"$f":"IF(OR((I117-J117)/IF(I117=0,1,I117)<-10%,(K117-L117)/IF(K117=0,1,K117)<-10%,(N117-O117)/IF(N117=0,1,N117)<-10%),\"De balans is < -10%, als dit plausibel is dan vragen wij u dit nader toe te lichten bij de opmerkingen, zo niet dan dient u uw raming aan te scherpen.\",\"\")","v":""}]
[null,null,null," Kosten van zorg zintuiglijk gehandicapten",null,null,null,"702   ",null,null,null,null,null,null,null,null,{"$f":"IF(OR((I118-J118)/IF(I118=0,1,I118)<-10%,(K118-L118)/IF(K118=0,1,K118)<-10%,(N118-O118)/IF(N118=0,1,N118)<-10%),\"De balans is < -10%, als dit plausibel is dan vragen wij u dit nader toe te lichten bij de opmerkingen, zo niet dan dient u uw raming aan te scherpen.\",\"\")","v":""}]
[null,null,null," Transformatiemiddelen IZA",null,null,null,"703   "]
[null,null,null," TOTAAL RUBRIEK 13",null,null,null,null,{"$f":"SUM(I116:I119)","v":0},0,0,0,0,0]
[null,null,null," 15  GRENSOVERSCHRIJDENDE ZORG"]
[null,null,null," Kosten via verzekeraar",null,null,null,"720   ",null,null,null,null,null,null,null,null,{"$f":"IF(OR((I122-J122)/IF(I122=0,1,I122)<-10%,(K122-L122)/IF(K122=0,1,K122)<-10%,(N122-O122)/IF(N122=0,1,N122)<-10%),\"De balans is < -10%, als dit plausibel is dan vragen wij u dit nader toe te lichten bij de opmerkingen, zo niet dan dient u uw raming aan te scherpen.\",\"\")","v":""}]
[null,null,null," Kosten via verbindingsorgaan",null,null,null,"721   ",null,null,null,null,null,null,null,null,{"$f":"IF(OR((I123-J123)/IF(I123=0,1,I123)<-10%,(K123-L123)/IF(K123=0,1,K123)<-10%,(N123-O123)/IF(N123=0,1,N123)<-10%),\"De balans is < -10%, als dit plausibel is dan vragen wij u dit nader toe te lichten bij de opmerkingen, zo niet dan dient u uw raming aan te scherpen.\",\"\")","v":""}]
[null,null,null," TOTAAL RUBRIEK 15",null,null,null,null,{"$f":"SUM(I122:I123)","v":0},{"$f":"SUM(J122:J123)","v":0},0,0,0,0]
[null,null,null," 16  KWALITEITSGELDEN",null,null,null,"   "]
[null,null,null," Kwaliteitsgelden",null,null,null,"730",null,null,null,null,null,null,null,null,{"$f":"IF(OR((I126-J126)/IF(I126=0,1,I126)<-10%,(K126-L126)/IF(K126=0,1,K126)<-10%,(N126-O126)/IF(N126=0,1,N126)<-10%),\"De balans is < -10%, als dit plausibel is dan vragen wij u dit nader toe te lichten bij de opmerkingen, zo niet dan dient u uw raming aan te scherpen.\",\"\")","v":""}]
[null,null,null," TOTAAL RUBRIEK 16",null,null,null,null,{"$f":"SUM(I126)","v":0},{"$f":"SUM(J126)","v":0},0,0,0,0,null,null,{"$f":"IF(OR((I127-J127)/IF(I127=0,1,I127)<-10%,(K127-L127)/IF(K127=0,1,K127)<-10%,(N127-O127)/IF(N127=0,1,N127)<-10%),\"De balans is < -10%, als dit plausibel is dan vragen wij u dit nader toe te lichten bij de opmerkingen, zo niet dan dient u uw raming aan te scherpen.\",\"\")","v":""}]
[null,null,null," TOTAAL LASTEN  (bruto-schade, definitie ZIN)",null,null,null,null,{"$f":"SUM(I24,I27,I31,I36,I40,I67,I75,I79,I85,I104,I111,I114,I120,I124,I127)","v":0},{"$f":"SUM(J24,J27,J31,J36,J40,J67,J75,J79,J85,J104,J111,J114,J120,J124,J127)","v":0},{"$f":"SUM(K24,K27,K31,K36,K40,K67,K75,K79,K85,K104,K111,K114,K120,K124,K127)","v":0},{"$f":"SUM(L24,L27,L31,L36,L40,L67,L75,L79,L85,L104,L111,L114,L120,L124,L127)","v":0},{"$f":"SUM(M24,M27,M31,M36,M40,M67,M75,M79,M85,M104,M111,M114,M120,M124,M127)","v":0},{"$f":"SUM(N24,N27,N31,N36,N40,N67,N75,N79,N85,N104,N111,N114,N120,N124,N127)","v":0}]
[]
[null,null,null,null,null,null,null,null,null,null,null,null,{"$f":"CONCATENATE(\"Overloop van ontvangen en geaccepteerde declaraties m.b.t. \",jaar_id-4)","v":"Overloop van ontvangen en geaccepteerde declaraties m.b.t. 2020"},{"$f":"CONCATENATE(\"Overloop van ontvangen en geaccepteerde declaraties m.b.t. \",jaar_id-3)","v":"Overloop van ontvangen en geaccepteerde declaraties m.b.t. 2021"}]
[]
[null,null,null,"TOTAAL NETTO CONTINUITEITSBIJDRAGE COVID (BASISVERZEKERING), VARIABEL "]
[null,null,null,"TOTAAL NETTO CONTINUITEITSBIJDRAGE COVID (BASISVERZEKERING), GGZ"]
[]
[null,null,null,null,null,null,null,null,null,null,null,null,{"$f":"CONCATENATE(\"Overloop van ontvangen en geaccepteerde declaraties m.b.t. \",jaar_id-4)","v":"Overloop van ontvangen en geaccepteerde declaraties m.b.t. 2020"},{"$f":"CONCATENATE(\"Overloop van ontvangen en geaccepteerde declaraties m.b.t. \",jaar_id-3)","v":"Overloop van ontvangen en geaccepteerde declaraties m.b.t. 2021"}]
[]
[null,null,null,"TOTAAL COVID-19-KOSTEN, VARIABEL (DIRECTE KOSTEN, INDIRECTE KOSTEN EN TOESLAGEN)"]
[null,null,null,"TOTAAL COVID-19 KOSTEN, GGZ (DIRECTE KOSTEN, INDIRECTE KOSTEN EN TOESLAGEN)"]
[null,null,null,null,null,null,null,null,null,null,null,null,null,null,null,null,{"$f":"IF(AND(OR(I144<0,J144<0,K144<0,L144<0,N144<0),OR((I144-J144)/IF(I144=0,1,I144)<-10%,(K144-L144)/IF(K144=0,1,K144)<-10%)), \"U rapporteert een bedrag <0. Kunt u dit vooraf toelichten bij de mededelingen? En De balans is < -10%, als dit plausibel is dan vragen wij u dit nader toe te lichten bij de opmerkingen, zo niet dan dient u uw raming aan te scherpen.\",IF(OR(I144<0,J144<0,K144<0,L144<0,N144<0),\"U rapporteert een bedrag <0. Kunt u dit vooraf toelichten bij de mededelingen?\",IF(OR((I144-J144)/IF(I144=0,1,I144)<-10%,(K144-L144)/IF(K144=0,1,K144)<-10%),\"De balans is < -10%, als dit plausibel is dan vragen wij u dit nader toe te lichten bij de opmerkingen, zo niet dan dient u uw raming aan te scherpen.\",\"\")))","v":""}]
[null,null,null," BATEN ZVW",null,null,null,"Code",{"$f":"CONCATENATE(\"Totale baten \",jaar_id,\" inclusief balanspost \")","v":"Totale baten 2024 inclusief balanspost "},{"$f":"CONCATENATE(\"Waarvan ontvangen  m.b.t. \",jaar_id)","v":"Waarvan ontvangen  m.b.t. 2024"},{"$f":"CONCATENATE(\"Totale baten \",jaar_id-1,\" inclusief balanspost \")","v":"Totale baten 2023 inclusief balanspost "},{"$f":"CONCATENATE(\"Waarvan ontvangen  m.b.t. \",jaar_id-1)","v":"Waarvan ontvangen  m.b.t. 2023"},"Totale baten ontvangen m.b.t. 2022","Totale in 2024 ontvangen baten m.b.t. 2021 en ouder",null,null,{"$f":"IF(AND(OR(I145<0,J145<0,K145<0,L145<0,N145<0),OR((I145-J145)/IF(I145=0,1,I145)<-10%,(K145-L145)/IF(K145=0,1,K145)<-10%)), \"U rapporteert een bedrag <0. Kunt u dit vooraf toelichten bij de mededelingen? En De balans is < -10%, als dit plausibel is dan vragen wij u dit nader toe te lichten bij de opmerkingen, zo niet dan dient u uw raming aan te scherpen.\",IF(OR(I145<0,J145<0,K145<0,L145<0,N145<0),\"U rapporteert een bedrag <0. Kunt u dit vooraf toelichten bij de mededelingen?\",IF(OR((I145-J145)/IF(I145=0,1,I145)<-10%,(K145-L145)/IF(K145=0,1,K145)<-10%),\"De balans is < -10%, als dit plausibel is dan vragen wij u dit nader toe te lichten bij de opmerkingen, zo niet dan dient u uw raming aan te scherpen.\",\"\")))","v":""}]
[null,null,null,null,null,null,null,null,null,"waarvan ontvangen  t/m 3e Kwartaal 2019",null,"waarvan ontvangen  t/m 3e Kwartaal 2019","waarvan ontvangen  t/m 3e Kwartaal 2019"]
[null,null,null," OPBRENGSTEN VERHAAL",null,null,null,"890.1"]
[null,null,null," SCHADE T.L.V. HET VRIJWILLIG EIGEN RISICO",null,null,null,"910   "]
[null,null,null," SCHADE T.L.V. HET VERPLICHT EIGEN RISICO",null,null,null,"915   "]
[null,null,null," NETTO PREMIEOPBRENGSTEN",null,null,null,"940   "]
[]
[null,null,null,{"$f":"NOW()","v":"2025-03-06T09:47:57.750"},null,null,null,null,null,null,null,null,null,{"$f":"CONCATENATE(\"Specifieke informatie A: kostenverzamelstaat \",\"2024\",\", \",LOWER(A90))","v":"Specifieke informatie A: kostenverzamelstaat 2024, pagina 3"}]

{"sheet":"Specifieke informatie A","index":5,"n_rows":64,"n_cols":13,"rows_kept":64,"cut":false,"hidden":false,"merged":[[52,12,53,12],[19,11,20,11],[19,12,20,12],[40,11,41,11],[40,12,41,12],[46,12,47,12],[46,11,47,11],[52,11,53,11],[29,11,30,11],[24,11,25,11],[48,3,48,9],[49,3,49,9],[50,3,50,9],[19,3,20,9],[29,3,30,9],[27,3,27,9],[40,3,41,9],[43,3,43,9],[31,3,31,9],[26,3,26,9],[42,3,42,9],[24,10,25,10],[24,12,25,12],[15,3,15,9],[16,3,16,9],[11,12,12,12],[13,3,13,9],[11,10,12,10],[11,3,12,9],[14,3,14,9],[11,11,12,11],[19,10,20,10],[21,3,21,9],[22,3,22,9],[24,3,25,9],[29,10,30,10],[29,12,30,12],[63,3,63,4],[46,3,47,9],[46,10,47,10],[33,3,33,4],[54,3,56,4],[54,5,54,9],[55,5,55,9],[56,5,56,9],[52,3,53,9],[52,10,53,10],[57,3,57,9],[60,3,60,9],[61,3,61,9],[40,10,41,10]]}
[null,null,"INVULSPECIFICATIES SPECIFIEKE INFORMATIE A"]
[]
[]
[]
[]
["Pagina 1",null,null,{"$f":"CONCATENATE(\"JAARSTAAT ZVW \", jaar_id)","v":"JAARSTAAT ZVW 2024"}]
[null,null,null,"SPECIFIEKE INFORMATIE A  2024: DETAILINFORMATIE RVE"]
[null,null,null,{"$f":"IF(naw_uzovi_zorgverzekeraar<>\"0000\",CONCATENATE(UPPER(naw_naam_zorgverzekeraar),\", \",UPPER(naw_plaats_zorgverzekeraar)),\"\")","v":""},null,null,null,null,null,null,null,null,{"$f":"CONCATENATE(\"UZOVI: \",naw_uzovi_zorgverzekeraar)","v":"UZOVI: 0000"}]
[]
[null,null,null,"SPECIFICATIES INFORMATIE RISICOVEREVENING"]
[null,null,null,"KOSTEN NAAR DEELBIJDRAGE"]
[null,null,null," KOSTEN NAAR DEELBIJDRAGE",null,null,null,null,null,null,{"$f":"CONCATENATE(\"LASTEN \",jaar_id,\" inclusief balanspost \")","v":"LASTEN 2024 inclusief balanspost "},{"$f":"CONCATENATE(\"LASTEN \",jaar_id-2,\" ontvangen en geaccepteerde declaraties \")","v":"LASTEN 2022 ontvangen en geaccepteerde declaraties "},"In 2024 ontvangen en geaccepteerde declaraties m.b.t. 2021 en ouder"]
[null,null,null,null,null,null,null,null,null,null,null,null,"Ontvangen en geaccepteerde declaraties mbt jaar T-1"]
[null,null,null," Variabele zorgkosten"]
[null,null,null," Vaste zorgkosten "]
[null,null,null," Kosten geneeskundige geestelijke gezondheidszorg"]
[null,null,null," TOTAAL kosten ",null,null,null,null,null,null,{"$f":"SUM(K14:K16)","v":0},{"$f":"SUM(L14:L16)","v":0},{"$f":"SUM(M14:M16)","v":0}]
[]
[null,null,null,"RUBRIEK 02 FARMACEUTISCHE ZORG"]
[null,null,null," CODE 520 - KOSTEN VAN BEPAALDE DURE EXTRAMURALE GENEESMIDDELEN",null,null,null,null,null,null,{"$f":"K$12","v":"LASTEN 2024 inclusief balanspost "},{"$f":"L$12","v":"LASTEN 2022 ontvangen en geaccepteerde declaraties "},{"$f":"M12","v":"In 2024 ontvangen en geaccepteerde declaraties m.b.t. 2021 en ouder"}]
[]
[null,null,null," Kosten van dure extramurale geneesmiddelen (artikel 1, regeling risicoverevening)"]
[]
[null,null,null,"RUBRIEK 06 MEDISCH SPECIALISTISCHE ZORG"]
[null,null,null," CODE 612.1  - KOSTEN ADD-ONS DURE GENEESMIDDELEN",null,null,null,null,null,null,{"$f":"K$12","v":"LASTEN 2024 inclusief balanspost "},{"$f":"L$12","v":"LASTEN 2022 ontvangen en geaccepteerde declaraties "},{"$f":"M$12","v":"In 2024 ontvangen en geaccepteerde declaraties m.b.t. 2021 en ouder"}]
[]
[null,null,null," Add-ons dure intramurale geneesmiddelen en ozp-stollingsfactoren (artikel 1, regeling risicoverevening)"]
[]
[null,null,null,"RUBRIEK 10 GEESTELIJKE GEZONDHEIDSZORG"]
[null,null,null," CODE 666 - KOSTEN VAN BEPAALDE DURE INTRAMURALE GENEESMIDDELEN",null,null,null,null,null,null,{"$f":"K$12","v":"LASTEN 2024 inclusief balanspost "},{"$f":"L$12","v":"LASTEN 2022 ontvangen en geaccepteerde declaraties "},{"$f":"M$12","v":"In 2024 ontvangen en geaccepteerde declaraties m.b.t. 2021 en ouder"}]
[]
[null,null,null," Kosten van dure intramurale geneesmiddelen (artikel 1, regeling risicoverevening)"]
[]
[null,null,null,{"$f":"NOW()","v":"2025-03-06T09:47:57.760"},null,null,null,null,null,null,null,null,{"$f":"CONCATENATE(\"Specifieke informatie A  2024: detailinformatie RVE, \",LOWER(A6))","v":"Specifieke informatie A  2024: detailinformatie RVE, pagina 1"}]
[]
["Pagina 2",null,null,{"$f":"CONCATENATE(\"JAARSTAAT ZVW \", jaar_id)","v":"JAARSTAAT ZVW 2024"}]
[null,null,null,{"$f":"D7","v":"SPECIFIEKE INFORMATIE A  2024: DETAILINFORMATIE RVE"}]
[null,null,null,{"$f":"IF(naw_uzovi_zorgverzekeraar<>\"0000\",CONCATENATE(UPPER(naw_naam_zorgverzekeraar),\", \",UPPER(naw_plaats_zorgverzekeraar)),\"\")","v":""},null,null,null,null,null,null,null,null,{"$f":"CONCATENATE(\"UZOVI: \",naw_uzovi_zorgverzekeraar)","v":"UZOVI: 0000"}]
[null,null,null,"SPECIFICATIES INFORMATIE RISICOVEREVENING"]
[null,null,null,"RUBRIEK 13 DIVERSE OVERIGE KOSTEN"]
[null,null,null," CODE 703 - TRANSFORMATIEMIDDELEN IZA",null,null,null,null,null,null,{"$f":"K$12","v":"LASTEN 2024 inclusief balanspost "},{"$f":"L$12","v":"LASTEN 2022 ontvangen en geaccepteerde declaraties "},{"$f":"M$12","v":"In 2024 ontvangen en geaccepteerde declaraties m.b.t. 2021 en ouder"}]
[]
[null,null,null," Transformatiemiddelen IZA"]
[null,null,null," TOTAAL CODE 703 Transformatiemiddelen IZA",null,null,null,null,null,null,{"$f":"SUM(K43:K43)","v":0},{"$f":"SUM(L43:L43)","v":0},0]
[]
[null,null,null,"RUBRIEK 15 GRENSOVERSCHRIJDENDE ZORG"]
[null,null,null," CODE 720 - KOSTEN GRENSOVERSCHRIJDENDE ZORG VIA VERZEKERAAR",null,null,null,null,null,null,{"$f":"K$12","v":"LASTEN 2024 inclusief balanspost "},{"$f":"L$12","v":"LASTEN 2022 ontvangen en geaccepteerde declaraties "},{"$f":"M$12","v":"In 2024 ontvangen en geaccepteerde declaraties m.b.t. 2021 en ouder"}]
[]
[null,null,null," Variabele zorgkosten"]
[null,null,null," Kosten van geneeskundige geestelijke gezondheidszorg"]
[null,null,null," TOTAAL CODE 720 kosten gemaakt in het buitenland, via verzekeraar",null,null,null,null,null,null,{"$f":"SUM(K49:K50)","v":0},{"$f":"SUM(L49:L50)","v":0},{"$f":"SUM(M49:M50)","v":0}]
[]
[null,null,null," CODE 721 - KOSTEN GRENSOVERSCHRIJDENDE ZORG VIA VERBINDINGSORGAAN",null,null,null,null,null,null,{"$f":"K$12","v":"LASTEN 2024 inclusief balanspost "},{"$f":"L$12","v":"LASTEN 2022 ontvangen en geaccepteerde declaraties "},{"$f":"M$12","v":"In 2024 ontvangen en geaccepteerde declaraties m.b.t. 2021 en ouder"}]
[]
[null,null,null," Toepassing verordening  \n of verdrag inzake sociale  \n zekerheid, via CAK ",null," Behandeling in het buitenland met toepassing van artikel 20. \n EG-verordening 883/2004 of overeenkomstige verdragsbepaling"]
[null,null,null,null,null," Kosten gemaakt bij tijdelijk verblijf in het buitenland van Zvw \n verzekerden die wonen in Nederland"]
[null,null,null,null,null," Kosten gemaakt in het buitenland van Zvw verzekerden die wonen  in het buitenland\n"]
[null,null,null," TOTAAL CODE 721 kosten gemaakt in het buitenland, via verbindingsorgaan",null,null,null,null,null,null,{"$f":"SUM(K55:K57)","v":0},{"$f":"SUM(L55:L57)","v":0},0]
[]
[null,null,null,"BEREKENDE NOMINALE REKENPREMIES GEDETINEERDEN"]
[null,null,null,null,null,null,null,null,null,null,"BEDRAG"]
[null,null,null," Totaal berekende nominale rekenpremies 2024 tijdens de detentieperiode van verzekerden van 18 jaar en ouder                                                                                                                                                                                                                                                                                                                                                                                                                                                                                                                                                                                         "]
[]
[null,null,null,{"$f":"NOW()","v":"2025-03-06T09:47:57.760"},null,null,null,null,null,null,null,null,{"$f":"CONCATENATE(\"Specifieke informatie A  2024: detailinformatie RVE, \",LOWER(A36))","v":"Specifieke informatie A  2024: detailinformatie RVE, pagina 2"}]

{"sheet":"Specifieke informatie C","index":6,"n_rows":129,"n_cols":12,"rows_kept":129,"cut":false,"hidden":false,"merged":[[70,9,71,9],[70,10,71,10],[70,11,71,11],[10,7,10,8],[10,3,12,6],[11,8,12,8],[11,9,12,9],[10,9,10,10],[114,5,114,9],[31,3,31,6],[25,7,25,8],[26,10,27,10],[42,3,42,4],[62,5,62,6],[63,3,63,6],[64,3,64,6],[76,3,76,6],[77,3,77,6],[62,7,62,11],[75,3,75,6],[65,3,65,6],[66,3,66,6],[74,3,74,6],[56,3,56,6],[11,11,12,11],[32,3,32,6],[29,3,29,6],[11,10,12,10],[11,7,12,7],[26,8,27,8],[26,11,27,11],[25,9,25,10],[13,3,13,6],[26,9,27,9],[14,3,14,6],[15,3,15,6],[26,7,27,7],[22,3,22,6],[19,11,20,11],[25,3,27,6],[18,3,20,6],[18,7,18,8],[18,9,18,10],[19,7,20,7],[19,8,20,8],[19,9,20,9],[19,10,20,10],[21,3,21,6],[35,11,36,11],[37,3,37,6],[59,9,59,10],[59,3,61,4],[59,7,59,8],[38,3,38,6],[39,3,39,6],[40,3,40,6],[41,3,41,6],[48,3,50,6],[48,7,48,8],[48,9,48,10],[49,7,50,7],[60,11,61,11],[60,9,61,9],[60,7,61,7],[34,3,36,6],[34,7,34,8],[34,9,34,10],[35,7,36,7],[35,8,36,8],[35,9,36,9],[35,10,36,10],[62,3,62,4],[60,10,61,10],[49,9,50,9],[49,10,50,10],[49,11,50,11],[51,3,51,6],[52,3,52,6],[53,3,53,6],[54,3,54,6],[55,3,55,6],[59,5,61,6],[60,8,61,8],[49,8,50,8],[116,3,116,9],[72,5,72,6],[67,3,67,6],[72,3,72,4],[93,3,94,9],[87,3,87,4],[93,10,94,10],[95,3,95,9],[101,3,101,9],[102,3,102,9],[96,3,96,9],[97,3,97,9],[72,7,72,11],[73,3,73,6],[115,5,115,9],[93,11,94,11],[98,3,98,9],[99,3,99,9],[69,3,71,4],[69,5,71,6],[69,7,69,8],[69,9,69,10],[70,7,71,7],[70,8,71,8],[30,3,30,6],[28,3,28,6],[128,3,128,4],[119,11,120,11],[121,3,122,4],[121,5,121,9],[122,5,122,9],[123,3,123,9],[124,3,124,9],[105,11,106,11],[107,3,107,9],[108,3,108,9],[109,3,109,9],[112,3,113,9],[112,10,113,10],[112,11,113,11],[114,3,115,4],[117,3,117,9],[119,3,120,9],[119,10,120,10],[100,3,100,9],[103,3,103,9],[105,3,106,9],[105,10,106,10]]}
[null,null,"INVULSPECIFICATIES SPECIFIEKE INFORMATIE C"]
[]
[]
[]
[]
["Pagina 1",null,null,{"$f":"CONCATENATE(\"JAARSTAAT ZVW \", jaar_id)","v":"JAARSTAAT ZVW 2024"}]
[null,null,null,"SPECIFIEKE INFORMATIE C: SPECIFICATIES VAN KOSTEN EN PRODUCTIE"]
[null,null,null,{"$f":"IF(naw_uzovi_zorgverzekeraar<>\"0000\",CONCATENATE(UPPER(naw_naam_zorgverzekeraar),\", \",UPPER(naw_plaats_zorgverzekeraar)),\"\")","v":""},null,null,null,null,null,null,null,{"$f":"CONCATENATE(\"UZOVI: \",naw_uzovi_zorgverzekeraar)","v":"UZOVI: 0000"}]
[null,null,null,"SPECIFICATIES VAN KOSTEN EN PRODUCTIE"]
[null,null,null,"RUBRIEK 06 MEDISCH SPECIALISTISCHE ZORG"]
[null,null,null," CODE 610 - OVERIGE KOSTEN \n ZIEKENHUISZORG EN CURATIEVE ZORG",null,null,null,{"$f":"CONCATENATE(\"LASTEN \",jaar_id)","v":"LASTEN 2024"},null,{"$f":"CONCATENATE(\"LASTEN \",jaar_id-1)","v":"LASTEN 2023"},null,{"$f":"CONCATENATE(\"LASTEN \",jaar_id-2)","v":"LASTEN 2022"}]
[null,null,null,null,null,null,null,{"$f":"CONCATENATE(\"LASTEN \",jaar_id,\" inclusief balanspost \")","v":"LASTEN 2024 inclusief balanspost "},{"$f":"CONCATENATE(\"Ontvangen en geaccepteerde declaraties m.b.t. \",jaar_id)","v":"Ontvangen en geaccepteerde declaraties m.b.t. 2024"},{"$f":"CONCATENATE(\"LASTEN \",jaar_id-1,\" inclusief balanspost \")","v":"LASTEN 2023 inclusief balanspost "},{"$f":"CONCATENATE(\"Ontvangen en geaccepteerde declaraties m.b.t. \",jaar_id-1)","v":"Ontvangen en geaccepteerde declaraties m.b.t. 2023"},{"$f":"CONCATENATE(\"Ontvangen en geaccepteerde declaraties m.b.t. \",jaar_id-2)","v":"Ontvangen en geaccepteerde declaraties m.b.t. 2022"}]
[null,null,null,null,null,null,null,null,"Ontvangen en geaccepteerde declaraties mbt jaar T-1",null,"Ontvangen en geaccepteerde declaraties mbt jaar T-1","Ontvangen en geaccepteerde declaraties mbt jaar T-1"]
[null,null,null," Kosten van eerstelijnsdiagnostiek aangevraagd \n door eerstelijns zorgaanbieders, geleverd door \n huisartsenlaboratoria"]
[null,null,null," Trombosediensten"]
[null,null,null," NTS"]
[null,null,null," TOTAAL code 610",null,null,null,{"$f":"SUM(H14:H15)","v":0},{"$f":"SUM(I14:I15)","v":0},{"$f":"SUM(J14:J16)","v":0},0,0]
[]
[null,null,null," CODE 610.2\n ",null,null,null,{"$f":"H$11","v":"LASTEN 2024"},null,{"$f":"J$11","v":"LASTEN 2023"},null,{"$f":"L$11","v":"LASTEN 2022"}]
[null,null,null,null,null,null,null,{"$f":"CONCATENATE(\"LASTEN \",jaar_id,\" inclusief balanspost \")","v":"LASTEN 2024 inclusief balanspost "},{"$f":"CONCATENATE(\"Ontvangen en geaccepteerde declaraties m.b.t. \",jaar_id)","v":"Ontvangen en geaccepteerde declaraties m.b.t. 2024"},{"$f":"CONCATENATE(\"LASTEN \",jaar_id-1,\" inclusief balanspost \")","v":"LASTEN 2023 inclusief balanspost "},{"$f":"CONCATENATE(\"Ontvangen en geaccepteerde declaraties m.b.t. \",jaar_id-1)","v":"Ontvangen en geaccepteerde declaraties m.b.t. 2023"},{"$f":"L$12","v":"Ontvangen en geaccepteerde declaraties m.b.t. 2022"}]
[null,null,null,null,null,null,null,null,"Ontvangen en geaccepteerde declaraties mbt jaar T-1",null,"Ontvangen en geaccepteerde declaraties mbt jaar T-1","Ontvangen en geaccepteerde declaraties mbt jaar T-1"]
[null,null,null," Kosten van eerstelijnsdiagnostiek aangevraagd \n door eerstelijns zorgaanbieders, geleverd door \n huisartsenlaboratoria"]
[null,null,null," Trombosediensten"]
[null,null,null," TOTAAL code 610.2",null,null,null,{"$f":"SUM(H22:H23)","v":0},{"$f":"SUM(I22:I23)","v":0},{"$f":"SUM(J22:J23)","v":0},{"$f":"SUM(K22:K23)","v":0},{"$f":"SUM(L22:L23)","v":0}]
[]
[null,null,null," CODE 611 - OVERIGE ZORGPRODUCTEN NAAR INSTELLINGEN",null," ",null,{"$f":"H$11","v":"LASTEN 2024"},null,{"$f":"J$11","v":"LASTEN 2023"},null,{"$f":"L$11","v":"LASTEN 2022"}]
[null,null,null,null,null,null,null,{"$f":"H$12","v":"LASTEN 2024 inclusief balanspost "},{"$f":"I$12","v":"Ontvangen en geaccepteerde declaraties m.b.t. 2024"},"LASTEN 2023 inclusief balanspost ","Ontvangen en geaccepteerde declaraties m.b.t. 2023",{"$f":"L$12","v":"Ontvangen en geaccepteerde declaraties m.b.t. 2022"}]
[null,null,null,null,null,null,null,null,null,null,null,"Ontvangen en geaccepteerde declaraties mbt jaar T-1"]
[null,null,null," Academische ziekenhuizen"]
[null,null,null," Algemene ziekenhuizen"]
[null,null,null," Zelfstandige behandelcentra"]
[null,null,null," Overige zorgaanbieders "]
[null,null,null," TOTAAL code 611",null,null,null,{"$f":"SUM(H29:H32)","v":0},{"$f":"SUM(I29:I32)","v":0},{"$f":"SUM(J29:J32)","v":0},{"$f":"SUM(K29:K32)","v":0},{"$f":"SUM(L29:L32)","v":0}]
[]
[null,null,null,"CODE 612.1 - KOSTEN ADD-ONS                                      DURE GENEESMIDDELEN",null,null,null,{"$f":"H$11","v":"LASTEN 2024"},null,{"$f":"J$11","v":"LASTEN 2023"},null,{"$f":"L$11","v":"LASTEN 2022"}]
[null,null,null,null,null,null,null,{"$f":"H$12","v":"LASTEN 2024 inclusief balanspost "},{"$f":"I$12","v":"Ontvangen en geaccepteerde declaraties m.b.t. 2024"},"LASTEN 2023 inclusief balanspost ","Ontvangen en geaccepteerde declaraties m.b.t. 2023",{"$f":"L$12","v":"Ontvangen en geaccepteerde declaraties m.b.t. 2022"}]
[null,null,null,null,null,null,null,null,null,null,null,"Ontvangen en geaccepteerde declaraties mbt jaar T-1"]
[null,null,null," Academische ziekenhuizen"]
[null,null,null," Algemene ziekenhuizen"]
[null,null,null," Zelfstandige behandelcentra"]
[null,null,null," Overige zorgaanbieders "]
[null,null,null," TOTAAL code 612.1",null,null,null,{"$f":"SUM(H38:H41)","v":0},{"$f":"SUM(I38:I41)","v":0},{"$f":"SUM(J38:J41)","v":0},{"$f":"SUM(K38:K41)","v":0},{"$f":"SUM(L38:L41)","v":0}]
[null,null,null,{"$f":"NOW()","v":"2025-03-06T09:47:57.760"},null,null,null,null,null,null,null,{"$f":"CONCATENATE(\"Specifieke informatie C: specificaties van kosten en productie, \",LOWER(A6))","v":"Specifieke informatie C: specificaties van kosten en productie, pagina 1"}]
[]
[null,null,null,{"$f":"CONCATENATE(\"JAARSTAAT ZVW \", jaar_id)","v":"JAARSTAAT ZVW 2024"}]
[null,null,null,{"$f":"D7","v":"SPECIFIEKE INFORMATIE C: SPECIFICATIES VAN KOSTEN EN PRODUCTIE"}]
[null,null,null,{"$f":"IF(naw_uzovi_zorgverzekeraar<>\"0000\",CONCATENATE(UPPER(naw_naam_zorgverzekeraar),\", \",UPPER(naw_plaats_zorgverzekeraar)),\"\")","v":""},null,null,null,null,null,null,null,{"$f":"CONCATENATE(\"UZOVI: \",naw_uzovi_zorgverzekeraar)","v":"UZOVI: 0000"}]
[]
[null,null,null,"CODE 612.2 - KOSTEN ADD-ONS  IC",null,null,null,{"$f":"H$11","v":"LASTEN 2024"},null,{"$f":"J$11","v":"LASTEN 2023"},null,{"$f":"L$11","v":"LASTEN 2022"}]
[null,null,null,null,null,null,null,{"$f":"H$12","v":"LASTEN 2024 inclusief balanspost "},{"$f":"I$12","v":"Ontvangen en geaccepteerde declaraties m.b.t. 2024"},"LASTEN 2023 inclusief balanspost ","Ontvangen en geaccepteerde declaraties m.b.t. 2023",{"$f":"L$12","v":"Ontvangen en geaccepteerde declaraties m.b.t. 2022"}]
[null,null,null,null,null,null,null,null,null,null,null,"Ontvangen en geaccepteerde declaraties mbt jaar T-1"]
[null,null,null," Academische ziekenhuizen"]
[null,null,null," Algemene ziekenhuizen"]
[null,null,null," Zelfstandige behandelcentra"]
[null,null,null," Overige zorgaanbieders "]
[null,null,null," TOTAAL code 612.2",null,null,null,{"$f":"SUM(H52:H55)","v":0},{"$f":"SUM(I52:I55)","v":0},{"$f":"SUM(J52:J55)","v":0},{"$f":"SUM(K52:K55)","v":0},{"$f":"SUM(L52:L55)","v":0}]
[null,null,null," TOTAAL code 612",null,null,null,{"$f":"SUM(H52:H55)+SUM(H38:H41)","v":0},0,{"$f":"SUM(J52:J55)+SUM(J38:J41)","v":0},{"$f":"SUM(K52:K55)+SUM(K38:K41)","v":0},0]
[]
[null,null,null,"RUBRIEK 06 MEDISCH SPECIALISTISCHE ZORG - vervolg"]
[null,null,null,"DBC-zorgproducten NAAR INSTELLING",null,"Code",null,{"$f":"H$11","v":"LASTEN 2024"},null,{"$f":"J$11","v":"LASTEN 2023"},null,{"$f":"L$11","v":"LASTEN 2022"}]
[null,null,null,null,null,null,null,{"$f":"H$12","v":"LASTEN 2024 inclusief balanspost "},{"$f":"I$12","v":"Ontvangen en geaccepteerde declaraties m.b.t. 2024"},"LASTEN 2023 inclusief balanspost ","Ontvangen en geaccepteerde declaraties m.b.t. 2023",{"$f":"L$12","v":"Ontvangen en geaccepteerde declaraties m.b.t. 2022"}]
[null,null,null,null,null,null,null,null,null,null,null,"Ontvangen en geaccepteerde declaraties mbt jaar T-1"]
[null,null,null," Integrale kosten DBC-zorgproducten \n gereguleerde segment",null,"613.1"]
[null,null,null," Academische ziekenhuizen"]
[null,null,null," Algemene ziekenhuizen"]
[null,null,null," Zelfstandige behandelcentra"]
[null,null,null," Overige zorgaanbieders "]
[null,null,null," TOTAAL code 613.1",null,null,null,{"$f":"SUM(H64:H67)","v":0},{"$f":"SUM(I64:I67)","v":0},{"$f":"SUM(J64:J67)","v":0},{"$f":"SUM(K64:K67)","v":0},{"$f":"SUM(L64:L67)","v":0}]
[]
[null,null,null,"DBC-zorgproducten NAAR INSTELLING",null,"Code",null,{"$f":"H$11","v":"LASTEN 2024"},null,{"$f":"J$11","v":"LASTEN 2023"},null,{"$f":"L$11","v":"LASTEN 2022"}]
[null,null,null,null,null,null,null,{"$f":"H$12","v":"LASTEN 2024 inclusief balanspost "},{"$f":"I$12","v":"Ontvangen en geaccepteerde declaraties m.b.t. 2024"},"LASTEN 2023 inclusief balanspost ","Ontvangen en geaccepteerde declaraties m.b.t. 2023",{"$f":"L$12","v":"Ontvangen en geaccepteerde declaraties m.b.t. 2022"}]
[null,null,null,null,null,null,null,null,null,null,null,"Ontvangen en geaccepteerde declaraties mbt jaar T-1"]
[null,null,null," Integrale kosten DBC-zorgproduct \n vrije segment",null,"615.1"]
[null,null,null," Academische ziekenhuizen"]
[null,null,null," Algemene ziekenhuizen"]
[null,null,null," Zelfstandige behandelcentra"]
[null,null,null," Overige zorgaanbieders "]
[null,null,null," TOTAAL code 615.1",null,null,null,{"$f":"SUM(H74:H77)","v":0},{"$f":"SUM(I74:I77)","v":0},{"$f":"SUM(J74:J77)","v":0},0,{"$f":"SUM(L74:L77)","v":0}]
[]
[]
[]
[]
[]
[]
[]
[]
[]
[null,null,null,{"$f":"NOW()","v":"2025-03-06T09:47:57.760"},null,null,null,null,null,null,null,{"$f":"CONCATENATE(\"Specifieke informatie C: specificaties van kosten en productie, \",LOWER(A45))","v":"Specifieke informatie C: specificaties van kosten en productie, "}]
[]
[null,null,null,{"$f":"CONCATENATE(\"JAARSTAAT ZVW \", jaar_id)","v":"JAARSTAAT ZVW 2024"}]
[null,null,null,"SPECIFIEKE INFORMATIE C: SPECIFICATIES VAN KOSTEN EN PRODUCTIE"]
[null,null,null,{"$f":"IF(naw_uzovi_zorgverzekeraar<>\"0000\",CONCATENATE(UPPER(naw_naam_zorgverzekeraar),\", \",UPPER(naw_plaats_zorgverzekeraar)),\"\")","v":""},null,null,null,null,null,null,null,{"$f":"CONCATENATE(\"UZOVI: \",naw_uzovi_zorgverzekeraar)","v":"UZOVI: 0000"}]
[null,null,null,"RUBRIEK 13 DIVERSE OVERIGE KOSTEN"]
[null,null,null," CODE 701 - OVERIGE GENEESKUNDIGE ZORG",null,null,null,null,null,null,{"$f":"CONCATENATE(\"Ontvangen en geaccepteerde declaraties m.b.t. \",jaar_id)","v":"Ontvangen en geaccepteerde declaraties m.b.t. 2024"},{"$f":"CONCATENATE(\"Ontvangen en geaccepteerde declaraties m.b.t. \",jaar_id-1)","v":"Ontvangen en geaccepteerde declaraties m.b.t. 2023"}]
[null,null,null,null,null,null,null,null,null,null,"Ontvangen en geaccepteerde declaraties mbt jaar T","Ontvangen en geaccepteerde declaraties mbt jaar T-1"]
[null,null,null," Geneeskundige individuele zorg bij tuberculose en infectieziekten door GGD'en"]
[null,null,null," Orthoptie"]
[null,null,null," Optometrie"]
[null,null,null," Kosten voetzorg bij Diabetes Mellitus type 2"]
[null,null,null," Koemelkallergietest (niet horend bij Multidisciplinaire Zorg) "]
[null,null,null," Regiefunctie complexe wondzorg"]
[null,null,null," ADZ-Parkinsonzorg"]
[null,null,null," Overig"]
[null,null,null," TOTAAL code 701",null,null,null,null,null,null,{"$f":"SUM(K96:K103)","v":0},{"$f":"SUM(L96:L103)","v":0}]
[]
[null,null,null," CODE 702 - ZINTUIGLIJK GEHANDICAPTEN",null,null,null,null,null,null,{"$f":"CONCATENATE(\"Ontvangen en geaccepteerde declaraties m.b.t. \",jaar_id)","v":"Ontvangen en geaccepteerde declaraties m.b.t. 2024"},{"$f":"CONCATENATE(\"Ontvangen en geaccepteerde declaraties m.b.t. \",jaar_id-1)","v":"Ontvangen en geaccepteerde declaraties m.b.t. 2023"}]
[null,null,null,null,null,null,null,null,null,null,"Ontvangen en geaccepteerde declaraties mbt jaar T","Ontvangen en geaccepteerde declaraties mbt jaar T-1"]
[null,null,null," Kosten van zorg ivm visuele beperking "]
[null,null,null," Kosten van zorg ivm auditieve en communicatieve beperking"]
[null,null,null," TOTAAL code 702",null,null,null,null,null,null,{"$f":"SUM(K108:K109)","v":0},{"$f":"SUM(L108:L109)","v":0}]
[]
[null,null,null,"RUBRIEK 15 GRENSOVERSCHRIJDENDE ZORG"]
[null,null,null,"  CODE 720 - KOSTEN GRENSOVERSCHRIJDENDE ZORG VIA VERZEKERAAR",null,null,null,null,null,null,{"$f":"CONCATENATE(\"Ontvangen en geaccepteerde declaraties m.b.t. \",jaar_id)","v":"Ontvangen en geaccepteerde declaraties m.b.t. 2024"},{"$f":"CONCATENATE(\"Ontvangen en geaccepteerde declaraties m.b.t. \",jaar_id-1)","v":"Ontvangen en geaccepteerde declaraties m.b.t. 2023"}]
[null,null,null,null,null,null,null,null,null,null,"Ontvangen en geaccepteerde declaraties mbt jaar T","Ontvangen en geaccepteerde declaraties mbt jaar T-1"]
[null,null,null," Kosten gemaakt in het buitenland \n van Zvw verzekerden die wonen in \n Nederland",null," Op basis van een contract "]
[null,null,null,null,null," Niet op basis van een contract "]
[null,null,null," Kosten gemaakt in het buitenland van Zvw verzekerden die wonen in het buitenland"]
[null,null,null," TOTAAL code 720",null,null,null,null,null,null,{"$f":"SUM(K115:K117)","v":0},{"$f":"SUM(L115:L117)","v":0}]
[]
[null,null,null,"  CODE 720 - GRENSOVERSCHRIJDENDE ZORG VIA VERZEKERAAR",null,null,null,null,null,null,"Aantal verzekerden mbt 2024","Aantal verzekerden mbt 2023"]
[null,null,null,null,null,null,null,null,null,null,"Ontvangen en geaccepteerde declaraties mbt jaar T","Ontvangen en geaccepteerde declaraties mbt jaar T"]
[null,null,null," Kosten gemaakt in het buitenland \n van Zvw verzekerden die wonen in \n Nederland",null," Op basis van een contract"]
[null,null,null,null,null," Niet op basis van een contract"]
[null,null,null," Kosten gemaakt in het buitenland van Zvw verzekerden die wonen in het buitenland"]
[null,null,null," TOTAAL code 720",null,null,null,null,null,null,{"$f":"SUM(K122:K124)","v":0},{"$f":"SUM(L122:L124)","v":0}]
[]
[]
[]
[null,null,null,{"$f":"NOW()","v":"2025-03-06T09:47:57.760"},null,null,null,null,null,null,null,{"$f":"CONCATENATE(\"Specifieke informatie C: specificaties van kosten en productie, \",LOWER(A90))","v":"Specifieke informatie C: specificaties van kosten en productie, "}]

{"sheet":"Contractinformatie","index":7,"n_rows":92,"n_cols":12,"rows_kept":92,"cut":false,"hidden":false,"merged":[[91,3,91,4],[80,3,80,11],[66,11,67,11],[66,10,67,10],[71,5,71,9],[71,3,71,4],[73,10,74,10],[73,11,74,11],[75,3,75,11],[73,9,74,9],[66,9,67,9],[66,3,67,8],[73,3,74,8],[76,3,76,8],[85,3,85,11],[88,3,88,8],[51,9,52,9],[38,3,38,8],[39,3,39,8],[43,3,43,8],[41,3,41,8],[32,3,33,8],[36,3,36,8],[37,3,37,8],[45,3,45,4],[44,3,44,8],[40,3,40,8],[51,11,52,11],[23,10,24,10],[51,10,52,10],[32,11,33,11],[23,11,24,11],[32,10,33,10],[23,9,24,9],[10,11,11,11],[16,3,16,11],[12,3,12,11],[10,10,11,10],[10,9,11,9],[14,3,14,8],[15,3,15,8],[23,3,24,8],[17,3,17,8],[18,3,18,8],[19,3,19,8],[20,3,20,8],[28,3,28,8],[60,3,60,8],[72,3,72,10],[78,3,78,8],[83,3,83,8],[77,3,77,8],[79,3,79,8],[59,3,59,8],[51,3,52,8],[53,3,53,8],[54,3,54,8],[55,3,55,8],[56,3,56,8],[57,3,57,8],[58,3,58,8],[32,9,33,9]]}
[null,null,"INVULSPECIFICATIES SPECIFIEKE INFORMATIE C"]
[]
[]
[]
[]
["Pagina 1",null,null,{"$f":"CONCATENATE(\"JAARSTAAT ZVW \", jaar_id)","v":"JAARSTAAT ZVW 2024"}]
[null,null,null,"SPECIFIEKE INFORMATIE C (CONTRACTINFORMATIE)"]
[null,null,null,{"$f":"IF(naw_uzovi_zorgverzekeraar<>\"0000\",CONCATENATE(UPPER(naw_naam_zorgverzekeraar),\", \",UPPER(naw_plaats_zorgverzekeraar)),\"\")","v":""},null,null,null,null,null,null,null,{"$f":"CONCATENATE(\"UZOVI: \",naw_uzovi_zorgverzekeraar)","v":"UZOVI: 0000"}]
[]
[null,null,null,"CONTRACTINFORMATIE HUISARTSENZORG EN MULTIDISCIPLINAIRE ZORG, rubriek 01"]
[null,null,null,null,null,null,null,null,null,{"$f":"CONCATENATE(\"LASTEN \",jaar_id,\" inclusief balanspost \")","v":"LASTEN 2024 inclusief balanspost "},{"$f":"CONCATENATE(\"LASTEN \",jaar_id-1,\" inclusief balanspost \")","v":"LASTEN 2023 inclusief balanspost "},{"$f":"CONCATENATE(\"LASTEN \",jaar_id-2,\" inclusief balanspost \")","v":"LASTEN 2022 inclusief balanspost "}]
[null,null,null,null,null,null,null,null,null,"Ontvangen en geaccepteerde declaraties mbt jaar T","Ontvangen en geaccepteerde declaraties mbt jaar T","Ontvangen en geaccepteerde declaraties mbt jaar T"]
[null,null,null," Huisartsenzorg, codes 503, 504, 505, 506,507, 515"]
[null,null,null," Gecontracteerde zorg"]
[null,null,null," Niet gecontracteerde zorg"]
[null,null,null," Subtotaal huisartsenzorg",null,null,null,null,null,{"$f":"SUM(J14:J15)","v":0},0,{"$f":"SUM(L14:L15)","v":0}]
[null,null,null," Multidisciplinaire zorg, codes 510 en 516"]
[null,null,null," Gecontracteerde zorg"]
[null,null,null," Niet gecontracteerde zorg"]
[null,null,null," Subtotaal multidisciplinaire zorg",null,null,null,null,null,{"$f":"SUM(J18:J19)","v":0},{"$f":"SUM(K18:K19)","v":0},{"$f":"SUM(L18:L19)","v":0}]
[null,null,null," TOTAAL RUBRIEK 01",null,null,null,null,null,{"$f":"J16+J20","v":0},{"$f":"K16+K20","v":0},0]
[]
[null,null,null,"CONTRACTINFORMATIE VERPLEGING EN VERZORGING, rubriek 03"]
[null,null,null,null,null,null,null,null,null,{"$f":"J11","v":"LASTEN 2024 inclusief balanspost "},{"$f":"K11","v":"LASTEN 2023 inclusief balanspost "},{"$f":"L11","v":"LASTEN 2022 inclusief balanspost "}]
[null,null,null,null,null,null,null,null,null,"Ontvangen en geaccepteerde declaraties mbt jaar T","Ontvangen en geaccepteerde declaraties mbt jaar T","Ontvangen en geaccepteerde declaraties mbt jaar T"]
[null,null,null," Gecontracteerde zorg"]
[null,null,null," Niet gecontracteerde zorg"]
[null,null,null," PGB"]
[null,null,null," Meerkosten Corona, indirect en toeslagen, gecontracteerd, niet gecontracteerd"]
[null,null,null," TOTAAL RUBRIEK 03",null,null,null,null,null,{"$f":"SUM(J26:J28)","v":0},{"$f":"SUM(K26:K28)","v":0},{"$f":"SUM(L26:L28)","v":0}]
[]
[null,null,null,"CONTRACTINFORMATIE MEDISCH SPECIALISTISCHE ZORG, rubriek 06"]
[null,null,null,null,null,null,null,null,null,{"$f":"J11","v":"LASTEN 2024 inclusief balanspost "},{"$f":"K11","v":"LASTEN 2023 inclusief balanspost "},{"$f":"L11","v":"LASTEN 2022 inclusief balanspost "}]
[null,null,null,null,null,null,null,null,null,"Ontvangen en geaccepteerde declaraties mbt jaar T","Ontvangen en geaccepteerde declaraties mbt jaar T","Ontvangen en geaccepteerde declaraties mbt jaar T"]
[null,null,null," Gecontracteerde zorg: aanneemsom"]
[null,null,null," Gecontracteerde zorg: plafond"]
[null,null,null," Gecontracteerde zorg: nacalculatie bij aanneemsommen en plafondcontracten"]
[null,null,null," Gecontracteerde zorg: open einde contract"]
[null,null,null," Subtotaal gecontracteerde zorg",null,null,null,null,null,{"$f":"SUM(J35:J38)","v":0},{"$f":"SUM(K35:K38)","v":0},{"$f":"SUM(L35:L38)","v":0}]
[null,null,null," Niet gecontracteerde zorg"]
[null,null,null," Meerkosten Corona, indirect en toeslagen, gecontracteerd, niet gecontracteerd"]
[null,null,null," TOTAAL RUBRIEK 06",null,null,null,null,null,{"$f":"SUM(J39:J40)","v":0},{"$f":"SUM(K39:K40)","v":0},{"$f":"SUM(L39:L40)","v":0}]
[]
[null,null,null,null,null,null,null,null,null,2023,2022,2021]
[null,null,null," Totaal afgesproken maximum omzet plafondcontracten"]
[null,null,null,{"$f":"NOW()","v":"2025-03-06T09:47:57.760"},null,null,null,null,null,null,null,{"$f":"CONCATENATE(\"Contractinformatie, \",LOWER(A6))","v":"Contractinformatie, pagina 1"}]
[]
["Pagina 2",null,null,{"$f":"CONCATENATE(\"JAARSTAAT ZVW \", jaar_id)","v":"JAARSTAAT ZVW 2024"}]
[null,null,null,"SPECIFIEKE INFORMATIE C (CONTRACTINFORMATIE)"]
[null,null,null,{"$f":"IF(naw_uzovi_zorgverzekeraar<>\"0000\",CONCATENATE(UPPER(naw_naam_zorgverzekeraar),\", \",UPPER(naw_plaats_zorgverzekeraar)),\"\")","v":""},null,null,null,null,null,null,null,{"$f":"CONCATENATE(\"UZOVI: \",naw_uzovi_zorgverzekeraar)","v":"UZOVI: 0000"}]
[null,null,null,"CONTRACTINFORMATIE GGZ, rubriek 10"]
[null,null,null,null,null,null,null,null,null,{"$f":"J11","v":"LASTEN 2024 inclusief balanspost "},{"$f":"K11","v":"LASTEN 2023 inclusief balanspost "},{"$f":"L11","v":"LASTEN 2022 inclusief balanspost "}]
[null,null,null,null,null,null,null,null,null,"Ontvangen en geaccepteerde declaraties mbt jaar T","Ontvangen en geaccepteerde declaraties mbt jaar T","Ontvangen en geaccepteerde declaraties mbt jaar T"]
[null,null,null," Gecontracteerde zorg: aanneemsom"]
[null,null,null," Gecontracteerde zorg: plafond"]
[null,null,null," Gecontracteerde zorg: nacalculatie bij aanneemsommen en plafondcontracten"]
[null,null,null," Gecontracteerde zorg: open einde contract"]
[null,null,null," Subtotaal gecontracteerde zorg",null,null,null,null,null,{"$f":"SUM(J54:J57)","v":0},{"$f":"SUM(K54:K57)","v":0},{"$f":"SUM(L54:L57)","v":0}]
[null,null,null," Niet gecontracteerde zorg"]
[null,null,null," Meerkosten Corona, indirect en toeslagen, gecontracteerd, niet gecontracteerd"]
[null,null,null," TOTAAL RUBRIEK 10",null,null,null,null,null,{"$f":"SUM(J58:J60)","v":0},{"$f":"SUM(K58:K60)","v":0},{"$f":"SUM(L58:L60)","v":0}]
[]
[null,null,null,null,null,null,null,null,null,{"$f":"J44","v":2023},{"$f":"K44","v":2022},{"$f":"L44","v":2021}]
[null,null,null," Totaal afgesproken maximum omzet plafondcontracten"]
[]
[null,null,null,"CONTRACTINFORMATIE ZINTUIGLIJK GEHANDICAPTEN, code 702"]
[null,null,null,null,null,null,null,null,null,{"$f":"J11","v":"LASTEN 2024 inclusief balanspost "},{"$f":"K11","v":"LASTEN 2023 inclusief balanspost "},{"$f":"L11","v":"LASTEN 2022 inclusief balanspost "}]
[null,null,null,null,null,null,null,null,null,"Ontvangen en geaccepteerde declaraties mbt jaar T","Ontvangen en geaccepteerde declaraties mbt jaar T","Ontvangen en geaccepteerde declaraties mbt jaar T"]
[null,null,null," Gecontracteerde zorg"]
[null,null,null," Niet gecontracteerde zorg"]
[null,null,null," TOTAAL CODE 702",null,null,null,null,null,{"$f":"SUM(J69:J70)","v":0},{"$f":"SUM(K69:K70)","v":0},{"$f":"SUM(L69:L70)","v":0}]
[]
[null,null,null,"CONTRACTINFORMATIE GERIATRISCHE REVALIDATIE, EERSTELIJNSVERBLIJF EN GENEESKUNDIGE ZORG SPECIFIEKE PATIENTGROEPEN, rubriek 11"]
[null,null,null,null,null,null,null,null,null,{"$f":"J11","v":"LASTEN 2024 inclusief balanspost "},{"$f":"K11","v":"LASTEN 2023 inclusief balanspost "},{"$f":"L11","v":"LASTEN 2022 inclusief balanspost "}]
[null,null,null,null,null,null,null,null,null,"Ontvangen en geaccepteerde declaraties mbt jaar T","Ontvangen en geaccepteerde declaraties mbt jaar T","Ontvangen en geaccepteerde declaraties mbt jaar T"]
[null,null,null," Geriatrische Revalidatie, code 670"]
[null,null,null," Gecontracteerde zorg"]
[null,null,null," Niet gecontracteerde zorg"]
[null,null,null," Meerkosten Corona, indirect en toeslagen, gecontracteerd, niet gecontracteerd"]
[null,null,null," Subtotaal Geriatrische Revalidatie ",null,null,null,null,null,{"$f":"SUM(J77:J79)","v":0},{"$f":"SUM(K77:K79)","v":0},{"$f":"SUM(L77:L79)","v":0}]
[null,null,null," Eerstelijnsverblijf, code 671"]
[null,null,null," Gecontracteerde zorg"]
[null,null,null," Niet gecontracteerde zorg"]
[null,null,null," Meerkosten Corona, indirect en toeslagen, gecontracteerd, niet gecontracteerd"]
[null,null,null," Subtotaal Eerstelijnsverblijf ",null,null,null,null,null,{"$f":"SUM(J82:J84)","v":0},{"$f":"SUM(K82:K84)","v":0},{"$f":"SUM(L82:L84)","v":0}]
[null,null,null," Geneeskundige Zorg Specifieke Patiëntgroepen, code 672"]
[null,null,null," Gecontracteerde zorg"]
[null,null,null," Niet gecontracteerde zorg"]
[null,null,null," Meerkosten Corona, indirect en toeslagen, gecontracteerd, niet gecontracteerd"]
[null,null,null," Subtotaal Geneeskundige Zorg Specifieke Patiëntgroepen",null,null,null,null,null,{"$f":"SUM(J87:J89)","v":0},{"$f":"SUM(K87:K89)","v":0},{"$f":"SUM(L87:L89)","v":0}]
[null,null,null," TOTAAL RUBRIEK 11",null,null,null,null,null,{"$f":"SUM(J80,J85,J90)","v":0},{"$f":"SUM(K80,K85,K90)","v":0},{"$f":"SUM(L80,L85,L90)","v":0}]
[null,null,null,{"$f":"NOW()","v":"2025-03-06T09:47:57.760"},null,null,null,null,null,null,null,{"$f":"CONCATENATE(\"Contractinformatie, \",LOWER(A48))","v":"Contractinformatie, pagina 2"}]

{"sheet":"Controleoverzicht","index":8,"n_rows":217,"n_cols":12,"rows_kept":217,"cut":false,"hidden":false,"merged":[[202,3,202,8],[195,3,195,8],[196,3,196,8],[183,3,183,8],[184,3,184,8],[178,3,178,8],[150,3,151,8],[144,3,144,8],[158,3,158,8],[159,3,159,8],[160,3,160,8],[156,3,156,8],[157,3,157,8],[201,3,201,8],[198,3,198,8],[200,3,200,8],[199,3,199,8],[145,3,145,8],[154,3,154,8],[171,3,172,8],[173,3,173,8],[153,3,153,8],[213,3,213,8],[214,3,214,8],[205,3,206,8],[205,9,206,9],[205,10,206,10],[205,11,206,11],[207,3,207,8],[208,3,208,8],[209,3,209,8],[210,3,210,8],[211,3,211,8],[212,3,212,8],[193,10,194,10],[193,11,194,11],[197,3,197,8],[185,3,185,8],[181,3,182,8],[193,9,194,9],[186,3,186,8],[187,3,187,8],[190,3,190,8],[189,3,189,8],[193,3,194,8],[188,3,188,8],[27,11,28,11],[49,11,50,11],[27,10,28,10],[24,3,24,8],[22,11,23,11],[22,10,23,10],[22,9,23,9],[22,3,23,8],[87,3,87,9],[85,3,85,9],[69,3,69,9],[53,3,53,9],[52,3,52,9],[57,3,57,9],[60,3,60,9],[59,3,59,9],[63,3,63,9],[64,3,64,9],[65,3,65,9],[58,3,58,9],[56,3,56,9],[66,3,66,9],[67,3,67,9],[68,3,68,9],[9,11,10,11],[9,9,10,9],[13,9,14,9],[9,3,10,8],[9,10,10,10],[17,10,18,10],[17,9,18,9],[19,3,19,8],[13,3,14,8],[17,11,18,11],[13,11,14,11],[11,3,11,8],[15,3,15,8],[17,3,18,8],[13,10,14,10],[25,3,25,8],[70,3,70,9],[62,3,62,9],[37,3,37,9],[114,11,115,11],[114,9,115,9],[114,10,115,10],[114,3,115,8],[124,3,124,8],[100,10,101,10],[100,11,101,11],[118,3,118,8],[123,3,123,8],[120,3,120,8],[121,3,121,8],[122,3,122,8],[119,3,119,8],[100,9,101,9],[107,3,107,8],[104,3,104,8],[100,3,101,8],[102,3,102,8],[103,3,103,8],[116,3,116,8],[27,3,28,9],[39,3,39,9],[40,3,40,9],[32,3,32,9],[36,3,36,9],[20,3,20,8],[97,3,97,9],[73,3,73,9],[74,3,74,9],[72,3,72,9],[81,3,82,9],[90,3,90,9],[86,3,86,9],[84,3,84,9],[88,3,88,9],[89,3,89,9],[95,3,95,8],[92,3,92,9],[94,3,94,8],[83,3,83,9],[93,3,93,8],[96,3,96,8],[33,3,33,9],[29,3,29,9],[143,3,143,8],[155,3,155,8],[49,10,50,10],[30,3,30,9],[49,3,50,9],[54,3,54,9],[71,3,71,9],[61,3,61,9],[55,3,55,9],[42,3,42,9],[105,3,105,8],[81,10,82,10],[35,3,35,9],[41,3,41,9],[38,3,38,9],[51,3,51,9],[34,3,34,9],[31,3,31,9],[106,3,106,8],[81,11,82,11],[117,3,117,8],[171,11,172,11],[171,9,172,9],[171,10,172,10],[141,11,142,11],[150,11,151,11],[181,11,182,11],[181,9,182,9],[181,10,182,10],[91,3,91,9],[150,10,151,10],[152,3,152,8],[174,3,174,8],[175,3,175,8],[177,3,177,8],[176,3,176,8],[150,9,151,9],[147,3,147,8],[141,10,142,10],[148,3,148,8],[146,3,146,8],[141,3,142,8],[141,9,142,9]]}
[null,null,"SPECIFICATIES CONTROLEOVERZICHT"]
[]
[]
[]
[]
["Pagina 1",null,null,{"$f":"CONCATENATE(\"JAARSTAAT ZVW \", jaar_id)","v":"JAARSTAAT ZVW 2024"}]
[null,null,null,"CONTROLEOVERZICHT",null,null,null,null,null,null,null,{"$f":"CONCATENATE(\"UZOVI: \",naw_uzovi_zorgverzekeraar)","v":"UZOVI: 0000"}]
[null,null,null,{"$f":"IF(naw_uzovi_zorgverzekeraar<>\"0000\",CONCATENATE(UPPER(naw_naam_zorgverzekeraar),\", \",UPPER(naw_plaats_zorgverzekeraar)),\"\")","v":""}]
[null,null,null,"SPECIFIEKE INFORMATIE 2024 EN A"]
[null,null,null," SPECIFICATIES KOSTEN NAAR DEELBIJDRAGE",null,null,null,null,null,"LASTEN 2024 inclusief balanspost","Kosten naar deelbijdrage","Verschil"]
[]
[null,null,null," Totaal kosten naar deelbijdrage (totaal lasten t/m rubriek 16) - \n inclusief balanspost",null,null,null,null,null,{"$f":"Kostenverzamelstaat!I128","v":0},{"$f":"'Specifieke informatie A'!K17","v":0},{"$f":"IF(J12<>K12,J12-K12,\"\")","v":""}]
[]
[null,null,null," SPECIFICATIES KOSTEN NAAR DEELBIJDRAGE",null,null,null,null,null,"Ontvangen en \ngeaccepteerde \ndeclaraties mbt \n2022","Kosten naar deelbijdrage","Verschil"]
[]
[null,null,null," Totaal kosten naar deelbijdrage (totaal lasten t/m rubriek 16)",null,null,null,null,null,{"$f":"Kostenverzamelstaat!M128","v":0},{"$f":"'Specifieke informatie A'!L17","v":0},{"$f":"IF(J16<>K16,J16-K16,\"\")","v":""}]
[]
[null,null,null," KOSTEN PER CODENUMMER - LASTEN 2024 INCLUSIEF BALANSPOST",null,null,null,null,null,"Volgens\nkostenver- \nzamelstaat","Volgens\ndetail- \nspecificatie ","Verschil"]
[]
[null,null,null," 720 Grensoverschrijdende zorg -Kosten via verzekeraar",null,null,null,null,null,{"$f":"Kostenverzamelstaat!I122","v":0},{"$f":"'Specifieke informatie A'!K51","v":0},{"$f":"IF(J20<>K20,J20-K20,\"\")","v":""}]
[null,null,null," 721 Grensoverschrijdende zorg - Kosten via verbindingsorgaan",null,null,null,null,null,{"$f":"Kostenverzamelstaat!I123","v":0},{"$f":"'Specifieke informatie A'!K58","v":0},{"$f":"IF(J21<>K21,J21-K21,\"\")","v":""}]
[]
[null,null,null," KOSTEN PER CODENUMMER - ONTVANGEN EN GEACCEPTEERDE \n                                            DECLARATIES MBT 2022",null,null,null,null,null,"Volgens\nkostenver- \nzamelstaat","Volgens\ndetail- \nspecificatie ","Verschil"]
[]
[null,null,null," 720 Grensoverschrijdende zorg -Kosten via verzekeraar",null,null,null,null,null,{"$f":"Kostenverzamelstaat!M122","v":0},{"$f":"'Specifieke informatie A'!L51","v":0},{"$f":"IF(J25<>K25,J25-K25,\"\")","v":""}]
[null,null,null," 721 Grensoverschrijdende zorg - Kosten via verbindingsorgaan",null,null,null,null,null,{"$f":"Kostenverzamelstaat!M123","v":0},{"$f":"'Specifieke informatie A'!L58","v":0},{"$f":"IF(J26<>K26,J26-K26,\"\")","v":""}]
[]
[null,null,null," KOSTENVERZAMELSTAAT",null,null,null,null,null,null,"Kosten balanspost mbt 2024","Kosten balanspost mbt 2023"]
[]
[null,null,null," 503 Bijzondere betalingen",null,null,null,null,null,null,{"$f":"Kostenverzamelstaat!I16-Kostenverzamelstaat!J16","v":0},{"$f":"Kostenverzamelstaat!K16-Kostenverzamelstaat!L16","v":0}]
[null,null,null," 504 Avond-, nacht- en weekenddiensten",null,null,null,null,null,null,{"$f":"Kostenverzamelstaat!I17-Kostenverzamelstaat!J17","v":0},{"$f":"Kostenverzamelstaat!K17-Kostenverzamelstaat!L17","v":0}]
[null,null,null," 505 Inschrijftarieven",null,null,null,null,null,null,{"$f":"Kostenverzamelstaat!I18-Kostenverzamelstaat!J18","v":0},{"$f":"Kostenverzamelstaat!K18-Kostenverzamelstaat!L18","v":0}]
[null,null,null," 506 Consulttarieven",null,null,null,null,null,null,{"$f":"Kostenverzamelstaat!I19-Kostenverzamelstaat!J19","v":0},{"$f":"Kostenverzamelstaat!K19-Kostenverzamelstaat!L19","v":0}]
[null,null,null," 507 Overige tarieven",null,null,null,null,null,null,{"$f":"Kostenverzamelstaat!I20-Kostenverzamelstaat!J20","v":0},{"$f":"Kostenverzamelstaat!K20-Kostenverzamelstaat!L20","v":0}]
[null,null,null," 510 Multidisciplinaire zorg ",null,null,null,null,null,null,{"$f":"Kostenverzamelstaat!I21-Kostenverzamelstaat!J21","v":0},{"$f":"Kostenverzamelstaat!K21-Kostenverzamelstaat!L21","v":0}]
[null,null,null," 515 Resultaatbeloning en zorgvernieuwing huisartsen",null,null,null,null,null,null,{"$f":"Kostenverzamelstaat!I22-Kostenverzamelstaat!J22","v":0},{"$f":"Kostenverzamelstaat!K22-Kostenverzamelstaat!L22","v":0}]
[null,null,null," 516 Resultaatbeloning en zorgvernieuwing MDZ",null,null,null,null,null,null,{"$f":"Kostenverzamelstaat!I23-Kostenverzamelstaat!J23","v":0},{"$f":"Kostenverzamelstaat!K23-Kostenverzamelstaat!L23","v":0}]
[null,null,null," 520 Farmaceutische hulp",null,null,null,null,null,null,{"$f":"Kostenverzamelstaat!I26-Kostenverzamelstaat!J26","v":0},{"$f":"Kostenverzamelstaat!K26-Kostenverzamelstaat!L26","v":0}]
[null,null,null," 530 Kosten van verpleging en verzorging",null,null,null,null,null,null,{"$f":"Kostenverzamelstaat!I29-Kostenverzamelstaat!J29","v":0},{"$f":"Kostenverzamelstaat!K29-Kostenverzamelstaat!L29","v":0}]
[null,null,null," 545 Kosten specialisten mondziekten en kaakchirurgie",null,null,null,null,null,null,{"$f":"Kostenverzamelstaat!I55-Kostenverzamelstaat!J55","v":0},{"$f":"Kostenverzamelstaat!K55-Kostenverzamelstaat!L55","v":0}]
[null,null,null," 560.1 Kosten mondzorg volwassen verzekerden",null,null,null,null,null,null,{"$f":"Kostenverzamelstaat!I33-Kostenverzamelstaat!J33","v":0},{"$f":"Kostenverzamelstaat!K33-Kostenverzamelstaat!L33","v":0}]
[null,null,null," 560.2 Kosten mondzorg jeugdige verzekerden",null,null,null,null,null,null,{"$f":"Kostenverzamelstaat!I34-Kostenverzamelstaat!J34","v":0},{"$f":"Kostenverzamelstaat!K34-Kostenverzamelstaat!L34","v":0}]
[null,null,null," 561 Kosten gebitsprothesen",null,null,null,null,null,null,{"$f":"Kostenverzamelstaat!I35-Kostenverzamelstaat!J35","v":0},{"$f":"Kostenverzamelstaat!K35-Kostenverzamelstaat!L35","v":0}]
[null,null,null,{"$f":"NOW()","v":"2025-03-06T09:47:57.760"}]
[]
["Pagina 2",null,null,{"$f":"CONCATENATE(\"JAARSTAAT ZVW \", jaar_id)","v":"JAARSTAAT ZVW 2024"}]
[null,null,null,"CONTROLEOVERZICHT",null,null,null,null,null,null,null,{"$f":"CONCATENATE(\"UZOVI: \",naw_uzovi_zorgverzekeraar)","v":"UZOVI: 0000"}]
[null,null,null,{"$f":"IF(naw_uzovi_zorgverzekeraar<>\"0000\",CONCATENATE(UPPER(naw_naam_zorgverzekeraar),\", \",UPPER(naw_plaats_zorgverzekeraar)),\"\")","v":""}]
[null,null,null,"SPECIFIEKE INFORMATIE 2024 EN A - vervolg"]
[null,null,null," KOSTENVERZAMELSTAAT",null,null,null,null,null,null,"Kosten balanspost mbt 2024","Kosten balanspost mbt 2023"]
[]
[null,null,null," 580 Kosten verloskundige hulp door verloskundigen",null,null,null,null,null,null,{"$f":"Kostenverzamelstaat!I38-Kostenverzamelstaat!J38","v":0},{"$f":"Kostenverzamelstaat!K38-Kostenverzamelstaat!L38","v":0}]
[null,null,null," 582 Kosten Integrale geboortezorg ",null,null,null,null,null,null,{"$f":"Kostenverzamelstaat!I39-Kostenverzamelstaat!J39","v":0},{"$f":"Kostenverzamelstaat!K39-Kostenverzamelstaat!L39","v":0}]
[null,null,null," 610.1  NTS",null,null,null,null,null,null,{"$f":"Kostenverzamelstaat!I57-Kostenverzamelstaat!J57","v":0},{"$f":"Kostenverzamelstaat!K57-Kostenverzamelstaat!L57","v":0}]
[null,null,null," 610.2  Eerstelijnsdiagnostiek aangevraagd door eerstelijnszorg-aanbieders geleverd door huisartsenlaboratoria en Trombosediensten",null,null,null,null,null,null,{"$f":"Kostenverzamelstaat!I58-Kostenverzamelstaat!J58","v":0},{"$f":"Kostenverzamelstaat!K58-Kostenverzamelstaat!L58","v":0}]
[null,null,null," 611 Overige zorgproducten",null,null,null,null,null,null,{"$f":"Kostenverzamelstaat!I59-Kostenverzamelstaat!J59","v":0},{"$f":"Kostenverzamelstaat!K59-Kostenverzamelstaat!L59","v":0}]
[null,null,null," 612.1 Kosten addons - Dure geneesmiddelen",null,null,null,null,null,null,{"$f":"Kostenverzamelstaat!I60-Kostenverzamelstaat!J60","v":0},{"$f":"Kostenverzamelstaat!K60-Kostenverzamelstaat!L60","v":0}]
[null,null,null," 612.2  Kosten add-ons - IC",null,null,null,null,null,null,{"$f":"Kostenverzamelstaat!I61-Kostenverzamelstaat!J61","v":0},{"$f":"Kostenverzamelstaat!K61-Kostenverzamelstaat!L61","v":0}]
[null,null,null," 613.1 Integrale kosten DBC-zorgproduct gereguleerde segment",null,null,null,null,null,null,{"$f":"Kostenverzamelstaat!I62-Kostenverzamelstaat!J62","v":0},{"$f":"Kostenverzamelstaat!K62-Kostenverzamelstaat!L62","v":0}]
[null,null,null," 615.1 Integrale kosten DBC-zorgproduct vrije segment",null,null,null,null,null,null,{"$f":"Kostenverzamelstaat!I63-Kostenverzamelstaat!J63","v":0},{"$f":"Kostenverzamelstaat!K63-Kostenverzamelstaat!L63","v":0}]
[null,null,null," 619 Kosten en honoraria extramuraal werkende specialisten",null,null,null,null,null,null,{"$f":"Kostenverzamelstaat!I64-Kostenverzamelstaat!J64","v":0},{"$f":"Kostenverzamelstaat!K64-Kostenverzamelstaat!L64","v":0}]
[null,null,null," 806.2 Meerkosten COVID-19, toeslagen",null,null,null,null,null,null,{"$f":"Kostenverzamelstaat!I65-Kostenverzamelstaat!J65","v":0},{"$f":"Kostenverzamelstaat!K65-Kostenverzamelstaat!L65","v":0}]
[null,null,null," 620 Kosten fysiotherapie",null,null,null,null,null,null,{"$f":"Kostenverzamelstaat!I69-Kostenverzamelstaat!J69","v":0},{"$f":"Kostenverzamelstaat!K69-Kostenverzamelstaat!L69","v":0}]
[null,null,null," 621 Kosten oefentherapie Mensendieck/Cesar",null,null,null,null,null,null,{"$f":"Kostenverzamelstaat!I70-Kostenverzamelstaat!J70","v":0},{"$f":"Kostenverzamelstaat!K70-Kostenverzamelstaat!L70","v":0}]
[null,null,null," 623 Kosten logopedie",null,null,null,null,null,null,{"$f":"Kostenverzamelstaat!I71-Kostenverzamelstaat!J71","v":0},{"$f":"Kostenverzamelstaat!K71-Kostenverzamelstaat!L71","v":0}]
[null,null,null," 624 Kosten ergotherapie",null,null,null,null,null,null,{"$f":"Kostenverzamelstaat!I72-Kostenverzamelstaat!J72","v":0},{"$f":"Kostenverzamelstaat!K72-Kostenverzamelstaat!L72","v":0}]
[null,null,null," 625 Kosten dieetadvisering",null,null,null,null,null,null,{"$f":"Kostenverzamelstaat!I73-Kostenverzamelstaat!J73","v":0},{"$f":"Kostenverzamelstaat!K73-Kostenverzamelstaat!L73","v":0}]
[null,null,null," 626  Gecombineerde Leefstijl Interventie (GLI)",null,null,null,null,null,null,{"$f":"Kostenverzamelstaat!I74-Kostenverzamelstaat!J74","v":0},{"$f":"Kostenverzamelstaat!K74-Kostenverzamelstaat!L74","v":0}]
[null,null,null," 640 Hulpmiddelen",null,null,null,null,null,null,{"$f":"Kostenverzamelstaat!I77-Kostenverzamelstaat!J77","v":0},{"$f":"Kostenverzamelstaat!K77-Kostenverzamelstaat!L77","v":0}]
[null,null,null," 650 Kosten vervoer per ambulance/helikopter",null,null,null,null,null,null,{"$f":"Kostenverzamelstaat!I81-Kostenverzamelstaat!J81","v":0},{"$f":"Kostenverzamelstaat!K81-Kostenverzamelstaat!L81","v":0}]
[null,null,null," 650.1 Opbrengstenverrekeningen regionale ambulancevoorzieningen ",null,null,null,null,null,null,{"$f":"Kostenverzamelstaat!I82-Kostenverzamelstaat!J82","v":0},{"$f":"Kostenverzamelstaat!K82-Kostenverzamelstaat!L82","v":0}]
[null,null,null," 651 Kosten vervoer per openbaar vervoer, taxi en eigen auto",null,null,null,null,null,null,{"$f":"Kostenverzamelstaat!I83-Kostenverzamelstaat!J83","v":0},{"$f":"Kostenverzamelstaat!K83-Kostenverzamelstaat!L83","v":0}]
[null,null,null," 666 Kosten specialistische GGZ met verblijf",null,null,null,null,null,null,{"$f":"Kostenverzamelstaat!I100-Kostenverzamelstaat!J100","v":0},{"$f":"Kostenverzamelstaat!K100-Kostenverzamelstaat!L100","v":0}]
[null,null,null," 667 Kosten specialistische GGZ zonder verblijf",null,null,null,null,null,null,{"$f":"Kostenverzamelstaat!I101-Kostenverzamelstaat!J101","v":0},{"$f":"Kostenverzamelstaat!K101-Kostenverzamelstaat!L101","v":0}]
[null,null,null," 668 Kosten overige prestaties GGZ",null,null,null,null,null,null,{"$f":"Kostenverzamelstaat!I102-Kostenverzamelstaat!J102","v":0},{"$f":"Kostenverzamelstaat!K102-Kostenverzamelstaat!L102","v":0}]
[null,null,null,{"$f":"NOW()","v":"2025-03-06T09:47:57.760"}]
[]
["Pagina 3",null,null,{"$f":"CONCATENATE(\"JAARSTAAT ZVW \", jaar_id)","v":"JAARSTAAT ZVW 2024"}]
[null,null,null,"CONTROLEOVERZICHT"]
[null,null,null,{"$f":"IF(naw_uzovi_zorgverzekeraar<>\"0000\",CONCATENATE(UPPER(naw_naam_zorgverzekeraar),\", \",UPPER(naw_plaats_zorgverzekeraar)),\"\")","v":""}]
[null,null,null,"SPECIFIEKE INFORMATIE 2023 EN A - vervolg"]
[null,null,null," KOSTENVERZAMELSTAAT",null,null,null,null,null,null,"Kosten balanspost mbt 2024","Kosten balanspost mbt 2023"]
[]
[null,null,null," 670 Geriatische revalidatiezorg",null,null,null,null,null,null,{"$f":"Kostenverzamelstaat!I106-Kostenverzamelstaat!J106","v":0},{"$f":"Kostenverzamelstaat!K106-Kostenverzamelstaat!L106","v":0}]
[null,null,null," 671 Eerstelijnsverblijf ",null,null,null,null,null,null,{"$f":"Kostenverzamelstaat!I107-Kostenverzamelstaat!J107","v":0},{"$f":"Kostenverzamelstaat!K107-Kostenverzamelstaat!L107","v":0}]
[null,null,null," 672  Generalistische Geneeskundige Zorg Specifieke Patiëntgroepen",null,null,null,null,null,null,{"$f":"Kostenverzamelstaat!I108-Kostenverzamelstaat!J108","v":0},{"$f":"Kostenverzamelstaat!K108-Kostenverzamelstaat!L108","v":0}]
[null,null,null," 680 Kraamzorg",null,null,null,null,null,null,{"$f":"Kostenverzamelstaat!I113-Kostenverzamelstaat!J113","v":0},{"$f":"Kostenverzamelstaat!K113-Kostenverzamelstaat!L113","v":0}]
[null,null,null," 700 Overige kosten",null,null,null,null,null,null,{"$f":"Kostenverzamelstaat!I116-Kostenverzamelstaat!J116","v":0},{"$f":"Kostenverzamelstaat!K116-Kostenverzamelstaat!L116","v":0}]
[null,null,null," 701 Overige geneeskundige zorg ",null,null,null,null,null,null,{"$f":"Kostenverzamelstaat!I117-Kostenverzamelstaat!J117","v":0},{"$f":"Kostenverzamelstaat!K117-Kostenverzamelstaat!L117","v":0}]
[null,null,null," 702 Kosten van zorg zintuiglijk gehandicapten",null,null,null,null,null,null,{"$f":"Kostenverzamelstaat!I118-Kostenverzamelstaat!J118","v":0},{"$f":"Kostenverzamelstaat!K118-Kostenverzamelstaat!L118","v":0}]
[null,null,null," 703 Transformatiemiddelen IZA",null,null,null,null,null,null,{"$f":"Kostenverzamelstaat!I119-Kostenverzamelstaat!J119","v":0},{"$f":"Kostenverzamelstaat!K119-Kostenverzamelstaat!L119","v":0}]
[null,null,null," 720 Grensoverschrijdende zorg, kosten gemaakt in het buitenland, via verzekeraar ",null,null,null,null,null,null,{"$f":"Kostenverzamelstaat!I122-Kostenverzamelstaat!J122","v":0},{"$f":"Kostenverzamelstaat!K122-Kostenverzamelstaat!L122","v":0}]
[null,null,null," 721 Grensoverschrijdende zorg, kosten gemaakt in het buitenland, via verbingsorgaan",null,null,null,null,null,null,{"$f":"Kostenverzamelstaat!I123-Kostenverzamelstaat!J123","v":0},{"$f":"Kostenverzamelstaat!K123-Kostenverzamelstaat!L123","v":0}]
[null,null,null," 730 Kwaliteitsgelden",null,null,null,null,null,null,{"$f":"Kostenverzamelstaat!I126-Kostenverzamelstaat!J126","v":0},{"$f":"Kostenverzamelstaat!K126-Kostenverzamelstaat!L126","v":0}]
[null,null,null," 890.1 Opbrengsten verhaal",null,null,null,null,null,null,{"$f":"Kostenverzamelstaat!I142-Kostenverzamelstaat!J142","v":0},{"$f":"Kostenverzamelstaat!K142-Kostenverzamelstaat!L142","v":0}]
[null,null,null," 910 Schade t.l.v. het vrijwillig eigen risico",null,null,null,null,null,null,{"$f":"Kostenverzamelstaat!I143-Kostenverzamelstaat!J143","v":0},{"$f":"Kostenverzamelstaat!K143-Kostenverzamelstaat!L143","v":0}]
[null,null,null," 915 Schade t.l.v. het verplicht eigen risico",null,null,null,null,null,null,{"$f":"Kostenverzamelstaat!I144-Kostenverzamelstaat!J144","v":0},{"$f":"Kostenverzamelstaat!K144-Kostenverzamelstaat!L144","v":0}]
[null,null,null," 940 Netto premieopbrengsten",null,null,null,null,null,null,{"$f":"Kostenverzamelstaat!I145-Kostenverzamelstaat!J145","v":0},{"$f":"Kostenverzamelstaat!K145-Kostenverzamelstaat!L145","v":0}]
[]
[null,null,null,"VERGELIJKING SPECIFIEKE INFORMATIE 2024 EN C"]
[null,null,null," LASTEN 2024 INCLUSIEF BALANSPOST",null,null,null,null,null,"Kosten- verzamelstaat","Spec. inform. C\ndetailinformatie","Verschil"]
[]
[null,null,null," 610.2  Eerstelijnsdiagnostiek aangevraagd door eerstelijnszorg-aanbieders geleverd door huisartsenlaboratoria en Trombosediensten",null,null,null,null,null,{"$f":"Kostenverzamelstaat!I58","v":0},{"$f":"'Specifieke informatie C'!H24","v":0},{"$f":"IF(J104<>K104,J104-K104,\"\")","v":""}]
[null,null,null," 611 Overige zorgproducten (Instellingen)",null,null,null,null,null,{"$f":"Kostenverzamelstaat!I59","v":0},{"$f":"'Specifieke informatie C'!H33","v":0},{"$f":"IF(J104<>K104,J104-K104,\"\")","v":""}]
[null,null,null," 612.1 Kosten add ons Dure geneesmiddelen",null,null,null,null,null,{"$f":"Kostenverzamelstaat!I60","v":0},{"$f":"'Specifieke informatie C'!H42","v":0},""]
[null,null,null," 612.2 Kosten add-ons - IC",null,null,null,null,null,{"$f":"Kostenverzamelstaat!I61","v":0},{"$f":"'Specifieke informatie C'!H56","v":0},""]
[null,null,null," 613.1 Integrale kosten DBC-zorgproduct gereguleerde segment",null,null,null,null,null,{"$f":"Kostenverzamelstaat!I62","v":0},{"$f":"'Specifieke informatie C'!H68","v":0},""]
[null,null,null," 615.1 Integrale kosten DBC-zorgproduct vrije segment",null,null,null,null,null,{"$f":"Kostenverzamelstaat!I63","v":0},{"$f":"'Specifieke informatie C'!H78","v":0},""]
[null,null,null,{"$f":"NOW()","v":"2025-03-06T09:47:57.760"}]
[]
["Pagina 4",null,null,{"$f":"CONCATENATE(\"JAARSTAAT ZVW \", jaar_id)","v":"JAARSTAAT ZVW 2024"}]
[null,null,null,"CONTROLEOVERZICHT"]
[null,null,null,{"$f":"IF(naw_uzovi_zorgverzekeraar<>\"0000\",CONCATENATE(UPPER(naw_naam_zorgverzekeraar),\", \",UPPER(naw_plaats_zorgverzekeraar)),\"\")","v":""},null,null,null,null,null,null,null,{"$f":"CONCATENATE(\"UZOVI: \",naw_uzovi_zorgverzekeraar)","v":"UZOVI: 0000"}]
[null,null,null,"VERGELIJKING SPECIFIEKE INFORMATIE A EN C"]
[null,null,null," ONTVANGEN EN GEACCEPTEERDE DECLARATIES mbt 2024",null,null,null,null,null,"Kosten- verzamelstaat","Spec. inform. C\ndetailinformatie","Verschil"]
[]
[null,null,null," 610.2 Eerstelijnsdiagnostiek aangevraagd door eerstelijnszorg-aanbieders geleverd door huisartsenlaboratoria en Trombosediensten",null,null,null,null,null,{"$f":"Kostenverzamelstaat!J58","v":0},{"$f":"'Specifieke informatie C'!I24","v":0},{"$f":"IF(J117<>K117,J117-K117,\"\")","v":""}]
[null,null,null," 611 Overige zorgproducten (Instellingen)",null,null,null,null,null,{"$f":"Kostenverzamelstaat!J59","v":0},{"$f":"'Specifieke informatie C'!I33","v":0},{"$f":"IF(J118<>K118,J118-K118,\"\")","v":""}]
[null,null,null," 612.1 Kosten add-ons - Dure geneesmiddelen ",null,null,null,null,null,{"$f":"Kostenverzamelstaat!J60","v":0},{"$f":"'Specifieke informatie C'!I42","v":0},""]
[null,null,null," 612.2 Kosten add-ons - IC",null,null,null,null,null,{"$f":"Kostenverzamelstaat!J61","v":0},{"$f":"'Specifieke informatie C'!I56","v":0},""]
[null,null,null," 613.1 Integrale kosten DBC-zorgproduct gereguleerde segment",null,null,null,null,null,{"$f":"Kostenverzamelstaat!J62","v":0},{"$f":"'Specifieke informatie C'!I68","v":0},""]
[null,null,null," 615.1 Integrale kosten DBC-zorgproduct vrije segment",null,null,null,null,null,{"$f":"Kostenverzamelstaat!J63","v":0},{"$f":"'Specifieke informatie C'!I78","v":0},""]
[null,null,null," 701 Overige geneeskundige zorg",null,null,null,null,null,{"$f":"Kostenverzamelstaat!J117","v":0},{"$f":"'Specifieke informatie C'!K104","v":0},""]
[null,null,null," 702 Kosten van zorg zintuiglijk gehandicapten",null,null,null,null,null,{"$f":"Kostenverzamelstaat!J118","v":0},{"$f":"'Specifieke informatie C'!K110","v":0},""]
[null,null,null," 720 Kosten grensoverschrijdende zorg, via verzekeraar",null,null,null,null,null,{"$f":"Kostenverzamelstaat!J122","v":0},{"$f":"'Specifieke informatie C'!K118","v":0},""]
[]
[]
[]
[]
[]
[]
[]
[]
[]
[]
[null,null,null,{"$f":"NOW()","v":"2025-03-06T09:47:57.760"},null,null,null,null,null,null,null,{"$f":"CONCATENATE(\"Controleoverzicht \",LOWER(A111))","v":"Controleoverzicht pagina 4"}]
[]
["Pagina 5",null,null,{"$f":"CONCATENATE(\"JAARSTAAT ZVW \", jaar_id)","v":"JAARSTAAT ZVW 2024"}]
[null,null,null,"CONTROLEOVERZICHT"]
[null,null,null,{"$f":"IF(naw_uzovi_zorgverzekeraar<>\"0000\",CONCATENATE(UPPER(naw_naam_zorgverzekeraar),\", \",UPPER(naw_plaats_zorgverzekeraar)),\"\")","v":""},null,null,null,null,null,null,null,{"$f":"CONCATENATE(\"UZOVI: \",naw_uzovi_zorgverzekeraar)","v":"UZOVI: 0000"}]
[null,null,null,"VERGELIJKING SPECIFIEKE INFORMATIE A EN C"]
[null,null,null," LASTEN 2023 INCLUSIEF BALANSPOST",null,null,null,null,null,"Kosten- verzamelstaat","Spec. inform. C\ndetailinformatie","Verschil "]
[]
[null,null,null," 610.2  Eerstelijnsdiagnostiek aangevraagd door eerstelijnszorg-aanbieders geleverd door huisartsenlaboratoria en Trombosediensten",null,null,null,null,null,{"$f":"Kostenverzamelstaat!K58","v":0},{"$f":"'Specifieke informatie C'!J24","v":0},{"$f":"IF(J144<>K144,J144-K144,\"\")","v":""}]
[null,null,null," 611 Overige zorgproducten (Instellingen)",null,null,null,null,null,{"$f":"Kostenverzamelstaat!K59","v":0},{"$f":"'Specifieke informatie C'!J33","v":0},""]
[null,null,null," 612.1 Kosten add-ons - Dure geneesmiddelen ",null,null,null,null,null,{"$f":"Kostenverzamelstaat!K60","v":0},{"$f":"'Specifieke informatie C'!J42","v":0}]
[null,null,null," 612.2 Kosten add ons",null,null,null,null,null,{"$f":"Kostenverzamelstaat!K61","v":0},{"$f":"'Specifieke informatie C'!J56","v":0},""]
[null,null,null," 613.1 Integrale kosten DBC-zorgproduct gereguleerde segment ",null,null,null,null,null,{"$f":"Kostenverzamelstaat!K62","v":0},{"$f":"'Specifieke informatie C'!J68","v":0},""]
[null,null,null," 615.1 Integrale kosten DBC-zorgproduct vrije segment ",null,null,null,null,null,{"$f":"Kostenverzamelstaat!K63","v":0},{"$f":"'Specifieke informatie C'!J78","v":0},""]
[]
[null,null,null," ONTVANGEN EN GEACCEPTEERDE DECLARATIES mbt 2023",null,null,null,null,null,"Kosten- verzamelstaat","Spec. inform. C\ndetailinformatie","Verschil"]
[]
[null,null,null," 610.2  Eerstelijnsdiagnostiek aangevraagd door eerstelijnszorg-aanbieders geleverd door huisartsenlaboratoria en Trombosediensten",null,null,null,null,null,{"$f":"Kostenverzamelstaat!L58","v":0},{"$f":"'Specifieke informatie C'!K24","v":0},{"$f":"IF(J153<>K153,J153-K153,\"\")","v":""}]
[null,null,null," 611 Overige zorgproducten (Instellingen)",null,null,null,null,null,{"$f":"Kostenverzamelstaat!L59","v":0},{"$f":"'Specifieke informatie C'!K33","v":0},{"$f":"IF(J154<>K154,J154-K154,\"\")","v":""}]
[null,null,null," 612.1 Kosten add-ons - Dure geneesmiddelen ",null,null,null,null,null,{"$f":"Kostenverzamelstaat!L60","v":0},{"$f":"'Specifieke informatie C'!K42","v":0}]
[null,null,null," 612.2 Kosten add-ons - IC",null,null,null,null,null,{"$f":"Kostenverzamelstaat!L61","v":0},{"$f":"'Specifieke informatie C'!K56","v":0},{"$f":"IF(J156<>K156,J156-K156,\"\")","v":""}]
[null,null,null," 613.1 Integrale kosten DBC-zorgproduct gereguleerde segment",null,null,null,null,null,{"$f":"Kostenverzamelstaat!L62","v":0},{"$f":"'Specifieke informatie C'!K68","v":0},""]
[null,null,null," 615.1 Integrale kosten DBC-zorgproduct vrije segment",null,null,null,null,null,{"$f":"Kostenverzamelstaat!L63","v":0},{"$f":"'Specifieke informatie C'!K78","v":0},""]
[null,null,null," 701 Overige geneeskundige zorg",null,null,null,null,null,{"$f":"Kostenverzamelstaat!L117","v":0},{"$f":"'Specifieke informatie C'!L104","v":0},""]
[null,null,null," 702 Kosten van zorg zintuiglijk gehandicapten",null,null,null,null,null,{"$f":"Kostenverzamelstaat!L118","v":0},{"$f":"'Specifieke informatie C'!L110","v":0},""]
[null,null,null," 720 Kosten grensoverschrijdende zorg, via verzekeraar",null,null,null,null,null,{"$f":"Kostenverzamelstaat!L122","v":0},{"$f":"'Specifieke informatie C'!L118","v":0},""]
[]
[]
[]
[null,null,null,{"$f":"NOW()","v":"2025-03-06T09:47:57.760"},null,null,null,null,null,null,null,{"$f":"CONCATENATE(\"Controleoverzicht \",LOWER(A138))","v":"Controleoverzicht pagina 5"}]
[]
["Pagina 6",null,null,{"$f":"CONCATENATE(\"JAARSTAAT ZVW \", jaar_id)","v":"JAARSTAAT ZVW 2024"}]
[null,null,null,"CONTROLEOVERZICHT"]
[null,null,null,{"$f":"IF(naw_uzovi_zorgverzekeraar<>\"0000\",CONCATENATE(UPPER(naw_naam_zorgverzekeraar),\", \",UPPER(naw_plaats_zorgverzekeraar)),\"\")","v":""},null,null,null,null,null,null,null,{"$f":"CONCATENATE(\"UZOVI: \",naw_uzovi_zorgverzekeraar)","v":"UZOVI: 0000"}]
[]
[null,null,null,"VERGELIJKING SPECIFIEKE INFORMATIE A EN C"]
[null,null,null," ONTVANGEN EN GEACCEPTEERDE DECLARATIES mbt 2022 ",null,null,null,null,null,"Kosten- verzamelstaat","Spec. inform. C\ndetailinformatie","Verschil "]
[]
[null,null,null," 610 Overige kosten ziekenhuiszorg en curatieve zorg ",null,null,null,null,null,{"$f":"Kostenverzamelstaat!M56","v":0},{"$f":"'Specifieke informatie C'!L17","v":0},{"$f":"IF(J174<>K174,J174-K174,\"\")","v":""}]
[null,null,null," 611 Overige zorgproducten (Instellingen)",null,null,null,null,null,{"$f":"Kostenverzamelstaat!M59","v":0},{"$f":"'Specifieke informatie C'!L33","v":0},""]
[null,null,null," 612.1  Kosten add-ons - Dure geneesmiddelen",null,null,null,null,null,{"$f":"Kostenverzamelstaat!M60","v":0},{"$f":"'Specifieke informatie C'!L42","v":0},""]
[null,null,null," 612.2 Kosten add-ons - IC",null,null,null,null,null,{"$f":"Kostenverzamelstaat!M61","v":0},{"$f":"'Specifieke informatie C'!L56","v":0},""]
[null,null,null," 613.1 Integrale kosten DBC-zorgproduct gereguleerde segment",null,null,null,null,null,{"$f":"Kostenverzamelstaat!M62","v":0},{"$f":"'Specifieke informatie C'!L68","v":0},""]
[null,null,null," 615.1 Integrale kosten DBC-zorgproduct vrije segment",null,null,null,null,null,{"$f":"Kostenverzamelstaat!M63","v":0},{"$f":"'Specifieke informatie C'!L78","v":0},""]
[]
[null,null,null,"VERGELIJKING SPECIFIEKE INFORMATIE 2024 EN CONTRACTINFORMATIE"]
[null,null,null," LASTEN 2024 INCLUSIEF BALANSPOST",null,null,null,null,null,"Kosten- verzamelstaat","Spec. inform. C\ncontract inform.","Verschil "]
[]
[null,null,null," Totaal code 503, 504, 505, 506, 507, 515 ",null,null,null,null,null,{"$f":"SUM(Kostenverzamelstaat!I16+Kostenverzamelstaat!I17+Kostenverzamelstaat!I18+Kostenverzamelstaat!I19+Kostenverzamelstaat!I20+Kostenverzamelstaat!I22)","v":0},{"$f":"Contractinformatie!J16","v":0},{"$f":"IF(J184<>K184,J184-K184,\"\")","v":""}]
[null,null,null," Totaal code 510, 516 ",null,null,null,null,null,{"$f":"SUM(Kostenverzamelstaat!I21+Kostenverzamelstaat!I23)","v":0},{"$f":"Contractinformatie!J20","v":0},""]
[null,null,null," Totaal Rubriek 01",null,null,null,null,null,{"$f":"Kostenverzamelstaat!I24","v":0},{"$f":"Contractinformatie!J21","v":0},""]
[null,null,null," Totaal Rubriek 03",null,null,null,null,null,{"$f":"Kostenverzamelstaat!I31","v":0},{"$f":"Contractinformatie!J30","v":0},""]
[null,null,null," Totaal Rubriek 06",null,null,null,null,null,{"$f":"Kostenverzamelstaat!I67","v":0},{"$f":"Contractinformatie!J42","v":0},""]
[null,null,null," Totaal Rubriek 10",null,null,null,null,null,{"$f":"Kostenverzamelstaat!I104","v":0},{"$f":"Contractinformatie!J61","v":0},{"$f":"IF(J189<>K189,J189-K189,\"\")","v":""}]
[null,null,null," Totaal Rubriek 11",null,null,null,null,null,{"$f":"Kostenverzamelstaat!I111","v":0},{"$f":"Contractinformatie!J91","v":0},{"$f":"IF(J190<>K190,J190-K190,\"\")","v":""}]
[null,null,null," Totaal Code 702",null,null,null,null,null,{"$f":"Kostenverzamelstaat!I118","v":0},{"$f":"Contractinformatie!J71","v":0},{"$f":"IF(J191<>K191,J191-K191,\"\")","v":""}]
[]
[null,null,null,"VERGELIJKING SPECIFIEKE INFORMATIE 2023 EN CONTRACTINFORMATIE"]
[null,null,null," LASTEN 2023 INCLUSIEF BALANSPOST",null,null,null,null,null,"Kosten- verzamelstaat","Spec. inform. C\ncontract inform.","Verschil "]
[]
[null,null,null," Totaal code 503, 504, 505, 506, 507, 515 ",null,null,null,null,null,{"$f":"SUM(Kostenverzamelstaat!K16+Kostenverzamelstaat!K17+Kostenverzamelstaat!K18+Kostenverzamelstaat!K19+Kostenverzamelstaat!K20+Kostenverzamelstaat!K22)","v":0},{"$f":"Contractinformatie!K16","v":0},{"$f":"IF(J196<>K196,J196-K196,\"\")","v":""}]
[null,null,null," Totaal code 510, 516 ",null,null,null,null,null,{"$f":"SUM(Kostenverzamelstaat!K21+Kostenverzamelstaat!K23)","v":0},{"$f":"Contractinformatie!K20","v":0},""]
[null,null,null," Totaal Rubriek 01 ",null,null,null,null,null,{"$f":"Kostenverzamelstaat!K24","v":0},{"$f":"Contractinformatie!K21","v":0},""]
[null,null,null," Totaal Rubriek 03",null,null,null,null,null,{"$f":"Kostenverzamelstaat!K31","v":0},{"$f":"Contractinformatie!K30","v":0},""]
[null,null,null," Totaal Rubriek 06",null,null,null,null,null,{"$f":"Kostenverzamelstaat!K67","v":0},{"$f":"Contractinformatie!K42","v":0},""]
[null,null,null," Totaal Rubriek 10",null,null,null,null,null,{"$f":"Kostenverzamelstaat!K104","v":0},{"$f":"Contractinformatie!K61","v":0},""]
[null,null,null," Totaal Rubriek 11",null,null,null,null,null,{"$f":"Kostenverzamelstaat!K111","v":0},{"$f":"Contractinformatie!K91","v":0},""]
[null,null,null," Totaal Code 702",null,null,null,null,null,{"$f":"Kostenverzamelstaat!K118","v":0},{"$f":"Contractinformatie!K71","v":0},{"$f":"IF(J203<>K203,J203-K203,\"\")","v":""}]
[]
[null,null,null,"VERGELIJKING SPECIFIEKE INFORMATIE 2022 EN CONTRACTINFORMATIE"]
[null,null,null," LASTEN 2022 INCLUSIEF BALANSPOST",null,null,null,null,null,"Kosten- verzamelstaat","Spec. inform. C\ncontract inform.","Verschil "]
[]
[null,null,null," Totaal code 503, 504, 505, 506, 507, 515 ",null,null,null,null,null,{"$f":"SUM(Kostenverzamelstaat!M16+Kostenverzamelstaat!M17+Kostenverzamelstaat!M18+Kostenverzamelstaat!M19+Kostenverzamelstaat!M20+Kostenverzamelstaat!M22)","v":0},{"$f":"Contractinformatie!L16","v":0},{"$f":"IF(J208<>K208,J208-K208,\"\")","v":""}]
[null,null,null," Totaal code 510, 516 ",null,null,null,null,null,{"$f":"SUM(Kostenverzamelstaat!M21+Kostenverzamelstaat!M23)","v":0},{"$f":"Contractinformatie!L20","v":0},""]
[null,null,null," Totaal Rubriek 01 ",null,null,null,null,null,{"$f":"Kostenverzamelstaat!M24","v":0},{"$f":"Contractinformatie!L21","v":0},""]
[null,null,null," Totaal Rubriek 03",null,null,null,null,null,{"$f":"Kostenverzamelstaat!M31","v":0},{"$f":"Contractinformatie!L30","v":0},""]
[null,null,null," Totaal Rubriek 06",null,null,null,null,null,{"$f":"Kostenverzamelstaat!M67","v":0},{"$f":"Contractinformatie!L42","v":0},""]
[null,null,null," Totaal Rubriek 10",null,null,null,null,null,{"$f":"Kostenverzamelstaat!M104","v":0},{"$f":"Contractinformatie!L61","v":0},""]
[null,null,null," Totaal Rubriek 11",null,null,null,null,null,{"$f":"Kostenverzamelstaat!M111","v":0},{"$f":"Contractinformatie!L91","v":0},""]
[null,null,null," Totaal Code 702",null,null,null,null,null,{"$f":"Kostenverzamelstaat!M118","v":0},{"$f":"Contractinformatie!L71","v":0},{"$f":"IF(J215<>K215,J215-K215,\"\")","v":""}]
[]
[null,null,null,{"$f":"NOW()","v":"2025-03-06T09:47:57.760"}]

{"sheet":"Blad1","index":9,"n_rows":712,"n_cols":12,"rows_kept":712,"cut":false,"hidden":true,"merged":[]}
[]
[]
[]
[]
[]
[]
[]
[]
[]
[]
[]
[null,null,null,null,"vcd_spec_idvar","vcd_waarde_flt","vcd_waarde_txt","vcd_toelichting_txt","vcd_spec1_idvar","vcd_spec2_idvar","vcd_spec3_idvar","vcd_attrib_idvar"]
[null,null,null,null,"xstaat_kdrwet_id_","*=0","ZVWY","Excel numeriek om te zetten sleutel kdrwet via waarden","xstaat","kdrwet","id",""]
[null,null,null,null,"xstaat_kdrwet_idjmd_","*=0",20241231,"Excel numeriek om te zetten sleutel kdrwet periode","xstaat","kdrwet","idjmd",""]
[null,null,null,null,"xstaat_uzovi_filename_","*=0","*=@CEL(\"bestandsnaam\")","Excel numeriek filenaam bevat ook sleutels","xstaat","uzovi","filename",""]
[null,null,null,null,"xstaat_uzovi_id_","*=0","*=NUMERIEKE.WAARDE(NAW_gegevens!$B$6)","Excel numeriek om te zetten sleutel uzovi","xstaat","uzovi","id",""]
[null,null,null,null,"xstaat_uzovi_idvrs_","*=0","01","Excel numeriek om te zetten sleutel uzovi versie levering","xstaat","uzovi","idvrs",""]
[null,null,null,null,"zvkx01_c__TY0V01","*=Kostenverzamelstaat!$I$24"]
[null,null,null,null,"zvkx01_a__TY0V01","*=Kostenverzamelstaat!$J$24"]
[null,null,null,null,"zvkx01_c__TY1V01","*=Kostenverzamelstaat!$K$24"]
[null,null,null,null,"zvkx01_a__TY1V01","*=Kostenverzamelstaat!$L$24"]
[null,null,null,null,"zvkx01_a__TY2V01","*=Kostenverzamelstaat!$M$24"]
[null,null,null,null,"zvkx01_a__TY3V01","*=Kostenverzamelstaat!$N$24"]
[null,null,null,null,"zvkx02_c__TY0V01","*=Kostenverzamelstaat!$I$27"]
[null,null,null,null,"zvkx02_a__TY0V01","*=Kostenverzamelstaat!$J$27"]
[null,null,null,null,"zvkx02_c__TY1V01","*=Kostenverzamelstaat!$K$27"]
[null,null,null,null,"zvkx02_a__TY1V01","*=Kostenverzamelstaat!$L$27"]
[null,null,null,null,"zvkx02_a__TY2V01","*=Kostenverzamelstaat!$M$27"]
[null,null,null,null,"zvkx02_a__TY3V01","*=Kostenverzamelstaat!$N$27"]
[null,null,null,null,"zvkx03_c__TY0V01","*=Kostenverzamelstaat!$I$31"]
[null,null,null,null,"zvkx03_a__TY0V01","*=Kostenverzamelstaat!$J$31"]
[null,null,null,null,"zvkx03_c__TY1V01","*=Kostenverzamelstaat!$K$31"]
[null,null,null,null,"zvkx03_a__TY1V01","*=Kostenverzamelstaat!$L$31"]
[null,null,null,null,"zvkx03_a__TY2V01","*=Kostenverzamelstaat!$M$31"]
[null,null,null,null,"zvkx03_a__TY3V01","*=Kostenverzamelstaat!$N$31"]
[null,null,null,null,"zvkx04_c__TY0V01","*=Kostenverzamelstaat!$I$36"]
[null,null,null,null,"zvkx04_a__TY0V01","*=Kostenverzamelstaat!$J$36"]
[null,null,null,null,"zvkx04_c__TY1V01","*=Kostenverzamelstaat!$K$36"]
[null,null,null,null,"zvkx04_a__TY1V01","*=Kostenverzamelstaat!$L$36"]
[null,null,null,null,"zvkx04_a__TY2V01","*=Kostenverzamelstaat!$M$36"]
[null,null,null,null,"zvkx04_a__TY3V01","*=Kostenverzamelstaat!$N$36"]
[null,null,null,null,"zvkx05_c__TY0V01","*=Kostenverzamelstaat!$I$40"]
[null,null,null,null,"zvkx05_a__TY0V01","*=Kostenverzamelstaat!$J$40"]
[null,null,null,null,"zvkx05_c__TY1V01","*=Kostenverzamelstaat!$K$40"]
[null,null,null,null,"zvkx05_a__TY1V01","*=Kostenverzamelstaat!$L$40"]
[null,null,null,null,"zvkx05_a__TY2V01","*=Kostenverzamelstaat!$M$40"]
[null,null,null,null,"zvkx05_a__TY3V01","*=Kostenverzamelstaat!$N$40"]
[null,null,null,null,"zvkx06_c__TY0V01","*=Kostenverzamelstaat!$I$67"]
[null,null,null,null,"zvkx06_a__TY0V01","*=Kostenverzamelstaat!$J$67"]
[null,null,null,null,"zvkx06_c__TY1V01","*=Kostenverzamelstaat!$K$67"]
[null,null,null,null,"zvkx06_a__TY1V01","*=Kostenverzamelstaat!$L$67"]
[null,null,null,null,"zvkx06_a__TY2V01","*=Kostenverzamelstaat!$M$67"]
[null,null,null,null,"zvkx06_a__TY3V01","*=Kostenverzamelstaat!$N$67"]
[null,null,null,null,"zvkx07_c__TY0V01","*=Kostenverzamelstaat!$I$75"]
[null,null,null,null,"zvkx07_a__TY0V01","*=Kostenverzamelstaat!$J$75"]
[null,null,null,null,"zvkx07_c__TY1V01","*=Kostenverzamelstaat!$K$75"]
[null,null,null,null,"zvkx07_a__TY1V01","*=Kostenverzamelstaat!$L$75"]
[null,null,null,null,"zvkx07_a__TY2V01","*=Kostenverzamelstaat!$M$75"]
[null,null,null,null,"zvkx07_a__TY3V01","*=Kostenverzamelstaat!$N$75"]
[null,null,null,null,"zvkx08_c__TY0V01","*=Kostenverzamelstaat!$I$79"]
[null,null,null,null,"zvkx08_a__TY0V01","*=Kostenverzamelstaat!$J$79"]
[null,null,null,null,"zvkx08_c__TY1V01","*=Kostenverzamelstaat!$K$79"]
[null,null,null,null,"zvkx08_a__TY1V01","*=Kostenverzamelstaat!$L$79"]
[null,null,null,null,"zvkx08_a__TY2V01","*=Kostenverzamelstaat!$M$79"]
[null,null,null,null,"zvkx08_a__TY3V01","*=Kostenverzamelstaat!$N$79"]
[null,null,null,null,"zvkx09_c__TY0V01","*=Kostenverzamelstaat!$I$85"]
[null,null,null,null,"zvkx09_a__TY0V01","*=Kostenverzamelstaat!$J$85"]
[null,null,null,null,"zvkx09_c__TY1V01","*=Kostenverzamelstaat!$K$85"]
[null,null,null,null,"zvkx09_a__TY1V01","*=Kostenverzamelstaat!$L$85"]
[null,null,null,null,"zvkx09_a__TY2V01","*=Kostenverzamelstaat!$M$85"]
[null,null,null,null,"zvkx09_a__TY3V01","*=Kostenverzamelstaat!$N$85"]
[null,null,null,null,"zvkx10_c__TY0V01","*=Kostenverzamelstaat!$I$104"]
[null,null,null,null,"zvkx10_a__TY0V01","*=Kostenverzamelstaat!$J$104"]
[null,null,null,null,"zvkx10_c__TY1V01","*=Kostenverzamelstaat!$K$104"]
[null,null,null,null,"zvkx10_a__TY1V01","*=Kostenverzamelstaat!$L$104"]
[null,null,null,null,"zvkx10_a__TY2V01","*=Kostenverzamelstaat!$M$104"]
[null,null,null,null,"zvkx10_a__TY3V01","*=Kostenverzamelstaat!$N$104"]
[null,null,null,null,"zvkx11_c__TY0V01","*=Kostenverzamelstaat!$I$111"]
[null,null,null,null,"zvkx11_a__TY0V01","*=Kostenverzamelstaat!$J$111"]
[null,null,null,null,"zvkx11_c__TY1V01","*=Kostenverzamelstaat!$K$111"]
[null,null,null,null,"zvkx11_a__TY1V01","*=Kostenverzamelstaat!$L$111"]
[null,null,null,null,"zvkx11_a__TY2V01","*=Kostenverzamelstaat!$M$111"]
[null,null,null,null,"zvkx11_a__TY3V01","*=Kostenverzamelstaat!$N$111"]
[null,null,null,null,"zvkx12_c__TY0V01","*=Kostenverzamelstaat!$I$114"]
[null,null,null,null,"zvkx12_a__TY0V01","*=Kostenverzamelstaat!$J$114"]
[null,null,null,null,"zvkx12_c__TY1V01","*=Kostenverzamelstaat!$K$114"]
[null,null,null,null,"zvkx12_a__TY1V01","*=Kostenverzamelstaat!$L$114"]
[null,null,null,null,"zvkx12_a__TY2V01","*=Kostenverzamelstaat!$M$114"]
[null,null,null,null,"zvkx12_a__TY3V01","*=Kostenverzamelstaat!$N$114"]
[null,null,null,null,"zvkx13_c__TY0V01","*=Kostenverzamelstaat!$I$120"]
[null,null,null,null,"zvkx13_a__TY0V01","*=Kostenverzamelstaat!$J$120"]
[null,null,null,null,"zvkx13_c__TY1V01","*=Kostenverzamelstaat!$K$120"]
[null,null,null,null,"zvkx13_a__TY1V01","*=Kostenverzamelstaat!$L$120"]
[null,null,null,null,"zvkx13_a__TY2V01","*=Kostenverzamelstaat!$M$120"]
[null,null,null,null,"zvkx13_a__TY3V01","*=Kostenverzamelstaat!$N$120"]
[null,null,null,null,"zvkx15_c__TY0V01","*=Kostenverzamelstaat!$I$124"]
[null,null,null,null,"zvkx15_a__TY0V01","*=Kostenverzamelstaat!$J$124"]
[null,null,null,null,"zvkx15_c__TY1V01","*=Kostenverzamelstaat!$K$124"]
[null,null,null,null,"zvkx15_a__TY1V01","*=Kostenverzamelstaat!$L$124"]
[null,null,null,null,"zvkx15_a__TY2V01","*=Kostenverzamelstaat!$M$124"]
[null,null,null,null,"zvkx15_a__TY3V01","*=Kostenverzamelstaat!$N$124"]
[null,null,null,null,"zvkx16_c__TY0V01","*=Kostenverzamelstaat!$I$127"]
[null,null,null,null,"zvkx16_a__TY0V01","*=Kostenverzamelstaat!$J$127"]
[null,null,null,null,"zvkx16_c__TY1V01","*=Kostenverzamelstaat!$K$127"]
[null,null,null,null,"zvkx16_a__TY1V01","*=Kostenverzamelstaat!$L$127"]
[null,null,null,null,"zvkx16_a__TY2V01","*=Kostenverzamelstaat!$M$127"]
[null,null,null,null,"zvkx16_a__TY3V01","*=Kostenverzamelstaat!$N$127"]
[null,null,null,null,"zvkx_c__TY0V01","*=Kostenverzamelstaat!$I$128"]
[null,null,null,null,"zvkx_a__TY0V01","*=Kostenverzamelstaat!$J$128"]
[null,null,null,null,"zvkx_c__TY1V01","*=Kostenverzamelstaat!$K$128"]
[null,null,null,null,"zvkx_a__TY1V01","*=Kostenverzamelstaat!$L$128"]
[null,null,null,null,"zvkx_a__TY2V01","*=Kostenverzamelstaat!$M$128"]
[null,null,null,null,"zvkx_a__TY3V01","*=Kostenverzamelstaat!$N$128"]
[null,null,null,null,"zvkx01_c503__TY0V01","*=Kostenverzamelstaat!$I$16","","Huisartsen- bijz betalingen- incl balans","zvkx01","c503","","TY0V01"]
[null,null,null,null,"zvkx01_a503__TY0V01","*=Kostenverzamelstaat!$J$16","","Huisartsen- bijz betalingen- geaccepteerd","zvkx01","a503","","TY0V01"]
[null,null,null,null,"zvkx01_c503__TY1V01","*=Kostenverzamelstaat!$K$16","","Huisartsen- bijz betalingen- incl balans","zvkx01","c503","","TY1V01"]
[null,null,null,null,"zvkx01_a503__TY1V01","*=Kostenverzamelstaat!$L$16","","Huisartsen- bijz betalingen- geaccepteerd","zvkx01","a503","","TY1V01"]
[null,null,null,null,"zvkx01_a503__TY2V01","*=Kostenverzamelstaat!$M$16","","Huisartsen- bijz betalingen- geaccepteerd","zvkx01","a503","","TY2V01"]
[null,null,null,null,"zvkx01_a503__TY3V01","*=Kostenverzamelstaat!$N$16","","Huisartsen- bijz betalingen- geaccepteerd","zvkx01","a503","","TY3V01"]
[null,null,null,null,"zvkx01_c504__TY0V01","*=Kostenverzamelstaat!$I$17","","Huisartsen- bijz diensttijden- incl balans","zvkx01","c504","","TY0V01"]
[null,null,null,null,"zvkx01_a504__TY0V01","*=Kostenverzamelstaat!$J$17","","Huisartsen- bijz diensttijden- geaccepteerd","zvkx01","a504","","TY0V01"]
[null,null,null,null,"zvkx01_c504__TY1V01","*=Kostenverzamelstaat!$K$17","","Huisartsen- bijz diensttijden- incl balans","zvkx01","c504","","TY1V01"]
[null,null,null,null,"zvkx01_a504__TY1V01","*=Kostenverzamelstaat!$L$17","","Huisartsen- bijz diensttijden- geaccepteerd","zvkx01","a504","","TY1V01"]
[null,null,null,null,"zvkx01_a504__TY2V01","*=Kostenverzamelstaat!$M$17","","Huisartsen- bijz diensttijden- geaccepteerd","zvkx01","a504","","TY2V01"]
[null,null,null,null,"zvkx01_a504__TY3V01","*=Kostenverzamelstaat!$N$17","","Huisartsen- bijz diensttijden- geaccepteerd","zvkx01","a504","","TY3V01"]
[null,null,null,null,"zvkx01_c505__TY0V01","*=Kostenverzamelstaat!$I$18","","Huisartsen- Inschrijvingen- incl balans","zvkx01","c505","","TY0V01"]
[null,null,null,null,"zvkx01_a505__TY0V01","*=Kostenverzamelstaat!$J$18","","Huisartsen- Inschrijvingen- geaccepteerd","zvkx01","a505","","TY0V01"]
[null,null,null,null,"zvkx01_c505__TY1V01","*=Kostenverzamelstaat!$K$18","","Huisartsen- Inschrijvingen- incl balans","zvkx01","c505","","TY1V01"]
[null,null,null,null,"zvkx01_a505__TY1V01","*=Kostenverzamelstaat!$L$18","","Huisartsen- Inschrijvingen- geaccepteerd","zvkx01","a505","","TY1V01"]
[null,null,null,null,"zvkx01_a505__TY2V01","*=Kostenverzamelstaat!$M$18","","Huisartsen- Inschrijvingen- geaccepteerd","zvkx01","a505","","TY2V01"]
[null,null,null,null,"zvkx01_a505__TY3V01","*=Kostenverzamelstaat!$N$18","","Huisartsen- Inschrijvingen- geaccepteerd","zvkx01","a505","","TY3V01"]
[null,null,null,null,"zvkx01_c506__TY0V01","*=Kostenverzamelstaat!$I$19","","Huisartsen- Consult- incl balans","zvkx01","c506","","TY0V01"]
[null,null,null,null,"zvkx01_a506__TY0V01","*=Kostenverzamelstaat!$J$19","","Huisartsen- Consult- geaccepteerd","zvkx01","a506","","TY0V01"]
[null,null,null,null,"zvkx01_c506__TY1V01","*=Kostenverzamelstaat!$K$19","","Huisartsen- Consult- incl balans","zvkx01","c506","","TY1V01"]
[null,null,null,null,"zvkx01_a506__TY1V01","*=Kostenverzamelstaat!$L$19","","Huisartsen- Consult- geaccepteerd","zvkx01","a506","","TY1V01"]
[null,null,null,null,"zvkx01_a506__TY2V01","*=Kostenverzamelstaat!$M$19","","Huisartsen- Consult- geaccepteerd","zvkx01","a506","","TY2V01"]
[null,null,null,null,"zvkx01_a506__TY3V01","*=Kostenverzamelstaat!$N$19","","Huisartsen- Consult- geaccepteerd","zvkx01","a506","","TY3V01"]
[null,null,null,null,"zvkx01_a507__TY0V01","*=Kostenverzamelstaat!$J$20","","Huisartsen- Overige- geaccepteerd","zvkx01","a507","","TY0V01"]
[null,null,null,null,"zvkx01_c507__TY0V01","*=Kostenverzamelstaat!$I$20","","Huisartsen- Overige- incl balans","zvkx01","c507","","TY0V01"]
[null,null,null,null,"zvkx01_c507__TY1V01","*=Kostenverzamelstaat!$K$20","","Huisartsen- Overige- incl balans","zvkx01","c507","","TY1V01"]
[null,null,null,null,"zvkx01_a507__TY1V01","*=Kostenverzamelstaat!$L$20","","Huisartsen- Overige- geaccepteerd","zvkx01","a507","","TY1V01"]
[null,null,null,null,"zvkx01_a507__TY2V01","*=Kostenverzamelstaat!$M$20","","Huisartsen- Overige- geaccepteerd","zvkx01","a507","","TY2V01"]
[null,null,null,null,"zvkx01_a507__TY3V01","*=Kostenverzamelstaat!$N$20","","Huisartsen- Overige- geaccepteerd","zvkx01","a507","","TY3V01"]
[null,null,null,null,"zvkx01_c510__TY0V01","*=Kostenverzamelstaat!$I$21","","Huisartsen- MDZ- incl balans","zvkx01","c510","","TY0V01"]
[null,null,null,null,"zvkx01_a510__TY0V01","*=Kostenverzamelstaat!$J$21","","Huisartsen- MDZ- geaccepteerd","zvkx01","a510","","TY0V01"]
[null,null,null,null,"zvkx01_c510__TY1V01","*=Kostenverzamelstaat!$K$21","","Huisartsen- MDZ- incl balans","zvkx01","c510","","TY1V01"]
[null,null,null,null,"zvkx01_a510__TY1V01","*=Kostenverzamelstaat!$L$21","","Huisartsen- MDZ- geaccepteerd","zvkx01","a510","","TY1V01"]
[null,null,null,null,"zvkx01_a510__TY2V01","*=Kostenverzamelstaat!$M$21","","Huisartsen- MDZ- geaccepteerd","zvkx01","a510","","TY2V01"]
[null,null,null,null,"zvkx01_a510__TY3V01","*=Kostenverzamelstaat!$N$21","","Huisartsen- MDZ- geaccepteerd","zvkx01","a510","","TY3V01"]
[null,null,null,null,"zvkx01_c515__TY0V01","*=Kostenverzamelstaat!$I$22","","Huisartsen- Resultaatbel. huisartsen- incl balans","zvkx01","c515","","TY0V01"]
[null,null,null,null,"zvkx01_a515__TY0V01","*=Kostenverzamelstaat!$J$22","","Huisartsen- Resultaatbel. huisartsen- geaccepteerd","zvkx01","a515","","TY0V01"]
[null,null,null,null,"zvkx01_c515__TY1V01","*=Kostenverzamelstaat!$K$22","","Huisartsen- Resultaatbel. huisartsen- incl balans","zvkx01","c515","","TY1V01"]
[null,null,null,null,"zvkx01_a515__TY1V01","*=Kostenverzamelstaat!$L$22","","Huisartsen- Resultaatbel. huisartsen- geaccepteerd","zvkx01","a515","","TY1V01"]
[null,null,null,null,"zvkx01_a515__TY2V01","*=Kostenverzamelstaat!$M$22","","Huisartsen- Resultaatbel. huisartsen- geaccepteerd","zvkx01","a515","","TY2V01"]
[null,null,null,null,"zvkx01_a515__TY3V01","*=Kostenverzamelstaat!$N$22","","Huisartsen- Resultaatbel. huisartsen- geaccepteerd","zvkx01","a515","","TY3V01"]
[null,null,null,null,"zvkx01_c516__TY0V01","*=Kostenverzamelstaat!$I$23","","Huisartsen- Resultaatbel. MDZ- incl balans","zvkx01","c516","","TY0V01"]
[null,null,null,null,"zvkx01_a516__TY0V01","*=Kostenverzamelstaat!$J$23","","Huisartsen- Resultaatbel. MDZ- geaccepteerd","zvkx01","a516","","TY0V01"]
[null,null,null,null,"zvkx01_c516__TY1V01","*=Kostenverzamelstaat!$K$23","","Huisartsen- Resultaatbel. MDZ- incl balans","zvkx01","c516","","TY1V01"]
[null,null,null,null,"zvkx01_a516__TY1V01","*=Kostenverzamelstaat!$L$23","","Huisartsen- Resultaatbel. MDZ- geaccepteerd","zvkx01","a516","","TY1V01"]
[null,null,null,null,"zvkx01_a516__TY2V01","*=Kostenverzamelstaat!$M$23","","Huisartsen- Resultaatbel. MDZ- geaccepteerd","zvkx01","a516","","TY2V01"]
[null,null,null,null,"zvkx01_a516__TY3V01","*=Kostenverzamelstaat!$N$23","","Huisartsen- Resultaatbel. MDZ- geaccepteerd","zvkx01","a516","","TY3V01"]
[null,null,null,null,"zvkx02_c520__TY0V01","*=Kostenverzamelstaat!$I$26","","Farmaceutische hulp- incl balans","zvkx02","c520","","TY0V01"]
[null,null,null,null,"zvkx02_a520__TY0V01","*=Kostenverzamelstaat!$J$26","","Farmaceutische hulp- geaccepteerd","zvkx02","a520","","TY0V01"]
[null,null,null,null,"zvkx02_c520__TY1V01","*=Kostenverzamelstaat!$K$26","","Farmaceutische hulp- incl balans","zvkx02","c520","","TY1V01"]
[null,null,null,null,"zvkx02_a520__TY1V01","*=Kostenverzamelstaat!$L$26","","Farmaceutische hulp- geaccepteerd","zvkx02","a520","","TY1V01"]
[null,null,null,null,"zvkx02_a520__TY2V01","*=Kostenverzamelstaat!$M$26","","Farmaceutische hulp- geaccepteerd","zvkx02","a520","","TY2V01"]
[null,null,null,null,"zvkx02_a520__TY3V01","*=Kostenverzamelstaat!$N$26","","Farmaceutische hulp- geaccepteerd","zvkx02","a520","","TY3V01"]
[null,null,null,null,"zvkx03_c530__TY0V01","*=Kostenverzamelstaat!$I$29","","Verpleging en verzorging- incl balans","zvkx03","c530","","TY0V01"]
[null,null,null,null,"zvkx03_a530__TY0V01","*=Kostenverzamelstaat!$J$29","","Verpleging en verzorging- geaccepteerd","zvkx03","a530","","TY0V01"]
[null,null,null,null,"zvkx03_c530__TY1V01","*=Kostenverzamelstaat!$K$29","","Verpleging en verzorging- incl balans","zvkx03","c530","","TY1V01"]
[null,null,null,null,"zvkx03_a530__TY1V01","*=Kostenverzamelstaat!$L$29","","Verpleging en verzorging- geaccepteerd","zvkx03","a530","","TY1V01"]
[null,null,null,null,"zvkx03_a530__TY2V01","*=Kostenverzamelstaat!$M$29","","Verpleging en verzorging- geaccepteerd","zvkx03","a530","","TY2V01"]
[null,null,null,null,"zvkx03_a530__TY3V01","*=Kostenverzamelstaat!$N$29","","Verpleging en verzorging- geaccepteerd","zvkx03","a530","","TY3V01"]
[null,null,null,null,"zvkx03_a8031__TY2V01","*=Kostenverzamelstaat!$M$30",null,"Verpleging en verzorging-  Meerkosten COVID-19, indirect- geaccepteerd","zvkx03","a8031",null,"TY2V01"]
[null,null,null,null,"zvkx03_a8031__TY3V01","*=Kostenverzamelstaat!$N$30",null,"Verpleging en verzorging-  Meerkosten COVID-19, indirect- geaccepteerd","zvkx03","a8031",null,"TY3V01"]
[null,null,null,null,"zvkx04_c5601__TY0V01","*=Kostenverzamelstaat!$I$33","","Mondzorg- volwassen verzekerden- incl balans","zvkx04","c5601","","TY0V01"]
[null,null,null,null,"zvkx04_a5601__TY0V01","*=Kostenverzamelstaat!$J$33","","Mondzorg- volwassen verzekerden- geaccepteerd","zvkx04","a5601","","TY0V01"]
[null,null,null,null,"zvkx04_c5601__TY1V01","*=Kostenverzamelstaat!$K$33","","Mondzorg- volwassen verzekerden- incl balans","zvkx04","c5601","","TY1V01"]
[null,null,null,null,"zvkx04_a5601__TY1V01","*=Kostenverzamelstaat!$L$33","","Mondzorg- volwassen verzekerden- geaccepteerd","zvkx04","a5601","","TY1V01"]
[null,null,null,null,"zvkx04_a5601__TY2V01","*=Kostenverzamelstaat!$M$33","","Mondzorg- volwassen verzekerden- geaccepteerd","zvkx04","a5601","","TY2V01"]
[null,null,null,null,"zvkx04_a5601__TY3V01","*=Kostenverzamelstaat!$N$33","","Mondzorg- volwassen verzekerden- geaccepteerd","zvkx04","a5601","","TY3V01"]
[null,null,null,null,"zvkx04_c5602__TY0V01","*=Kostenverzamelstaat!$I$34","","Mondzorg- jeugdige verzekerden- incl balans","zvkx04","c5602","","TY0V01"]
[null,null,null,null,"zvkx04_a5602__TY0V01","*=Kostenverzamelstaat!$J$34","","Mondzorg- jeugdige verzekerden- geaccepteerd","zvkx04","a5602","","TY0V01"]
[null,null,null,null,"zvkx04_c5602__TY1V01","*=Kostenverzamelstaat!$K$34","","Mondzorg- jeugdige verzekerden- incl balans","zvkx04","c5602","","TY1V01"]
[null,null,null,null,"zvkx04_a5602__TY1V01","*=Kostenverzamelstaat!$L$34","","Mondzorg- jeugdige verzekerden- geaccepteerd","zvkx04","a5602","","TY1V01"]
[null,null,null,null,"zvkx04_a5602__TY2V01","*=Kostenverzamelstaat!$M$34","","Mondzorg- jeugdige verzekerden- geaccepteerd","zvkx04","a5602","","TY2V01"]
[null,null,null,null,"zvkx04_a5602__TY3V01","*=Kostenverzamelstaat!$N$34","","Mondzorg- jeugdige verzekerden- geaccepteerd","zvkx04","a5602","","TY3V01"]
[null,null,null,null,"zvkx04_c561__TY0V01","*=Kostenverzamelstaat!$I$35","","Mondzorg- gebitsprothesen- incl balans","zvkx04","c561","","TY0V01"]
[null,null,null,null,"zvkx04_a561__TY0V01","*=Kostenverzamelstaat!$J$35","","Mondzorg- gebitsprothesen- geaccepteerd","zvkx04","a561","","TY0V01"]
[null,null,null,null,"zvkx04_c561__TY1V01","*=Kostenverzamelstaat!$K$35","","Mondzorg- gebitsprothesen- incl balans","zvkx04","c561","","TY1V01"]
[null,null,null,null,"zvkx04_a561__TY1V01","*=Kostenverzamelstaat!$L$35","","Mondzorg- gebitsprothesen- geaccepteerd","zvkx04","a561","","TY1V01"]
[null,null,null,null,"zvkx04_a561__TY2V01","*=Kostenverzamelstaat!$M$35","","Mondzorg- gebitsprothesen- geaccepteerd","zvkx04","a561","","TY2V01"]
[null,null,null,null,"zvkx04_a561__TY3V01","*=Kostenverzamelstaat!$N$35","","Mondzorg- gebitsprothesen- geaccepteerd","zvkx04","a561","","TY3V01"]
[null,null,null,null,"zvkx05_c580__TY0V01","*=Kostenverzamelstaat!$I$38","","Verloskundige hulp- door verloskundigen- incl balans","zvkx05","c580","","TY0V01"]
[null,null,null,null,"zvkx05_a580__TY0V01","*=Kostenverzamelstaat!$J$38","","Verloskundige hulp- door verloskundigen- geaccepteerd","zvkx05","a580","","TY0V01"]
[null,null,null,null,"zvkx05_c580__TY1V01","*=Kostenverzamelstaat!$K$38","","Verloskundige hulp- door verloskundigen- incl balans","zvkx05","c580","","TY1V01"]
[null,null,null,null,"zvkx05_a580__TY1V01","*=Kostenverzamelstaat!$L$38","","Verloskundige hulp- door verloskundigen- geaccepteerd","zvkx05","a580","","TY1V01"]
[null,null,null,null,"zvkx05_a580__TY2V01","*=Kostenverzamelstaat!$M$38","","Verloskundige hulp- door verloskundigen- geaccepteerd","zvkx05","a580","","TY2V01"]
[null,null,null,null,"zvkx05_a580__TY3V01","*=Kostenverzamelstaat!$N$38","","Verloskundige hulp- door verloskundigen- geaccepteerd","zvkx05","a580","","TY3V01"]
[null,null,null,null,"zvkx05_c582__TY0V01","*=Kostenverzamelstaat!$I$39","","Verloskundige hulp- Integrale geboortezorg- incl balans","zvkx05","c582","","TY0V01"]
[null,null,null,null,"zvkx05_a582__TY0V01","*=Kostenverzamelstaat!$J$39","","Verloskundige hulp- Integrale geboortezorg- geaccepteerd","zvkx05","a582","","TY0V01"]
[null,null,null,null,"zvkx05_c582__TY1V01","*=Kostenverzamelstaat!$K$39","","Verloskundige hulp- Integrale geboortezorg- incl balans","zvkx05","c582","","TY1V01"]
[null,null,null,null,"zvkx05_a582__TY1V01","*=Kostenverzamelstaat!$L$39","","Verloskundige hulp- Integrale geboortezorg- geaccepteerd","zvkx05","a582","","TY1V01"]
[null,null,null,null,"zvkx05_a582__TY2V01","*=Kostenverzamelstaat!$M$39","","Verloskundige hulp- Integrale geboortezorg- geaccepteerd","zvkx05","a582","","TY2V01"]
[null,null,null,null,"zvkx05_a582__TY3V01","*=Kostenverzamelstaat!$N$39","","Verloskundige hulp- Integrale geboortezorg- geaccepteerd","zvkx05","a582","","TY3V01"]
[null,null,null,null,"zvkx06_c545__TY0V01","*=Kostenverzamelstaat!$I$55","","Medisch specialistische hulp- mondziekten en kaakchirurgie- incl balans","zvkx06","c545","","TY0V01"]
[null,null,null,null,"zvkx06_a545__TY0V01","*=Kostenverzamelstaat!$J$55","","Medisch specialistische hulp- mondziekten en kaakchirurgie- geaccepteerd","zvkx06","a545","","TY0V01"]
[null,null,null,null,"zvkx06_c545__TY1V01","*=Kostenverzamelstaat!$K$55","","Medisch specialistische hulp- mondziekten en kaakchirurgie- incl balans","zvkx06","c545","","TY1V01"]
[null,null,null,null,"zvkx06_a545__TY1V01","*=Kostenverzamelstaat!$L$55","","Medisch specialistische hulp- mondziekten en kaakchirurgie- geaccepteerd","zvkx06","a545","","TY1V01"]
[null,null,null,null,"zvkx06_a545__TY2V01","*=Kostenverzamelstaat!$M$55","","Medisch specialistische hulp- mondziekten en kaakchirurgie- geaccepteerd","zvkx06","a545","","TY2V01"]
[null,null,null,null,"zvkx06_a545__TY3V01","*=Kostenverzamelstaat!$N$55","","Medisch specialistische hulp- mondziekten en kaakchirurgie- geaccepteerd","zvkx06","a545","","TY3V01"]
[null,null,null,null,"zvkx06_a610__TY2V01","*=Kostenverzamelstaat!$M$56","","Medisch specialistische hulp- Overige ziekenhuiszorg,curatief- geaccepteerd","zvkx06","a610","","TY2V01"]
[null,null,null,null,"zvkx06_a610__TY3V01","*=Kostenverzamelstaat!$N$56","","Medisch specialistische hulp- Overige ziekenhuiszorg,curatief- geaccepteerd","zvkx06","a610","","TY3V01"]
[null,null,null,null,"zvkx06_c6101__TY0V01","*=Kostenverzamelstaat!$I$57",null,"Medisch specialistische hulp- NTS- incl balans","zvkx06","c6101",null,"TY0V01"]
[null,null,null,null,"zvkx06_a6101__TY0V01","*=Kostenverzamelstaat!$J$57",null,"Medisch specialistische hulp- NTS- geaccepteerd","zvkx06","a6101",null,"TY0V01"]
[null,null,null,null,"zvkx06_c6101__TY1V01","*=Kostenverzamelstaat!$K$57",null,"Medisch specialistische hulp- NTS- incl balans","zvkx06","c6101",null,"TY1V01"]
[null,null,null,null,"zvkx06_a6101__TY1V01","*=Kostenverzamelstaat!$L$57",null,"Medisch specialistische hulp- NTS- geaccepteerd","zvkx06","a6101",null,"TY1V01"]
[null,null,null,null,"zvkx06_c6102__TY0V01","*=Kostenverzamelstaat!$I$58",null,"Medisch specialistische hulp- Eerstelijnsdiagnostiek- incl balans","zvkx06","c6102",null,"TY0V01"]
[null,null,null,null,"zvkx06_a6102__TY0V01","*=Kostenverzamelstaat!$J$58",null,"Medisch specialistische hulp- Eerstelijnsdiagnostiek- geaccepteerd","zvkx06","a6102",null,"TY0V01"]
[null,null,null,null,"zvkx06_c6102__TY1V01","*=Kostenverzamelstaat!$K$58",null,"Medisch specialistische hulp- Eerstelijnsdiagnostiek- incl balans","zvkx06","c6102",null,"TY1V01"]
[null,null,null,null,"zvkx06_a6102__TY1V01","*=Kostenverzamelstaat!$L$58",null,"Medisch specialistische hulp- Eerstelijnsdiagnostiek- geaccepteerd","zvkx06","a6102",null,"TY1V01"]
[null,null,null,null,"zvkx06_c611__TY0V01","*=Kostenverzamelstaat!$I$59","","Medisch specialistische hulp- Overige zorg- incl balans","zvkx06","c611","","TY0V01"]
[null,null,null,null,"zvkx06_a611__TY0V01","*=Kostenverzamelstaat!$J$59","","Medisch specialistische hulp- Overige zorg- geaccepteerd","zvkx06","a611","","TY0V01"]
[null,null,null,null,"zvkx06_c611__TY1V01","*=Kostenverzamelstaat!$K$59","","Medisch specialistische hulp- Overige zorg- incl balans","zvkx06","c611","","TY1V01"]
[null,null,null,null,"zvkx06_a611__TY1V01","*=Kostenverzamelstaat!$L$59","","Medisch specialistische hulp- Overige zorg- geaccepteerd","zvkx06","a611","","TY1V01"]
[null,null,null,null,"zvkx06_a611__TY2V01","*=Kostenverzamelstaat!$M$59","","Medisch specialistische hulp- Overige zorg- geaccepteerd","zvkx06","a611","","TY2V01"]
[null,null,null,null,"zvkx06_a611__TY3V01","*=Kostenverzamelstaat!$N$59","","Medisch specialistische hulp- Overige zorg- geaccepteerd","zvkx06","a611","","TY3V01"]
[null,null,null,null,"zvkx06_c6121__TY0V01","*=Kostenverzamelstaat!$I$60","","Medisch specialistische hulp- add-on's Dure geneesmiddelen- incl balans","zvkx06","c6121","","TY0V01"]
[null,null,null,null,"zvkx06_a6121__TY0V01","*=Kostenverzamelstaat!$J$60","","Medisch specialistische hulp- add-on's Dure geneesmiddelen- geaccepteerd","zvkx06","a6121","","TY0V01"]
[null,null,null,null,"zvkx06_c6121__TY1V01","*=Kostenverzamelstaat!$K$60","","Medisch specialistische hulp- add-on's Dure geneesmiddelen- incl balans","zvkx06","c6121","","TY1V01"]
[null,null,null,null,"zvkx06_a6121__TY1V01","*=Kostenverzamelstaat!$L$60","","Medisch specialistische hulp- add-on's Dure geneesmiddelen- geaccepteerd","zvkx06","a6121","","TY1V01"]
[null,null,null,null,"zvkx06_a6121__TY2V01","*=Kostenverzamelstaat!$M$60","","Medisch specialistische hulp- add-on's Dure geneesmiddelen- geaccepteerd","zvkx06","a6121","","TY2V01"]
[null,null,null,null,"zvkx06_a6121__TY3V01","*=Kostenverzamelstaat!$N$60","","Medisch specialistische hulp- add-on's Dure geneesmiddelen- geaccepteerd","zvkx06","a6121","","TY3V01"]
[null,null,null,null,"zvkx06_c6122__TY0V01","*=Kostenverzamelstaat!$I$61","","Medisch specialistische hulp- IC- incl balans","zvkx06","c6122","","TY0V01"]
[null,null,null,null,"zvkx06_a6122__TY0V01","*=Kostenverzamelstaat!$J$61","","Medisch specialistische hulp- IC- geaccepteerd","zvkx06","a6122","","TY0V01"]
[null,null,null,null,"zvkx06_c6122__TY1V01","*=Kostenverzamelstaat!$K$61","","Medisch specialistische hulp- IC- incl balans","zvkx06","c6122","","TY1V01"]
[null,null,null,null,"zvkx06_a6122__TY1V01","*=Kostenverzamelstaat!$L$61","","Medisch specialistische hulp- IC- geaccepteerd","zvkx06","a6122","","TY1V01"]
[null,null,null,null,"zvkx06_a6122__TY2V01","*=Kostenverzamelstaat!$M$61","","Medisch specialistische hulp- IC- geaccepteerd","zvkx06","a6122","","TY2V01"]
[null,null,null,null,"zvkx06_a6122__TY3V01","*=Kostenverzamelstaat!$N$61","","Medisch specialistische hulp- IC- geaccepteerd","zvkx06","a6122","","TY3V01"]
[null,null,null,null,"zvkx06_c6131__TY0V01","*=Kostenverzamelstaat!$I$62","","Medisch specialistische hulp- Integraal DBC-zorgproduct gereguleerd- incl balans","zvkx06","c6131","","TY0V01"]
[null,null,null,null,"zvkx06_a6131__TY0V01","*=Kostenverzamelstaat!$J$62","","Medisch specialistische hulp- Integraal DBC-zorgproduct gereguleerd- geaccepteerd","zvkx06","a6131","","TY0V01"]
[null,null,null,null,"zvkx06_c6131__TY1V01","*=Kostenverzamelstaat!$K$62","","Medisch specialistische hulp- Integraal DBC-zorgproduct gereguleerd- incl balans","zvkx06","c6131","","TY1V01"]
[null,null,null,null,"zvkx06_a6131__TY1V01","*=Kostenverzamelstaat!$L$62","","Medisch specialistische hulp- Integraal DBC-zorgproduct gereguleerd- geaccepteerd","zvkx06","a6131","","TY1V01"]
[null,null,null,null,"zvkx06_a6131__TY2V01","*=Kostenverzamelstaat!$M$62","","Medisch specialistische hulp- Integraal DBC-zorgproduct gereguleerd- geaccepteerd","zvkx06","a6131","","TY2V01"]
[null,null,null,null,"zvkx06_a6131__TY3V01","*=Kostenverzamelstaat!$N$62","","Medisch specialistische hulp- Integraal DBC-zorgproduct gereguleerd- geaccepteerd","zvkx06","a6131","","TY3V01"]
[null,null,null,null,"zvkx06_c6151__TY0V01","*=Kostenverzamelstaat!$I$63","","Medisch specialistische hulp- Integraal DBC-zorgproduct vrije segment- incl balans","zvkx06","c6151","","TY0V01"]
[null,null,null,null,"zvkx06_a6151__TY0V01","*=Kostenverzamelstaat!$J$63","","Medisch specialistische hulp- Integraal DBC-zorgproduct vrije segment- geaccepteerd","zvkx06","a6151","","TY0V01"]
[null,null,null,null,"zvkx06_c6151__TY1V01","*=Kostenverzamelstaat!$K$63","","Medisch specialistische hulp- Integraal DBC-zorgproduct vrije segment- incl balans","zvkx06","c6151","","TY1V01"]
[null,null,null,null,"zvkx06_a6151__TY1V01","*=Kostenverzamelstaat!$L$63","","Medisch specialistische hulp- Integraal DBC-zorgproduct vrije segment- geaccepteerd","zvkx06","a6151","","TY1V01"]
[null,null,null,null,"zvkx06_a6151__TY2V01","*=Kostenverzamelstaat!$M$63","","Medisch specialistische hulp- Integraal DBC-zorgproduct vrije segment- geaccepteerd","zvkx06","a6151","","TY2V01"]
[null,null,null,null,"zvkx06_a6151__TY3V01","*=Kostenverzamelstaat!$N$63","","Medisch specialistische hulp- Integraal DBC-zorgproduct vrije segment- geaccepteerd","zvkx06","a6151","","TY3V01"]
[null,null,null,null,"zvkx06_c619__TY0V01","*=Kostenverzamelstaat!$I$64","","Medisch specialistische hulp- honoraria extramuraal- incl balans","zvkx06","c619","","TY0V01"]
[null,null,null,null,"zvkx06_a619__TY0V01","*=Kostenverzamelstaat!$J$64","","Medisch specialistische hulp- honoraria extramuraal- geaccepteerd","zvkx06","a619","","TY0V01"]
[null,null,null,null,"zvkx06_c619__TY1V01","*=Kostenverzamelstaat!$K$64","","Medisch specialistische hulp- honoraria extramuraal- incl balans","zvkx06","c619","","TY1V01"]
[null,null,null,null,"zvkx06_a619__TY1V01","*=Kostenverzamelstaat!$L$64","","Medisch specialistische hulp- honoraria extramuraal- geaccepteerd","zvkx06","a619","","TY1V01"]
[null,null,null,null,"zvkx06_a619__TY2V01","*=Kostenverzamelstaat!$M$64","","Medisch specialistische hulp- honoraria extramuraal- geaccepteerd","zvkx06","a619","","TY2V01"]
[null,null,null,null,"zvkx06_a619__TY3V01","*=Kostenverzamelstaat!$N$64","","Medisch specialistische hulp- honoraria extramuraal- geaccepteerd","zvkx06","a619","","TY3V01"]
[null,null,null,null,"zvkx06_a8061__TY2V01","*=Kostenverzamelstaat!$M$65",null,"Medisch specialistische hulp- Meerkosten COVID-19, indirect- geaccepteerd","zvkx06","a8061",null,"TY2V01"]
[null,null,null,null,"zvkx06_a8061__TY3V01","*=Kostenverzamelstaat!$N$65",null,"Medisch specialistische hulp- Meerkosten COVID-19, indirect- geaccepteerd","zvkx06","a8061",null,"TY3V01"]
[null,null,null,null,"zvkx06_a8062__TY1V01","*=Kostenverzamelstaat!$K$66",null,"Medisch specialistische hulp- Meerkosten COVID-19, toeslagen- geaccepteerd","zvkx06","a8062",null,"TY1V01"]
[null,null,null,null,"zvkx06_a8062__TY1V01","*=Kostenverzamelstaat!$L$66",null,"Medisch specialistische hulp- Meerkosten COVID-19, toeslagen- geaccepteerd","zvkx06","a8062",null,"TY1V01"]
[null,null,null,null,"zvkx06_a8062__TY2V01","*=Kostenverzamelstaat!$M$66",null,"Medisch specialistische hulp- Meerkosten COVID-19, toeslagen- geaccepteerd","zvkx06","a8062",null,"TY2V01"]
[null,null,null,null,"zvkx06_a8062__TY3V01","*=Kostenverzamelstaat!$N$66",null,"Medisch specialistische hulp- Meerkosten COVID-19, toeslagen- geaccepteerd","zvkx06","a8062",null,"TY3V01"]
[null,null,null,null,"zvkx07_c620__TY0V01","*=Kostenverzamelstaat!$I$69","","Paramedische hulp- fysiotherapie- incl balans","zvkx07","c620","","TY0V01"]
[null,null,null,null,"zvkx07_a620__TY0V01","*=Kostenverzamelstaat!$J$69","","Paramedische hulp- fysiotherapie- geaccepteerd","zvkx07","a620","","TY0V01"]
[null,null,null,null,"zvkx07_c620__TY1V01","*=Kostenverzamelstaat!$K$69","","Paramedische hulp- fysiotherapie- incl balans","zvkx07","c620","","TY1V01"]
[null,null,null,null,"zvkx07_a620__TY1V01","*=Kostenverzamelstaat!$L$69","","Paramedische hulp- fysiotherapie- geaccepteerd","zvkx07","a620","","TY1V01"]
[null,null,null,null,"zvkx07_a620__TY2V01","*=Kostenverzamelstaat!$M$69","","Paramedische hulp- fysiotherapie- geaccepteerd","zvkx07","a620","","TY2V01"]
[null,null,null,null,"zvkx07_a620__TY3V01","*=Kostenverzamelstaat!$N$69","","Paramedische hulp- fysiotherapie- geaccepteerd","zvkx07","a620","","TY3V01"]
[null,null,null,null,"zvkx07_c621__TY0V01","*=Kostenverzamelstaat!$I$70","","Paramedische hulp- Mensendieck/Cesar- incl balans","zvkx07","c621","","TY0V01"]
[null,null,null,null,"zvkx07_a621__TY0V01","*=Kostenverzamelstaat!$J$70","","Paramedische hulp- Mensendieck/Cesar- geaccepteerd","zvkx07","a621","","TY0V01"]
[null,null,null,null,"zvkx07_c621__TY1V01","*=Kostenverzamelstaat!$K$70","","Paramedische hulp- Mensendieck/Cesar- incl balans","zvkx07","c621","","TY1V01"]
[null,null,null,null,"zvkx07_a621__TY1V01","*=Kostenverzamelstaat!$L$70","","Paramedische hulp- Mensendieck/Cesar- geaccepteerd","zvkx07","a621","","TY1V01"]
[null,null,null,null,"zvkx07_a621__TY2V01","*=Kostenverzamelstaat!$M$70","","Paramedische hulp- Mensendieck/Cesar- geaccepteerd","zvkx07","a621","","TY2V01"]
[null,null,null,null,"zvkx07_a621__TY3V01","*=Kostenverzamelstaat!$N$70","","Paramedische hulp- Mensendieck/Cesar- geaccepteerd","zvkx07","a621","","TY3V01"]
[null,null,null,null,"zvkx07_c623__TY0V01","*=Kostenverzamelstaat!$I$71","","Paramedische hulp- logopedie- incl balans","zvkx07","c623","","TY0V01"]
[null,null,null,null,"zvkx07_a623__TY0V01","*=Kostenverzamelstaat!$J$71","","Paramedische hulp- logopedie- geaccepteerd","zvkx07","a623","","TY0V01"]
[null,null,null,null,"zvkx07_c623__TY1V01","*=Kostenverzamelstaat!$K$71","","Paramedische hulp- logopedie- incl balans","zvkx07","c623","","TY1V01"]
[null,null,null,null,"zvkx07_a623__TY1V01","*=Kostenverzamelstaat!$L$71","","Paramedische hulp- logopedie- geaccepteerd","zvkx07","a623","","TY1V01"]
[null,null,null,null,"zvkx07_a623__TY2V01","*=Kostenverzamelstaat!$M$71","","Paramedische hulp- logopedie- geaccepteerd","zvkx07","a623","","TY2V01"]
[null,null,null,null,"zvkx07_a623__TY3V01","*=Kostenverzamelstaat!$N$71","","Paramedische hulp- logopedie- geaccepteerd","zvkx07","a623","","TY3V01"]
[null,null,null,null,"zvkx07_c624__TY0V01","*=Kostenverzamelstaat!$I$72","","Paramedische hulp- ergotherapie- incl balans","zvkx07","c624","","TY0V01"]
[null,null,null,null,"zvkx07_a624__TY0V01","*=Kostenverzamelstaat!$J$72","","Paramedische hulp- ergotherapie- geaccepteerd","zvkx07","a624","","TY0V01"]
[null,null,null,null,"zvkx07_c624__TY1V01","*=Kostenverzamelstaat!$K$72","","Paramedische hulp- ergotherapie- incl balans","zvkx07","c624","","TY1V01"]
[null,null,null,null,"zvkx07_a624__TY1V01","*=Kostenverzamelstaat!$L$72","","Paramedische hulp- ergotherapie- geaccepteerd","zvkx07","a624","","TY1V01"]
[null,null,null,null,"zvkx07_a624__TY2V01","*=Kostenverzamelstaat!$M$72","","Paramedische hulp- ergotherapie- geaccepteerd","zvkx07","a624","","TY2V01"]
[null,null,null,null,"zvkx07_a624__TY3V01","*=Kostenverzamelstaat!$N$72","","Paramedische hulp- ergotherapie- geaccepteerd","zvkx07","a624","","TY3V01"]
[null,null,null,null,"zvkx07_c625__TY0V01","*=Kostenverzamelstaat!$I$73","","Paramedische hulp- dieetadvisering- incl balans","zvkx07","c625","","TY0V01"]
[null,null,null,null,"zvkx07_a625__TY0V01","*=Kostenverzamelstaat!$J$73","","Paramedische hulp- dieetadvisering- geaccepteerd","zvkx07","a625","","TY0V01"]
[null,null,null,null,"zvkx07_c625__TY1V01","*=Kostenverzamelstaat!$K$73","","Paramedische hulp- dieetadvisering- incl balans","zvkx07","c625","","TY1V01"]
[null,null,null,null,"zvkx07_a625__TY1V01","*=Kostenverzamelstaat!$L$73","","Paramedische hulp- dieetadvisering- geaccepteerd","zvkx07","a625","","TY1V01"]
[null,null,null,null,"zvkx07_a625__TY2V01","*=Kostenverzamelstaat!$M$73","","Paramedische hulp- dieetadvisering- geaccepteerd","zvkx07","a625","","TY2V01"]
[null,null,null,null,"zvkx07_a625__TY3V01","*=Kostenverzamelstaat!$N$73","","Paramedische hulp- dieetadvisering- geaccepteerd","zvkx07","a625","","TY3V01"]
[null,null,null,null,"zvkx07_c626__TY0V01","*=Kostenverzamelstaat!$I$74","","Paramedische hulp- gecombineerde leefstijl interventie- incl balans","zvkx07","c626","","TY0V01"]
[null,null,null,null,"zvkx07_a626__TY0V01","*=Kostenverzamelstaat!$J$74","","Paramedische hulp- gecombineerde leefstijl interventie- geaccepteerd","zvkx07","a626","","TY0V01"]
[null,null,null,null,"zvkx07_c626__TY1V01","*=Kostenverzamelstaat!$K$74","","Paramedische hulp- gecombineerde leefstijl interventie- incl balans","zvkx07","c626","","TY1V01"]
[null,null,null,null,"zvkx07_a626__TY1V01","*=Kostenverzamelstaat!$L$74","","Paramedische hulp- gecombineerde leefstijl interventie- geaccepteerd","zvkx07","a626","","TY1V01"]
[null,null,null,null,"zvkx07_a626__TY2V01","*=Kostenverzamelstaat!$M$74","","Paramedische hulp- gecombineerde leefstijl interventie- geaccepteerd","zvkx07","a626","","TY2V01"]
[null,null,null,null,"zvkx07_a626__TY3V01","*=Kostenverzamelstaat!$N$74","","Paramedische hulp- gecombineerde leefstijl interventie- geaccepteerd","zvkx07","a626","","TY3V01"]
[null,null,null,null,"zvkx08_c640__TY0V01","*=Kostenverzamelstaat!$I$77","","Hulpmiddelen- incl balans","zvkx08","c640","","TY0V01"]
[null,null,null,null,"zvkx08_a640__TY0V01","*=Kostenverzamelstaat!$J$77","","Hulpmiddelen- geaccepteerd","zvkx08","a640","","TY0V01"]
[null,null,null,null,"zvkx08_c640__TY1V01","*=Kostenverzamelstaat!$K$77","","Hulpmiddelen- incl balans","zvkx08","c640","","TY1V01"]
[null,null,null,null,"zvkx08_a640__TY1V01","*=Kostenverzamelstaat!$L$77","","Hulpmiddelen- geaccepteerd","zvkx08","a640","","TY1V01"]
[null,null,null,null,"zvkx08_a640__TY2V01","*=Kostenverzamelstaat!$M$77","","Hulpmiddelen- geaccepteerd","zvkx08","a640","","TY2V01"]
[null,null,null,null,"zvkx08_a640__TY3V01","*=Kostenverzamelstaat!$N$77","","Hulpmiddelen- geaccepteerd","zvkx08","a640","","TY3V01"]
[null,null,null,null,"zvkx08_a8081__TY2V01","*=Kostenverzamelstaat!$M$78",null,"Hulpmiddelen- Meerkosten COVID-19, indirect- geaccepteerd","zvkx08","a8081",null,"TY2V01"]
[null,null,null,null,"zvkx08_a8081__TY3V01","*=Kostenverzamelstaat!$N$78",null,"Hulpmiddelen- Meerkosten COVID-19, indirect- geaccepteerd","zvkx08","a8081",null,"TY3V01"]
[null,null,null,null,"zvkx09_c650__TY0V01","*=Kostenverzamelstaat!$I$81","","Ziekenvervoer- ambulance/helicopter- incl balans","zvkx09","c650","","TY0V01"]
[null,null,null,null,"zvkx09_a650__TY0V01","*=Kostenverzamelstaat!$J$81","","Ziekenvervoer- ambulance/helicopter- geaccepteerd","zvkx09","a650","","TY0V01"]
[null,null,null,null,"zvkx09_c650__TY1V01","*=Kostenverzamelstaat!$K$81","","Ziekenvervoer- ambulance/helicopter- incl balans","zvkx09","c650","","TY1V01"]
[null,null,null,null,"zvkx09_a650__TY1V01","*=Kostenverzamelstaat!$L$81","","Ziekenvervoer- ambulance/helicopter- geaccepteerd","zvkx09","a650","","TY1V01"]
[null,null,null,null,"zvkx09_a650__TY2V01","*=Kostenverzamelstaat!$M$81","","Ziekenvervoer- ambulance/helicopter- geaccepteerd","zvkx09","a650","","TY2V01"]
[null,null,null,null,"zvkx09_a650__TY3V01","*=Kostenverzamelstaat!$N$81","","Ziekenvervoer- ambulance/helicopter- geaccepteerd","zvkx09","a650","","TY3V01"]
[null,null,null,null,"zvkx09_c6501__TY0V01","*=Kostenverzamelstaat!$I$82",null,"Ziekenvervoer- regionale ambulance- incl balans","zvkx09","c6501","","TY0V01"]
[null,null,null,null,"zvkx09_a6501__TY0V01","*=Kostenverzamelstaat!$J$82",null,"Ziekenvervoer- regionale ambulance- geaccepteerd","zvkx09","c6501","","TY0V01"]
[null,null,null,null,"zvkx09_c6501__TY1V01","*=Kostenverzamelstaat!$K$82",null,"Ziekenvervoer- regionale ambulance- incl balans","zvkx09","c6501","","TY1V01"]
[null,null,null,null,"zvkx09_a6501__TY1V01","*=Kostenverzamelstaat!$L$82",null,"Ziekenvervoer- regionale ambulance- geaccepteerd","zvkx09","c6501","","TY1V01"]
[null,null,null,null,"zvkx09_a6501__TY2V01","*=Kostenverzamelstaat!$M$82",null,"Ziekenvervoer- regionale ambulance- geaccepteerd","zvkx09","c6501","","TY2V01"]
[null,null,null,null,"zvkx09_a6501__TY3V01","*=Kostenverzamelstaat!$N$82",null,"Ziekenvervoer- regionale ambulance- geaccepteerd","zvkx09","c6501","","TY3V01"]
[null,null,null,null,"zvkx09_c651__TY0V01","*=Kostenverzamelstaat!$I$83","","Ziekenvervoer- ov, taxi en eigen auto- incl balans","zvkx09","c651","","TY0V01"]
[null,null,null,null,"zvkx09_a651__TY0V01","*=Kostenverzamelstaat!$J$83","","Ziekenvervoer- ov, taxi en eigen auto- geaccepteerd","zvkx09","a651","","TY0V01"]
[null,null,null,null,"zvkx09_c651__TY1V01","*=Kostenverzamelstaat!$K$83","","Ziekenvervoer- ov, taxi en eigen auto- incl balans","zvkx09","c651","","TY1V01"]
[null,null,null,null,"zvkx09_a651__TY1V01","*=Kostenverzamelstaat!$L$83","","Ziekenvervoer- ov, taxi en eigen auto- geaccepteerd","zvkx09","a651","","TY1V01"]
[null,null,null,null,"zvkx09_a651__TY2V01","*=Kostenverzamelstaat!$M$83","","Ziekenvervoer- ov, taxi en eigen auto- geaccepteerd","zvkx09","a651","","TY2V01"]
[null,null,null,null,"zvkx09_a651__TY3V01","*=Kostenverzamelstaat!$N$83","","Ziekenvervoer- ov, taxi en eigen auto- geaccepteerd","zvkx09","a651","","TY3V01"]
[null,null,null,null,"zvkx09_a8091__TY2V01","*=Kostenverzamelstaat!$M$84",null,"Ziekenvervoer- Meerkosten COVID-19, indirect- geaccepteerd","zvkx09","a8091",null,"TY2V01"]
[null,null,null,null,"zvkx09_a8091__TY3V01","*=Kostenverzamelstaat!$N$84",null,"Ziekenvervoer- Meerkosten COVID-19, indirect- geaccepteerd","zvkx09","a8091",null,"TY3V01"]
[null,null,null,null,"zvkx10_c666__TY0V01","*=Kostenverzamelstaat!$I$100","","Geneeskundige GGZ-Kosten consulten GGZ- incl balans","zvkx10","c666","","TY0V01"]
[null,null,null,null,"zvkx10_a666__TY0V01","*=Kostenverzamelstaat!$J$100","","Geneeskundige GGZ- Kosten consulten GGZ- geaccepteerd","zvkx10","a666","","TY0V01"]
[null,null,null,null,"zvkx10_c666__TY1V01","*=Kostenverzamelstaat!$K$100","","Geneeskundige GGZ-Kosten consulten GGZ- incl balans","zvkx10","c666","","TY1V01"]
[null,null,null,null,"zvkx10_a666__TY1V01","*=Kostenverzamelstaat!$L$100","","Geneeskundige GGZ- Kosten consulten GGZ- geaccepteerd","zvkx10","a666","","TY1V01"]
[null,null,null,null,"zvkx10_a666__TY2V01","*=Kostenverzamelstaat!$M$100","","Geneeskundige GGZ- Kosten consulten GGZ- geaccepteerd","zvkx10","a666","","TY2V01"]
[null,null,null,null,"zvkx10_a666__TY3V01","*=Kostenverzamelstaat!$N$100","","Geneeskundige GGZ- Kosten consulten GGZ- geaccepteerd","zvkx10","a666","","TY3V01"]
[null,null,null,null,"zvkx10_c667__TY0V01","*=Kostenverzamelstaat!$I$101","","Geneeskundige GGZ- Kosten intrmuraal verblijf GGZ- incl balans","zvkx10","c667","","TY0V01"]
[null,null,null,null,"zvkx10_a667__TY0V01","*=Kostenverzamelstaat!$J$101","","Geneeskundige GGZ- Kosten intrmuraal verblijf GGZ- geaccepteerd","zvkx10","a667","","TY0V01"]
[null,null,null,null,"zvkx10_c667__TY1V01","*=Kostenverzamelstaat!$K$101","","Geneeskundige GGZ- Kosten intrmuraal verblijf GGZ- incl balans","zvkx10","c667","","TY1V01"]
[null,null,null,null,"zvkx10_a667__TY1V01","*=Kostenverzamelstaat!$L$101","","Geneeskundige GGZ- Kosten intrmuraal verblijf GGZ- geaccepteerd","zvkx10","a667","","TY1V01"]
[null,null,null,null,"zvkx10_a667__TY2V01","*=Kostenverzamelstaat!$M$101","","Geneeskundige GGZ- Kosten intrmuraal verblijf GGZ- geaccepteerd","zvkx10","a667","","TY2V01"]
[null,null,null,null,"zvkx10_a667__TY3V01","*=Kostenverzamelstaat!$N$101","","Geneeskundige GGZ- Kosten intrmuraal verblijf GGZ- geaccepteerd","zvkx10","a667","","TY3V01"]
[null,null,null,null,"zvkx10_c668__TY0V01","*=Kostenverzamelstaat!$I$102","","Geneeskundige GGZ- Kosten overige prestaties GGZ- incl balans","zvkx10","c668","","TY0V01"]
[null,null,null,null,"zvkx10_a668__TY0V01","*=Kostenverzamelstaat!$J$102","","Geneeskundige GGZ- Kosten overige prestaties GGZ- geaccepteerd","zvkx10","a668","","TY0V01"]
[null,null,null,null,"zvkx10_c668__TY1V01","*=Kostenverzamelstaat!$K$102","","Geneeskundige GGZ- Kosten overige prestaties GGZ- incl balans","zvkx10","c668","","TY1V01"]
[null,null,null,null,"zvkx10_a668__TY1V01","*=Kostenverzamelstaat!$L$102","","Geneeskundige GGZ- Kosten overige prestaties GGZ- geaccepteerd","zvkx10","a668","","TY1V01"]
[null,null,null,null,"zvkx10_c668__TY2V01","*=Kostenverzamelstaat!$N$102","","Geneeskundige GGZ- Kosten overige prestaties GGZ- incl balans","zvkx10","c668","","TY2V01"]
[null,null,null,null,"zvkx10_a668__TY3V01","*=Kostenverzamelstaat!$O$102","","Geneeskundige GGZ- Kosten overige prestaties GGZ- geaccepteerd","zvkx10","a668","","TY3V01"]
[null,null,null,null,"zvkx10_a8101__TY2V01","*=Kostenverzamelstaat!$M$103",null,"Geneeskundige GGZ- Meerkosten COVID-19, indirect- geaccepteerd","zvkx10","a8101",null,"TY2V01"]
[null,null,null,null,"zvkx10_a8101__TY3V01","*=Kostenverzamelstaat!$N$103",null,"Geneeskundige GGZ- Meerkosten COVID-19, indirect- geaccepteerd","zvkx10","a8101",null,"TY3V01"]
[null,null,null,null,"zvkx11_c670__TY0V01","*=Kostenverzamelstaat!$I$106","","GRZ, ELV en GZSP- Geriatische revalidatiezorg- incl balans","zvkx11","c670","","TY0V01"]
[null,null,null,null,"zvkx11_a670__TY0V01","*=Kostenverzamelstaat!$J$106","","GRZ, ELV en GZSP- Geriatische revalidatiezorg-- geaccepteerd","zvkx11","a670","","TY0V01"]
[null,null,null,null,"zvkx11_c670__TY1V01","*=Kostenverzamelstaat!$K$106","","GRZ, ELV en GZSP- Geriatische revalidatiezorg-- incl balans","zvkx11","c670","","TY1V01"]
[null,null,null,null,"zvkx11_a670__TY1V01","*=Kostenverzamelstaat!$L$106","","GRZ, ELV en GZSP- Geriatische revalidatiezorg-- geaccepteerd","zvkx11","a670","","TY1V01"]
[null,null,null,null,"zvkx11_a670__TY2V01","*=Kostenverzamelstaat!$M$106","","GRZ, ELV en GZSP- Geriatische revalidatiezorg-- geaccepteerd","zvkx11","a670","","TY2V01"]
[null,null,null,null,"zvkx11_a670__TY3V01","*=Kostenverzamelstaat!$N$106","","GRZ, ELV en GZSP- Geriatische revalidatiezorg-- geaccepteerd","zvkx11","a670","","TY3V01"]
[null,null,null,null,"zvkx11_a81111__TY2V01","*=Kostenverzamelstaat!$M$107",null,"GRZ, ELV en GZSP- Meerkosten COVID-19, indirect- geaccepteerd","zvkx11","a81111",null,"TY2V01"]
[null,null,null,null,"zvkx11_a81111__TY3V01","*=Kostenverzamelstaat!$N$107",null,"GRZ, ELV en GZSP- Meerkosten COVID-19, indirect- geaccepteerd","zvkx11","a81111",null,"TY3V01"]
[null,null,null,null,"zvkx11_c671__TY0V01","*=Kostenverzamelstaat!$I$108","","GRZ, ELV en GZSP- Eerstelijnsverblijf- incl balans","zvkx11","c671","","TY0V01"]
[null,null,null,null,"zvkx11_a671__TY0V01","*=Kostenverzamelstaat!$J$108","","GRZ, ELV en GZSP- Eerstelijnsverblijf- geaccepteerd","zvkx11","a671","","TY0V01"]
[null,null,null,null,"zvkx11_c671__TY1V01","*=Kostenverzamelstaat!$K$108","","GRZ, ELV en GZSP- Eerstelijnsverblijf- incl balans","zvkx11","c671","","TY1V01"]
[null,null,null,null,"zvkx11_a671__TY1V01","*=Kostenverzamelstaat!$L$108","","GRZ, ELV en GZSP- Eerstelijnsverblijf- geaccepteerd","zvkx11","a671","","TY1V01"]
[null,null,null,null,"zvkx11_a671__TY2V01","*=Kostenverzamelstaat!$M$108","","GRZ, ELV en GZSP- Eerstelijnsverblijf- geaccepteerd","zvkx11","a671","","TY2V01"]
[null,null,null,null,"zvkx11_a671__TY3V01","*=Kostenverzamelstaat!$N$108","","GRZ, ELV en GZSP- Eerstelijnsverblijf- geaccepteerd","zvkx11","a671","","TY3V01"]
[null,null,null,null,"zvkx11_a81121__TY2V01","*=Kostenverzamelstaat!$M$109",null,"GRZ, ELV en GZSP- Meerkosten COVID-19, indirect- geaccepteerd","zvkx11","a81121",null,"TY2V01"]
[null,null,null,null,"zvkx11_a81121__TY3V01","*=Kostenverzamelstaat!$N$109",null,"GRZ, ELV en GZSP- Meerkosten COVID-19, indirect- geaccepteerd","zvkx11","a81121",null,"TY3V01"]
[null,null,null,null,"zvkx11_c672__TY0V01","*=Kostenverzamelstaat!$I$110","","GRZ, ELV en GZSP- GZSP- incl balans","zvkx11","c672","","TY0V01"]
[null,null,null,null,"zvkx11_a672__TY0V01","*=Kostenverzamelstaat!$J$110","","GRZ, ELV en GZSP-  GZSP- geaccepteerd","zvkx11","a672","","TY0V01"]
[null,null,null,null,"zvkx11_c672__TY1V01","*=Kostenverzamelstaat!$K$110","","GRZ, ELV en GZSP- GZSP- incl balans","zvkx11","c672","","TY1V01"]
[null,null,null,null,"zvkx11_a672__TY1V01","*=Kostenverzamelstaat!$L$110","","GRZ, ELV en GZSP-  GZSP- geaccepteerd","zvkx11","a672","","TY1V01"]
[null,null,null,null,"zvkx11_a672__TY2V01","*=Kostenverzamelstaat!$M$110","","GRZ, ELV en GZSP-  GZSP- geaccepteerd","zvkx11","a672","","TY2V01"]
[null,null,null,null,"zvkx11_a672__TY3V01","*=Kostenverzamelstaat!$N$110","","GRZ, ELV en GZSP-  GZSP- geaccepteerd","zvkx11","a672","","TY3V01"]
[null,null,null,null,"zvkx12_c680__TY0V01","*=Kostenverzamelstaat!$I$113","","Kraamzorg-- incl balans","zvkx12","c680","","TY0V01"]
[null,null,null,null,"zvkx12_a680__TY0V01","*=Kostenverzamelstaat!$J$113","","Kraamzorg-- geaccepteerd","zvkx12","a680","","TY0V01"]
[null,null,null,null,"zvkx12_c680__TY1V01","*=Kostenverzamelstaat!$K$113","","Kraamzorg-- incl balans","zvkx12","c680","","TY1V01"]
[null,null,null,null,"zvkx12_a680__TY1V01","*=Kostenverzamelstaat!$L$113","","Kraamzorg-- geaccepteerd","zvkx12","a680","","TY1V01"]
[null,null,null,null,"zvkx12_a680__TY2V01","*=Kostenverzamelstaat!$M$113","","Kraamzorg-- geaccepteerd","zvkx12","a680","","TY2V01"]
[null,null,null,null,"zvkx12_a680__TY3V01","*=Kostenverzamelstaat!$N$113","","Kraamzorg-- geaccepteerd","zvkx12","a680","","TY3V01"]
[null,null,null,null,"zvkx13_c700__TY0V01","*=Kostenverzamelstaat!$I$116","","Overige kosten-- incl balans","zvkx13","c700","","TY0V01"]
[null,null,null,null,"zvkx13_a700__TY0V01","*=Kostenverzamelstaat!$J$116","","Overige kosten-- geaccepteerd","zvkx13","a700","","TY0V01"]
[null,null,null,null,"zvkx13_c700__TY1V01","*=Kostenverzamelstaat!$K$116","","Overige kosten-- incl balans","zvkx13","c700","","TY1V01"]
[null,null,null,null,"zvkx13_a700__TY1V01","*=Kostenverzamelstaat!$L$116","","Overige kosten-- geaccepteerd","zvkx13","a700","","TY1V01"]
[null,null,null,null,"zvkx13_a700__TY2V01","*=Kostenverzamelstaat!$M$116","","Overige kosten-- geaccepteerd","zvkx13","a700","","TY2V01"]
[null,null,null,null,"zvkx13_a700__TY3V01","*=Kostenverzamelstaat!$N$116","","Overige kosten-- geaccepteerd","zvkx13","a700","","TY3V01"]
[null,null,null,null,"zvkx13_c701__TY0V01","*=Kostenverzamelstaat!$I$117","","Overige kosten- geneeskundige zorg- incl balans","zvkx13","c701","","TY0V01"]
[null,null,null,null,"zvkx13_a701__TY0V01","*=Kostenverzamelstaat!$J$117","","Overige kosten- geneeskundige zorg- geaccepteerd","zvkx13","a701","","TY0V01"]
[null,null,null,null,"zvkx13_c701__TY1V01","*=Kostenverzamelstaat!$K$117","","Overige kosten- geneeskundige zorg- incl balans","zvkx13","c701","","TY1V01"]
[null,null,null,null,"zvkx13_a701__TY1V01","*=Kostenverzamelstaat!$L$117","","Overige kosten- geneeskundige zorg- geaccepteerd","zvkx13","a701","","TY1V01"]
[null,null,null,null,"zvkx13_a701__TY2V01","*=Kostenverzamelstaat!$M$117","","Overige kosten- geneeskundige zorg- geaccepteerd","zvkx13","a701","","TY2V01"]
[null,null,null,null,"zvkx13_a701__TY3V01","*=Kostenverzamelstaat!$N$117","","Overige kosten- geneeskundige zorg- geaccepteerd","zvkx13","a701","","TY3V01"]
[null,null,null,null,"zvkx13_c702__TY0V01","*=Kostenverzamelstaat!$I$118","","Overige kosten- zintuiglijk gehandicapten- incl balans","zvkx13","c702","","TY0V01"]
[null,null,null,null,"zvkx13_a702__TY0V01","*=Kostenverzamelstaat!$J$118","","Overige kosten- zintuiglijk gehandicapten- geaccepteerd","zvkx13","a702","","TY0V01"]
[null,null,null,null,"zvkx13_c702__TY1V01","*=Kostenverzamelstaat!$K$118","","Overige kosten- zintuiglijk gehandicapten- incl balans","zvkx13","c702","","TY1V01"]
[null,null,null,null,"zvkx13_a702__TY1V01","*=Kostenverzamelstaat!$L$118","","Overige kosten- zintuiglijk gehandicapten- geaccepteerd","zvkx13","a702","","TY1V01"]
[null,null,null,null,"zvkx13_a702__TY2V01","*=Kostenverzamelstaat!$M$118","","Overige kosten- zintuiglijk gehandicapten- geaccepteerd","zvkx13","a702","","TY2V01"]
[null,null,null,null,"zvkx13_a702__TY3V01","*=Kostenverzamelstaat!$N$118","","Overige kosten- zintuiglijk gehandicapten- geaccepteerd","zvkx13","a702","","TY3V01"]
[null,null,null,null,"zvkx13_c703__TY0V01","*=Kostenverzamelstaat!$I$119","","Overige kosten- Transformatiemiddelen IZA- incl balans","zvkx13","c703","","TY0V01"]
[null,null,null,null,"zvkx13_a703__TY0V01","*=Kostenverzamelstaat!$J$119","","Overige kosten- Transformatiemiddelen IZA- geaccepteerd","zvkx13","a703","","TY0V01"]
[null,null,null,null,"zvkx13_c703__TY1V01","*=Kostenverzamelstaat!$K$119",null,"Overige kosten- Transformatiemiddelen IZA- incl balans","zvkx13","c703","","TY1V01"]
[null,null,null,null,"zvkx13_a703__TY1V01","*=Kostenverzamelstaat!$L$119",null,"Overige kosten- Transformatiemiddelen IZA- geaccepteerd","zvkx13","a703","","TY1V01"]
[null,null,null,null,"zvkx15_c720__TY0V01","*=Kostenverzamelstaat!$I$122","","Grensoverschrijdende zorg- Kosten via verzekeraar-- incl balans","zvkx15","c720","","TY0V01"]
[null,null,null,null,"zvkx15_a720__TY0V01","*=Kostenverzamelstaat!$J$122","","Grensoverschrijdende zorg- Kosten via verzekeraar- geaccepteerd","zvkx15","a720","","TY0V01"]
[null,null,null,null,"zvkx15_c720__TY1V01","*=Kostenverzamelstaat!$K$122","","Grensoverschrijdende zorg- Kosten via verzekeraar-- incl balans","zvkx15","c720","","TY1V01"]
[null,null,null,null,"zvkx15_a720__TY1V01","*=Kostenverzamelstaat!$L$122","","Grensoverschrijdende zorg- Kosten via verzekeraar- geaccepteerd","zvkx15","a720","","TY1V01"]
[null,null,null,null,"zvkx15_a720__TY2V01","*=Kostenverzamelstaat!$M$122","","Grensoverschrijdende zorg- Kosten via verzekeraar- geaccepteerd","zvkx15","a720","","TY2V01"]
[null,null,null,null,"zvkx15_a720__TY3V01","*=Kostenverzamelstaat!$N$122","","Grensoverschrijdende zorg- Kosten via verzekeraar- geaccepteerd","zvkx15","a720","","TY3V01"]
[null,null,null,null,"zvkx15_c721__TY0V01","*=Kostenverzamelstaat!$I$123","","Grensoverschrijdende zorg-Kosten via verbindingsorgaan- incl balans","zvkx15","c720","","TY0V01"]
[null,null,null,null,"zvkx15_a721__TY0V01","*=Kostenverzamelstaat!$J$123","","Grensoverschrijdende zorg- Kosten via verbindingsorgaan- geaccepteerd","zvkx15","a720","","TY0V01"]
[null,null,null,null,"zvkx15_c721__TY1V01","*=Kostenverzamelstaat!$K$123","","Grensoverschrijdende zorg-Kosten via verbindingsorgaan- incl balans","zvkx15","c720","","TY1V01"]
[null,null,null,null,"zvkx15_a721__TY1V01","*=Kostenverzamelstaat!$L$123","","Grensoverschrijdende zorg- Kosten via verbindingsorgaan- geaccepteerd","zvkx15","a720","","TY1V01"]
[null,null,null,null,"zvkx15_a721__TY2V01","*=Kostenverzamelstaat!$M$123","","Grensoverschrijdende zorg- Kosten via verbindingsorgaan- geaccepteerd","zvkx15","a720","","TY2V01"]
[null,null,null,null,"zvkx15_a721__TY3V01","*=Kostenverzamelstaat!$N$123","","Grensoverschrijdende zorg- Kosten via verbindingsorgaan- geaccepteerd","zvkx15","a720","","TY3V01"]
[null,null,null,null,"zvkx16_c730__TY0V01","*=Kostenverzamelstaat!$I$126","","Kwaliteitsgelden-- incl balans","zvkx16","c730","","TY0V01"]
[null,null,null,null,"zvkx16_a730__TY0V01","*=Kostenverzamelstaat!$J$126","","Kwaliteitsgelden-- geaccepteerd","zvkx16","a730","","TY0V01"]
[null,null,null,null,"zvkx16_c730__TY1V01","*=Kostenverzamelstaat!$K$126","","Kwaliteitsgelden-- incl balans","zvkx16","c730","","TY1V01"]
[null,null,null,null,"zvkx16_a730__TY1V01","*=Kostenverzamelstaat!$L$126","","Kwaliteitsgelden-- geaccepteerd","zvkx16","a730","","TY1V01"]
[null,null,null,null,"zvkx16_a730__TY2V01","*=Kostenverzamelstaat!$M$126","","Kwaliteitsgelden-- geaccepteerd","zvkx16","a730","","TY2V01"]
[null,null,null,null,"zvkx16_a730__TY3V01","*=Kostenverzamelstaat!$N$126","","Kwaliteitsgelden-- geaccepteerd","zvkx16","a730","","TY3V01"]
[null,null,null,null,"zvkx17_a1__TY3V01","*=Kostenverzamelstaat!$M$132",null,"TOTAAL NETTO CONTINUITEITSBIJDRAGE COVID (BASISVERZEKERING), VARIABEL-  geaccepteerd","zvkx17","a1",null,"TY3V01"]
[null,null,null,null,"zvkx17_a1__TY4V01","*=Kostenverzamelstaat!$N$132",null,"'TOTAAL NETTO CONTINUITEITSBIJDRAGE COVID (BASISVERZEKERING), VARIABEL-  geaccepteerd","zvkx17","a1",null,"TY4V01"]
[null,null,null,null,"zvkx17_a2__TY3V01","*=Kostenverzamelstaat!$M$133",null,"TOTAAL NETTO CONTINUITEITSBIJDRAGE COVID (BASISVERZEKERING), GGZ-  geaccepteerd","zvkx17","a2",null,"TY3V01"]
[null,null,null,null,"zvkx17_a2__TY4V01","*=Kostenverzamelstaat!$N$133",null,"TOTAAL NETTO CONTINUITEITSBIJDRAGE COVID (BASISVERZEKERING), GGZ-  geaccepteerd","zvkx17","a2",null,"TY4V01"]
[null,null,null,null,"zvkx17_a3__TY3V01","*=Kostenverzamelstaat!$M$137",null,"TOTAAL NETTO COVID-19-KOSTEN (DIRECTE KOSTEN, INDIRECTE KOSTEN EN TOESLAGEN)-  geaccepteerd","zvkx17","a3",null,"TY3V01"]
[null,null,null,null,"zvkx17_a3__TY4V01","*=Kostenverzamelstaat!$N$137",null,"TOTAAL NETTO COVID-19-KOSTEN (DIRECTE KOSTEN, INDIRECTE KOSTEN EN TOESLAGEN)-  geaccepteerd","zvkx17","a3",null,"TY4V01"]
[null,null,null,null,"zvkx17_a4__TY3V01","*=Kostenverzamelstaat!$M$138",null,"TOTAAL NETTO COVID-19, GGZ (DIRECTE KOSTEN, INDIRECTE KOSTEN EN TOESLAGEN)-  geaccepteerd","zvkx17","a4",null,"TY3V01"]
[null,null,null,null,"zvkx17_a4__TY4V01","*=Kostenverzamelstaat!$N$138",null,"TOTAAL NETTO COVID-19, GGZ (DIRECTE KOSTEN, INDIRECTE KOSTEN EN TOESLAGEN)-  geaccepteerd","zvkx17","a4",null,"TY4V01"]
[null,null,null,null,"zvkxdnb_c8901__TY0V01","*=Kostenverzamelstaat!$I$142","","Verschilposten DNB- Opbrengsten verhaal- incl balans","zvkxdnb","c8901","","TY0V01"]
[null,null,null,null,"zvkxdnb_a8901__TY0V01","*=Kostenverzamelstaat!$J$142","","Verschilposten DNB- Opbrengsten verhaal- geaccepteerd","zvkxdnb","c8901","","TY0V01"]
[null,null,null,null,"zvkxdnb_c8901__TY1V01","*=Kostenverzamelstaat!$K$142","","Verschilposten DNB- Opbrengsten verhaal- incl balans","zvkxdnb","c8901","","TY1V01"]
[null,null,null,null,"zvkxdnb_a8901__TY1V01","*=Kostenverzamelstaat!$L$142","","Verschilposten DNB- Opbrengsten verhaal- geaccepteerd","zvkxdnb","c8901","","TY1V01"]
[null,null,null,null,"zvkxdnb_a8901__TY2V01","*=Kostenverzamelstaat!$M$142","","Verschilposten DNB- Opbrengsten verhaal- geaccepteerd","zvkxdnb","c8901","","TY2V01"]
[null,null,null,null,"zvkxdnb_a8901__TY3V01","*=Kostenverzamelstaat!$N$142","","Verschilposten DNB- Opbrengsten verhaal- geaccepteerd","zvkxdnb","c8901","","TY3V01"]
[null,null,null,null,"zvkxdnb_c910__TY0V01","*=Kostenverzamelstaat!$I$143","","Verschilposten DNB- Schade tlv het vrijwillig eigen risico- incl balans","zvkxdnb","c910","","TY0V01"]
[null,null,null,null,"zvkxdnb_a910__TY0V01","*=Kostenverzamelstaat!$J$143","","Verschilposten DNB- Schade tlv het vrijwillig eigen risico- geaccepteerd","zvkxdnb","a910","","TY0V01"]
[null,null,null,null,"zvkxdnb_c910__TY1V01","*=Kostenverzamelstaat!$K$143","","Verschilposten DNB- Schade tlv het vrijwillig eigen risico- incl balans","zvkxdnb","c910","","TY1V01"]
[null,null,null,null,"zvkxdnb_a910__TY1V01","*=Kostenverzamelstaat!$L$143","","Verschilposten DNB- Schade tlv het vrijwillig eigen risico- geaccepteerd","zvkxdnb","a910","","TY1V01"]
[null,null,null,null,"zvkxdnb_a910__TY2V01","*=Kostenverzamelstaat!$M$143","","Verschilposten DNB- Schade tlv het vrijwillig eigen risico- geaccepteerd","zvkxdnb","a910","","TY2V01"]
[null,null,null,null,"zvkxdnb_a910__TY3V01","*=Kostenverzamelstaat!$N$143","","Verschilposten DNB- Schade tlv het vrijwillig eigen risico- geaccepteerd","zvkxdnb","a910","","TY3V01"]
[null,null,null,null,"zvkxdnb_c915__TY0V01","*=Kostenverzamelstaat!$I$144","","Verschilposten DNB- Schade tlv het verplicht eigen risico- incl balans","zvkxdnb","c915","","TY0V01"]
[null,null,null,null,"zvkxdnb_a915__TY0V01","*=Kostenverzamelstaat!$J$144","","Verschilposten DNB- Schade tlv het verplicht eigen risico- geaccepteerd","zvkxdnb","a915","","TY0V01"]
[null,null,null,null,"zvkxdnb_c915__TY1V01","*=Kostenverzamelstaat!$K$144","","Verschilposten DNB- Schade tlv het verplicht eigen risico- incl balans","zvkxdnb","c915","","TY1V01"]
[null,null,null,null,"zvkxdnb_a915__TY1V01","*=Kostenverzamelstaat!$L$144","","Verschilposten DNB- Schade tlv het verplicht eigen risico- geaccepteerd","zvkxdnb","a915","","TY1V01"]
[null,null,null,null,"zvkxdnb_a915__TY2V01","*=Kostenverzamelstaat!$M$144","","Verschilposten DNB- Schade tlv het verplicht eigen risico- geaccepteerd","zvkxdnb","a915","","TY2V01"]
[null,null,null,null,"zvkxdnb_a915__TY3V01","*=Kostenverzamelstaat!$N$144","","Verschilposten DNB- Schade tlv het verplicht eigen risico- geaccepteerd","zvkxdnb","a915","","TY3V01"]
[null,null,null,null,"zvkxdnb_c940__TY0V01","*=Kostenverzamelstaat!$I$145","","Verschilposten DNB- Netto Premieopbrengsten- incl balans","zvkxdnb","c940","","TY0V01"]
[null,null,null,null,"zvkxdnb_a940__TY0V01","*=Kostenverzamelstaat!$J$145","","Verschilposten DNB- Netto Premieopbrengsten- geaccepteerd","zvkxdnb","a940","","TY0V01"]
[null,null,null,null,"zvkxdnb_c940__TY1V01","*=Kostenverzamelstaat!$K$145","","Verschilposten DNB- Netto Premieopbrengsten- incl balans","zvkxdnb","c940","","TY1V01"]
[null,null,null,null,"zvkxdnb_a940__TY1V01","*=Kostenverzamelstaat!$L$145","","Verschilposten DNB- Netto Premieopbrengsten- geaccepteerd","zvkxdnb","a940","","TY1V01"]
[null,null,null,null,"zvkxdnb_a940__TY2V01","*=Kostenverzamelstaat!$M$145","","Verschilposten DNB- Netto Premieopbrengsten- geaccepteerd","zvkxdnb","a940","","TY2V01"]
[null,null,null,null,"zvkxdnb_a940__TY3V01","*=Kostenverzamelstaat!$N$145","","Verschilposten DNB- Netto Premieopbrengsten- geaccepteerd","zvkxdnb","a940","","TY3V01"]
[null,null,null,null,"zvox01_c97101_o01trf_TY0V01","*=Contractinformatie!$J$14","","Huisartsenzorg en Multidisciplinaire zorg, (code 503,504,505,506,507,515)- Gecontracteerd 503,504,505,506,507,515- incl balans","zvox01","c97101","o01trf","TY0V01"]
[null,null,null,null,"zvox01_c97101_o01trf_TY1V01","*=Contractinformatie!$K$14","","Huisartsenzorg en Multidisciplinaire zorg, (code 503,504,505,506,507,515)- Gecontracteerd 503,504,505,506,507,515- incl balans","zvox01","c97101","o01trf","TY1V01"]
[null,null,null,null,"zvox01_c97101_o01trf_TY2V01","*=Contractinformatie!$L$14","","Huisartsenzorg en Multidisciplinaire zorg, (code 503,504,505,506,507,515)- Gecontracteerd 503,504,505,506,507,515- incl balans","zvox01","c97101","o01trf","TY2V01"]
[null,null,null,null,"zvox01_c97101_o52trf_TY0V01","*=Contractinformatie!$J$15","","Huisartsenzorg en Multidisciplinaire zorg, (code 503,504,505,506,507,515)- Niet gecontracteerd 503,504,505,506,507,515- incl balans","zvox01","c97101","o52trf","TY0V01"]
[null,null,null,null,"zvox01_c97101_o52trf_TY1V01","*=Contractinformatie!$K$15","","Huisartsenzorg en Multidisciplinaire zorg, (code 503,504,505,506,507,515)- Niet gecontracteerd 503,504,505,506,507,515- incl balans","zvox01","c97101","o52trf","TY1V01"]
[null,null,null,null,"zvox01_c97101_o52trf_TY2V01","*=Contractinformatie!$L$15","","Huisartsenzorg en Multidisciplinaire zorg, (code 503,504,505,506,507,515)- Niet gecontracteerd 503,504,505,506,507,515- incl balans","zvox01","c97101","o52trf","TY2V01"]
[null,null,null,null,"zvox01_c97101_o01mdz_TY0V01","*=Contractinformatie!$J$18","","Huisartsenzorg en Multidisciplinaire zorg, (code 510 en 516)- Gecontracteerd 510,516- incl balans","zvox01","c97101","o01mdz","TY0V01"]
[null,null,null,null,"zvox01_c97101_o01mdz_TY1V01","*=Contractinformatie!$K$18","","Huisartsenzorg en Multidisciplinaire zorg, (code 510 en 516)- Gecontracteerd 510,516- incl balans","zvox01","c97101","o01mdz","TY1V01"]
[null,null,null,null,"zvox01_c97101_o01mdz_TY2V01","*=Contractinformatie!$L$18","","Huisartsenzorg en Multidisciplinaire zorg, (code 510 en 516)- Gecontracteerd 510,516- incl balans","zvox01","c97101","o01mdz","TY2V01"]
[null,null,null,null,"zvox01_c97101_o52mdz_TY0V01","*=Contractinformatie!$J$19","","Huisartsenzorg en Multidisciplinaire zorg, (code 510 en 516)- Niet gecontracteerd  510,516- incl balans","zvox01","c97101","o52mdz","TY0V01"]
[null,null,null,null,"zvox01_c97101_o52mdz_TY1V01","*=Contractinformatie!$K$19","","Huisartsenzorg en Multidisciplinaire zorg, (code 510 en 516)- Niet gecontracteerd  510,516- incl balans","zvox01","c97101","o52mdz","TY1V01"]
[null,null,null,null,"zvox01_c97101_o52mdz_TY2V01","*=Contractinformatie!$L$19","","Huisartsenzorg en Multidisciplinaire zorg, (code 510 en 516)- Niet gecontracteerd  510,516- incl balans","zvox01","c97101","o52mdz","TY2V01"]
[null,null,null,null,"zvox03_c97103_o01_TY0V01","*=Contractinformatie!$J$26","","Contractinformatie Verpleging en Verzorging- Gecontracteerd- incl balans","zvox03","c97103","o01","TY0V01"]
[null,null,null,null,"zvox03_c97103_o01_TY1V01","*=Contractinformatie!$K$26","","Contractinformatie Verpleging en Verzorging- Gecontracteerd- incl balans","zvox03","c97103","o01","TY1V01"]
[null,null,null,null,"zvox03_c97103_o01_TY2V01","*=Contractinformatie!$L$26","","Contractinformatie Verpleging en Verzorging- Gecontracteerd- incl balans","zvox03","c97103","o01","TY2V01"]
[null,null,null,null,"zvox03_c97103_o52_TY0V01","*=Contractinformatie!$J$27","","Contractinformatie Verpleging en Verzorging- Niet gecontracteerd- incl balans","zvox03","c97103","o52","TY0V01"]
[null,null,null,null,"zvox03_c97103_o52_TY1V01","*=Contractinformatie!$K$27","","Contractinformatie Verpleging en Verzorging- Niet gecontracteerd- incl balans","zvox03","c97103","o52","TY1V01"]
[null,null,null,null,"zvox03_c97103_o52_TY2V01","*=Contractinformatie!$L$27","","Contractinformatie Verpleging en Verzorging- Niet gecontracteerd- incl balans","zvox03","c97103","o52","TY2V01"]
[null,null,null,null,"zvox03_c97103_o08_TY0V01","*=Contractinformatie!$J$28",null,"Contractinformatie Verpleging en Verzorging- PGB- incl balans","zvox03","c97103","o08","TY0V01"]
[null,null,null,null,"zvox03_c97103_o08_TY1V01","*=Contractinformatie!$K$28",null,"Contractinformatie Verpleging en Verzorging- PGB- incl balans","zvox03","c97103","o08","TY1V01"]
[null,null,null,null,"zvox03_c97103_o08_TY2V01","*=Contractinformatie!$L$28",null,"Contractinformatie Verpleging en Verzorging- PGB- incl balans","zvox03","c97103","o08","TY2V01"]
[null,null,"aanpassing 25-2",null,"zvox03_c97103_o01mk_TY2V01","*=Contractinformatie!L29",null,"Contractinformatie Verpleging en Verzorging- Meerkosten Corona, indirect en toeslagen, gecontracteerd, niet gecontracteerd- incl balans","zvox03","c97103","o01mk","TY2V01"]
[null,null,null,null,"zvox06_c97106_o02_TY0V01","*=Contractinformatie!$J$35","","Medisch Specialistische Zorg- aanneemsom- incl balans","zvox06","c97106","o02","TY0V01"]
[null,null,null,null,"zvox06_c97106_o02_TY1V01","*=Contractinformatie!$K$35","","Medisch Specialistische Zorg- aanneemsom- incl balans","zvox06","c97106","o02","TY1V01"]
[null,null,null,null,"zvox06_c97106_o02_TY2V01","*=Contractinformatie!$L$35","","Medisch Specialistische Zorg- aanneemsom- incl balans","zvox06","c97106","o02","TY2V01"]
[null,null,null,null,"zvox06_c97106_o03_TY0V01","*=Contractinformatie!$J$36","","Medisch Specialistische Zorg- plafond- incl balans","zvox06","c97106","o03","TY0V01"]
[null,null,null,null,"zvox06_c97106_o03_TY1V01","*=Contractinformatie!$K$36","","Medisch Specialistische Zorg- plafond- incl balans","zvox06","c97106","o03","TY1V01"]
[null,null,null,null,"zvox06_c97106_o03_TY2V01","*=Contractinformatie!$L$36","","Medisch Specialistische Zorg- plafond- incl balans","zvox06","c97106","o03","TY2V01"]
[null,null,null,null,"zvox06_c97106_o04_TY0V01","*=Contractinformatie!$J$37","","Medisch Specialistische Zorg- nacalculatie- incl balans","zvox06","c97106","o04","TY0V01"]
[null,null,null,null,"zvox06_c97106_o04_TY1V01","*=Contractinformatie!$K$37","","Medisch Specialistische Zorg- nacalculatie- incl balans","zvox06","c97106","o04","TY1V01"]
[null,null,null,null,"zvox06_c97106_o04_TY2V01","*=Contractinformatie!$L$37","","Medisch Specialistische Zorg- nacalculatie- incl balans","zvox06","c97106","o04","TY2V01"]
[null,null,null,null,"zvox06_c97106_o05_TY0V01","*=Contractinformatie!$J$38","","Medisch Specialistische Zorg- open einde contract- incl balans","zvox06","c97106","o05","TY0V01"]
[null,null,null,null,"zvox06_c97106_o05_TY1V01","*=Contractinformatie!$K$38","","Medisch Specialistische Zorg- open einde contract- incl balans","zvox06","c97106","o05","TY1V01"]
[null,null,null,null,"zvox06_c97106_o05_TY2V01","*=Contractinformatie!$L$38","","Medisch Specialistische Zorg- open einde contract- incl balans","zvox06","c97106","o05","TY2V01"]
[null,null,null,null,"zvox06_c97106_o52_TY0V01","*=Contractinformatie!$J$40","","Medisch Specialistische Zorg- Niet gecontracteerd- incl balans","zvox06","c97106","o52","TY0V01"]
[null,null,null,null,"zvox06_c97106_o52_TY1V01","*=Contractinformatie!$K$40","","Medisch Specialistische Zorg- Niet gecontracteerd- incl balans","zvox06","c97106","o52","TY1V01"]
[null,null,null,null,"zvox06_c97106_o52_TY2V01","*=Contractinformatie!$L$40","","Medisch Specialistische Zorg- Niet gecontracteerd- incl balans","zvox06","c97106","o52","TY2V01"]
[null,null,null,null,"zvox06_c97106_o01mk_TY2V01","*=Contractinformatie!$L$41",null,"Medisch Specialistische Zorg- Meerkosten Corona, indirect en toeslagen, gecontracteerd, niet gecontracteerd- incl balans","zvox06","c97106","o01mk","TY2V01"]
[null,null,null,null,"zvox06_c97106_o91_TY0V01","*=Contractinformatie!$J$45",null,"Medisch Specialistische Zorg- Totaal afgesproken maximum omzet plafondcontracten- incl balans","zvox06","c97106","o91","TY0V01"]
[null,null,null,null,"zvox06_c97106_o91_TY1V01","*=Contractinformatie!$K$45",null,"Medisch Specialistische Zorg- Totaal afgesproken maximum omzet plafondcontracten- incl balans","zvox06","c97106","o91","TY1V01"]
[null,null,null,null,"zvox06_c97106_o91_TY2V01","*=Contractinformatie!$L$45",null,"Medisch Specialistische Zorg- Totaal afgesproken maximum omzet plafondcontracten- incl balans","zvox06","c97106","o91","TY2V01"]
[null,null,null,null,"zvox10_c97110_o02_TY0V01","*=Contractinformatie!$J$54","","Geneeskundige GGZ- aanneemsom- incl balans","zvox10","c97110","o02","TY0V01"]
[null,null,null,null,"zvox10_c97110_o02_TY1V01","*=Contractinformatie!$K$54","","Geneeskundige GGZ- aanneemsom- incl balans","zvox10","c97110","o02","TY1V01"]
[null,null,null,null,"zvox10_c97110_o02_TY2V01","*=Contractinformatie!$L$54","","Geneeskundige GGZ- aanneemsom- incl balans","zvox10","c97110","o02","TY2V01"]
[null,null,null,null,"zvox10_c97110_o03_TY0V01","*=Contractinformatie!$J$55","","Geneeskundige GGZ- plafond- incl balans","zvox10","c97110","o03","TY0V01"]
[null,null,null,null,"zvox10_c97110_o03_TY1V01","*=Contractinformatie!$K$55","","Geneeskundige GGZ- plafond- incl balans","zvox10","c97110","o03","TY1V01"]
[null,null,null,null,"zvox10_c97110_o03_TY2V01","*=Contractinformatie!$L$55","","Geneeskundige GGZ- plafond- incl balans","zvox10","c97110","o03","TY2V01"]
[null,null,null,null,"zvox10_c97110_o04_TY0V01","*=Contractinformatie!$J$56","","Geneeskundige GGZ- nacalculatie- incl balans","zvox10","c97110","o04","TY0V01"]
[null,null,null,null,"zvox10_c97110_o04_TY1V01","*=Contractinformatie!$K$56","","Geneeskundige GGZ- nacalculatie- incl balans","zvox10","c97110","o04","TY1V01"]
[null,null,null,null,"zvox10_c97110_o04_TY2V01","*=Contractinformatie!$L$56","","Geneeskundige GGZ- nacalculatie- incl balans","zvox10","c97110","o04","TY2V01"]
[null,null,null,null,"zvox10_c97110_o05_TY0V01","*=Contractinformatie!$J$57","","Geneeskundige GGZ- open einde contract- incl balans","zvox10","c97110","o05","TY0V01"]
[null,null,null,null,"zvox10_c97110_o05_TY1V01","*=Contractinformatie!$K$57","","Geneeskundige GGZ- open einde contract- incl balans","zvox10","c97110","o05","TY1V01"]
[null,null,null,null,"zvox10_c97110_o05_TY2V01","*=Contractinformatie!$L$57","","Geneeskundige GGZ- open einde contract- incl balans","zvox10","c97110","o05","TY2V01"]
[null,null,null,null,"zvox10_c97110_o52_TY0V01","*=Contractinformatie!$J$59","","Geneeskundige GGZ- Niet gecontracteerd- incl balans","zvox10","c97110","o52","TY0V01"]
[null,null,null,null,"zvox10_c97110_o52_TY1V01","*=Contractinformatie!$K$59","","Geneeskundige GGZ- Niet gecontracteerd- incl balans","zvox10","c97110","o52","TY1V01"]
[null,null,null,null,"zvox10_c97110_o52_TY2V01","*=Contractinformatie!$L$59","","Geneeskundige GGZ- Niet gecontracteerd- incl balans","zvox10","c97110","o52","TY2V01"]
[null,null,null,null,"zvox10_c97110_o01mk_TY2V01","*=Contractinformatie!$L$60",null,"Geneeskundige GGZ- Meerkosten (toeslagen en lumpsum), gecontracteerd en niet gecontracteerd- incl balans","zvox10","c97110","o01mk","TY2V01"]
[null,null,null,null,"zvox10_c97110_o91_TY0V01","*=Contractinformatie!$J$64",null,"Geneeskundige GGZ- Totaal afgesproken maximum omzet plafondcontracten- incl balans","zvox10","c97110","o91","TY0V01"]
[null,null,null,null,"zvox10_c97110_o91_TY1V01","*=Contractinformatie!$K$64",null,"Geneeskundige GGZ- Totaal afgesproken maximum omzet plafondcontracten- incl balans","zvox10","c97110","o91","TY1V01"]
[null,null,null,null,"zvox10_c97110_o91_TY2V01","*=Contractinformatie!$L$64",null,"Geneeskundige GGZ- Totaal afgesproken maximum omzet plafondcontracten- incl balans","zvox10","c97110","o91","TY2V01"]
[null,null,null,null,"zvox13_c97113_bo01_TY0V01","*=Contractinformatie!$J$69","","Zintuiglijk gehandicapten- Gecontracteerd- incl balans","zvox13","c97113","bo01","TY0V01"]
[null,null,null,null,"zvox13_c97113_bo01_TY1V01","*=Contractinformatie!$K$69","","Zintuiglijk gehandicapten- Gecontracteerd- incl balans","zvox13","c97113","bo01","TY1V01"]
[null,null,null,null,"zvox13_c97113_bo01_TY2V01","*=Contractinformatie!$L$69","","Zintuiglijk gehandicapten- Gecontracteerd- incl balans","zvox13","c97113","bo01","TY2V01"]
[null,null,null,null,"zvox13_c97113_bo52_TY0V01","*=Contractinformatie!$J$70","","Zintuiglijk gehandicapten- Niet gecontracteerd- incl balans","zvox13","c97113","bo52","TY0V01"]
[null,null,null,null,"zvox13_c97113_bo52_TY1V01","*=Contractinformatie!$K$70","","Zintuiglijk gehandicapten- Niet gecontracteerd- incl balans","zvox13","c97113","bo52","TY1V01"]
[null,null,null,null,"zvox13_c97113_bo52_TY2V01","*=Contractinformatie!$L$70","","Zintuiglijk gehandicapten- Niet gecontracteerd- incl balans","zvox13","c97113","bo52","TY2V01"]
[null,null,null,null,"zvox11_c97111_o01rvl_TY0V01","*=Contractinformatie!$J$77","","Geriatrische Revalidatiezorg 670 en Eerstelijnsverblijf 671,  Geneeskundige Zorg Specifieke Patiëntgroepen (code 672))- Gecontracteerd  670- incl balans","zvox11","c97111","o01rvl","TY0V01"]
[null,null,null,null,"zvox11_c97111_o01rvl_TY1V01","*=Contractinformatie!$K$77","","Geriatrische Revalidatiezorg 670 en Eerstelijnsverblijf 671,  Geneeskundige Zorg Specifieke Patiëntgroepen (code 672)- Gecontracteerd  670- incl balans","zvox11","c97111","o01rvl","TY1V01"]
[null,null,null,null,"zvox11_c97111_o01rvl_TY2V01","*=Contractinformatie!$L$77","","Geriatrische Revalidatiezorg 670 en Eerstelijnsverblijf 671,  Geneeskundige Zorg Specifieke Patiëntgroepen (code 672))- Gecontracteerd  670- incl balans","zvox11","c97111","o01rvl","TY2V01"]
[null,null,null,null,"zvox11_c97111_o52rvl_TY0V01","*=Contractinformatie!$J$78","","Geriatrische Revalidatiezorg 670 en Eerstelijnsverblijf 671,  Geneeskundige Zorg Specifieke Patiëntgroepen (code 672)- Niet gecontracteerd 670- incl balans","zvox11","c97111","o52rvl","TY0V01"]
[null,null,null,null,"zvox11_c97111_o52rvl_TY1V01","*=Contractinformatie!$K$78","","Geriatrische Revalidatiezorg 670 en Eerstelijnsverblijf 671,  Geneeskundige Zorg Specifieke Patiëntgroepen (code 672)- Niet gecontracteerd 670- incl balans","zvox11","c97111","o52rvl","TY1V01"]
[null,null,null,null,"zvox11_c97111_o52rvl_TY2V01","*=Contractinformatie!$L$78","","Geriatrische Revalidatiezorg 670 en Eerstelijnsverblijf 671,  Geneeskundige Zorg Specifieke Patiëntgroepen (code 672)- Niet gecontracteerd 670- incl balans","zvox11","c97111","o52rvl","TY2V01"]
[null,null,null,null,"zvox11_c97111_o52rvlmk_TY2V01","*=Contractinformatie!$L$79",null,"Geriatrische Revalidatiezorg 670 en Eerstelijnsverblijf 671, Geneeskundige Zorg Specifieke Patiëntgroepen (code 672)- Meerkosten (toeslagen en lumpsum), gecontracteerd en niet gecontracteerd- incl balans","zvox11","c97111","o52rvlmk","TY2V01"]
[null,null,null,null,"zvox11_c97111_o01ln1_TY0V01","*=Contractinformatie!$J$82","","Geriatrische Revalidatiezorg 670 en Eerstelijnsverblijf 671,  Geneeskundige Zorg Specifieke Patiëntgroepen (code 672)- Gecontracteerd 671- incl balans","zvox11","c97111","o01ln1","TY0V01"]
[null,null,null,null,"zvox11_c97111_o01ln1_TY1V01","*=Contractinformatie!$K$82","","Geriatrische Revalidatiezorg 670 en Eerstelijnsverblijf 671,  Geneeskundige Zorg Specifieke Patiëntgroepen (code 672)- Gecontracteerd 671- incl balans","zvox11","c97111","o01ln1","TY1V01"]
[null,null,null,null,"zvox11_c97111_o01ln1_TY2V01","*=Contractinformatie!$L$82","","Geriatrische Revalidatiezorg 670 en Eerstelijnsverblijf 671,  Geneeskundige Zorg Specifieke Patiëntgroepen (code 672)- Gecontracteerd 671- incl balans","zvox11","c97111","o01ln1","TY2V01"]
[null,null,null,null,"zvox11_c97111_o52ln1_TY0V01","*=Contractinformatie!$J$83","","Geriatrische Revalidatiezorg 670 en Eerstelijnsverblijf 671,  Geneeskundige Zorg Specifieke Patiëntgroepen (code 672)- Niet gecontracteerd 671- incl balans","zvox11","c97111","o52ln1","TY0V01"]
[null,null,null,null,"zvox11_c97111_o52ln1_TY1V01","*=Contractinformatie!$K$83","","Geriatrische Revalidatiezorg 670 en Eerstelijnsverblijf 671,  Geneeskundige Zorg Specifieke Patiëntgroepen (code 672)- Niet gecontracteerd 671- incl balans","zvox11","c97111","o52ln1","TY1V01"]
[null,null,null,null,"zvox11_c97111_o52ln1_TY2V01","*=Contractinformatie!$L$83","","Geriatrische Revalidatiezorg 670 en Eerstelijnsverblijf 671,  Geneeskundige Zorg Specifieke Patiëntgroepen (code 672)- Niet gecontracteerd 671- incl balans","zvox11","c97111","o52ln1","TY2V01"]
[null,null,null,null,"zvox11_c97111_o52ln1mk_TY2V01","*=Contractinformatie!$L$84",null,"Geriatrische Revalidatiezorg 670 en Eerstelijnsverblijf 671, Geneeskundige Zorg Specifieke Patiëntgroepen (code 672)- Meerkosten (toeslagen en lumpsum), gecontracteerd en niet gecontracteerd- incl balans","zvox11","c97111","o52ln1mk","TY2V01"]
[null,null,null,null,"zvox11_c97111_o01gzsp_TY0V01","*=Contractinformatie!$J$87",null,"Geriatrische Revalidatiezorg 670 en Eerstelijnsverblijf 671,  Geneeskundige Zorg Specifieke Patiëntgroepen (code 672)- Gecontracteerd 672- incl balans","zvox11","c97111","o01gzsp","TY0V01"]
[null,null,null,null,"zvox11_c97111_o01gzsp_TY1V01","*=Contractinformatie!$K$87",null,"Geriatrische Revalidatiezorg 670 en Eerstelijnsverblijf 671,  Geneeskundige Zorg Specifieke Patiëntgroepen (code 672)- Gecontracteerd 672- incl balans","zvox11","c97111","o01gzsp","TY1V01"]
[null,null,null,null,"zvox11_c97111_o01gzsp_TY2V01","*=Contractinformatie!$L$87",null,"Geriatrische Revalidatiezorg 670 en Eerstelijnsverblijf 671,  Geneeskundige Zorg Specifieke Patiëntgroepen (code 672)- Gecontracteerd 672- incl balans","zvox11","c97111","o01gzsp","TY2V01"]
[null,null,null,null,"zvox11_c97111_o52gzsp_TY0V01","*=Contractinformatie!$J$88",null,"Geriatrische Revalidatiezorg 670 en Eerstelijnsverblijf 671, Geneeskundige Zorg Specifieke Patiëntgroepen (code 672)- Niet gecontracteerd 672- incl balans","zvox11","c97111","o52gzsp","TY0V01"]
[null,null,null,null,"zvox11_c97111_o52gzsp_TY1V01","*=Contractinformatie!$K$88",null,"Geriatrische Revalidatiezorg 670 en Eerstelijnsverblijf 671, Geneeskundige Zorg Specifieke Patiëntgroepen (code 672)- Niet gecontracteerd 672- incl balans","zvox11","c97111","o52gzsp","TY1V01"]
[null,null,null,null,"zvox11_c97111_o52gzsp_TY2V01","*=Contractinformatie!$L$88",null,"Geriatrische Revalidatiezorg 670 en Eerstelijnsverblijf 671, Geneeskundige Zorg Specifieke Patiëntgroepen (code 672)- Niet gecontracteerd 672- incl balans","zvox11","c97111","o52gzsp","TY2V01"]
[null,null,null,null,"zvox11_c97111_o52gzmk_TY2V01","*=Contractinformatie!$L$89",null,"Geriatrische Revalidatiezorg 670 en Eerstelijnsverblijf 671, Geneeskundige Zorg Specifieke Patiëntgroepen (code 672)- Meerkosten (toeslagen en lumpsum), gecontracteerd en niet gecontracteerd- incl balans","zvox11","c97111","o52gzmk","TY2V01"]
[null,null,null,null,"zvrxsg_c978_dl101_TY0V01","*='Specifieke informatie A'!K14","","Kosten naar deelbijdrage- Variabele zorgkosten- incl balans","zvrxsg","c978","dl101","TY0V01"]
[null,null,null,null,"zvrxsg_a978_dl101_TY2V01","*='Specifieke informatie A'!$L$14","","Kosten naar deelbijdrage- Variabele zorgkosten- geaccepteerd","zvrxsg","a978","dl101","TY2V01"]
[null,null,null,null,"zvrxsg_a978_dl101_TY3V01","*='Specifieke informatie A'!$M$14","","Kosten naar deelbijdrage- Variabele zorgkosten- geaccepteerd","zvrxsg","a978","dl101","TY3V01"]
[null,null,null,null,"zvrxsg_c978_dl102_TY0V01","*='Specifieke informatie A'!$K$15","","Kosten naar deelbijdrage- Vaste zorgkosten- incl balans","zvrxsg","c978","dl102","TY0V01"]
[null,null,null,null,"zvrxsg_a978_dl102_TY2V01","*='Specifieke informatie A'!$L$15","","Kosten naar deelbijdrage- Vaste zorgkosten- geaccepteerd","zvrxsg","a978","dl102","TY2V01"]
[null,null,null,null,"zvrxsg_a978_dl102_TY3V01","*='Specifieke informatie A'!$M$15","","Kosten naar deelbijdrage- Vaste zorgkosten- geaccepteerd","zvrxsg","a978","dl102","TY3V01"]
[null,null,null,null,"zvrxsg_c978_dl152_TY0V01","*='Specifieke informatie A'!$K$16","","Kosten naar deelbijdrage- Geneeskundige GGZ- incl balans","zvrxsg","c978","dl152","TY0V01"]
[null,null,null,null,"zvrxsg_a978_dl152_TY2V01","*='Specifieke informatie A'!$L$16","","Kosten naar deelbijdrage- Geneeskundige GGZ- geaccepteerd","zvrxsg","a978","dl152","TY2V01"]
[null,null,null,null,"zvrxsg_a978_dl152_TY3V01","*='Specifieke informatie A'!$M$16","","Kosten naar deelbijdrage- Geneeskundige GGZ- geaccepteerd","zvrxsg","a978","dl152","TY3V01"]
[null,null,null,null,"zvrx02_c520_Kdegm_TY0V01","*='Specifieke informatie A'!$K$22","","C520 Kosten dure intramurale geneesmiddelen (artikel 1, regeling risicoverevening)- geaccepteerd","zvrx02","c520","degm","TY0V01"]
[null,null,null,null,"zvrx02_a520_Kdegm_TY2V01","*='Specifieke informatie A'!$L$22","","C520 Kosten dure intramurale geneesmiddelen (artikel 1, regeling risicoverevening)- geaccepteerd","zvrx02","a520","degm","TY2V01"]
[null,null,null,null,"zvrx02_a520_Kdegm_TY3V01","*='Specifieke informatie A'!$M$22","","C520 Kosten dure intramurale geneesmiddelen (artikel 1, regeling risicoverevening)- geaccepteerd","zvrx02","a520","degm","TY3V01"]
[null,null,null,null,"zvrx06_c6121_e08_TY0V01","*='Specifieke informatie A'!$K$27","","C612.1 Kosten ADD-ON'S- dure intramurale geneesmiddelen- incl balans","zvrx06","c6121","e08","TY0V01"]
[null,null,null,null,"zvrx06_a6121_e08_TY2V01","*='Specifieke informatie A'!$L$27","","C612.1 Kosten ADD-ON'S- dure intramurale geneesmiddelen- geaccepteerd","zvrx06","a6121","e08","TY2V01"]
[null,null,null,null,"zvrx06_a6121_e08_TY3V01","*='Specifieke informatie A'!$M$27","","C612.1 Kosten ADD-ON'S- dure intramurale geneesmiddelen- geaccepteerd","zvrx06","a6121","e08","TY3V01"]
[null,null,null,null,"zvrx10_c666_e10_TY0V01","*='Specifieke informatie A'!$K$32","","C666 Kosten dure intramurale geneesmiddelen- incl balans","zvrx10","c666","e10","TY0V01"]
[null,null,null,null,"zvrx10_a666_e10_TY2V01","*='Specifieke informatie A'!$L$32","","C666 Kosten dure intramurale geneesmiddelen- geaccepteerd balans","zvrx10","a666","e10","TY2V01"]
[null,null,null,null,"zvrx10_a666_e10_TY3V01","*='Specifieke informatie A'!$M$32","","C666 Kosten dure intramurale geneesmiddelen- geaccepteerd balans","zvrx10","a666","e10","TY3V01"]
[null,null,null,null,"zvrx13_c703v_m99_TY0V01","*='Specifieke informatie A'!$K$43","","C703 Overige kosten, Transformatiekosten IZA- incl balans","zvrx13","c703v","m99","TY0V01"]
[null,null,null,null,"zvrx15_c720v_m69_TY0V01","*='Specifieke informatie A'!$K$49","","C720 Buitenland, Via Verzekeraar- variabele zorgkosten- incl balans","zvrx15","c720v","m69","TY0V01"]
[null,null,null,null,"zvrx15_a720v_m69_TY2V01","*='Specifieke informatie A'!$L$49","","C720 Buitenland, Via Verzekeraar- variabele zorgkosten- geaccepteerd","zvrx15","a720v","m69","TY2V01"]
[null,null,null,null,"zvrx15_a720v_m69_TY3V01","*='Specifieke informatie A'!$M$49","","C720 Buitenland, Via Verzekeraar- variabele zorgkosten- geaccepteerd","zvrx15","a720v","m69","TY3V01"]
[null,null,null,null,"zvrx15_c720v_m51_TY0V01","*='Specifieke informatie A'!$K$50","","C720 Buitenland, Via Verzekeraar- geestelijke gezondheidszorgg- incl balans","zvrx15","c720v","m51","TY0V01"]
[null,null,null,null,"zvrx15_a720v_m51_TY2V01","*='Specifieke informatie A'!$L$50","","C720 Buitenland, Via Verzekeraar- geestelijke gezondheidszorgg- geaccepteerd","zvrx15","a720v","m51","TY2V01"]
[null,null,null,null,"zvrx15_a720v_m51_TY3V01","*='Specifieke informatie A'!$M$50","","C720 Buitenland, Via Verzekeraar- geestelijke gezondheidszorgg- geaccepteerd","zvrx15","a720v","m51","TY3V01"]
[null,null,null,null,"zvrx15_c721o_i01_TY0V01","*='Specifieke informatie A'!$K$55","","C721 buitenland, opgave ZIN- verordening of verdrag, via internationaal verbindingsorgaan- incl balans","zvrx15","c721o","i01","TY0V01"]
[null,null,null,null,"zvrx15_a721o_i01_TY2V01","*='Specifieke informatie A'!$L$55","","C721 buitenland, opgave ZIN- verordening of verdrag, via internationaal verbindingsorgaan- geaccepteerd","zvrx15","a721o","i01","TY2V01"]
[null,null,null,null,"zvrx15_a721o_i01_TY3V01","*='Specifieke informatie A'!$M$55","","C721 buitenland, opgave ZIN- verordening of verdrag, via internationaal verbindingsorgaan- geaccepteerd","zvrx15","a721o","i01","TY3V01"]
[null,null,null,null,"zvrx15_c721o_i11_TY0V01","*='Specifieke informatie A'!$K$56","","C721 buitenland, opgave ZIN- Zvw verzekerden die wonen in Nederland- incl balans","zvrx15","c721o","i11","TY0V01"]
[null,null,null,null,"zvrx15_a721o_i11_TY2V01","*='Specifieke informatie A'!$L$56","","C721 buitenland, opgave ZIN- Zvw verzekerden die wonen in Nederland- geaccepteerd","zvrx15","a721o","i11","TY2V01"]
[null,null,null,null,"zvrx15_a721o_i11_TY3V01","*='Specifieke informatie A'!$M$56","","C721 buitenland, opgave ZIN- Zvw verzekerden die wonen in Nederland- geaccepteerd","zvrx15","a721o","i11","TY3V01"]
[null,null,null,null,"zvrx15_c721o_i02_TY0V01","*='Specifieke informatie A'!$K$57","","C721 buitenland, opgave ZIN- Zvw verzekerden die wonen in het buitenland- incl balans","zvrx15","c721o","i02","TY0V01"]
[null,null,null,null,"zvrx15_a721o_i02_TY2V01","*='Specifieke informatie A'!$L$57","","C721 buitenland, opgave ZIN- Zvw verzekerden die wonen in het buitenland- geaccepteerd","zvrx15","a721o","i02","TY2V01"]
[null,null,null,null,"zvrx15_a721o_i02_TY3V01","*='Specifieke informatie A'!$M$57","","C721 buitenland, opgave ZIN- Zvw verzekerden die wonen in het buitenland- geaccepteerd","zvrx15","a721o","i02","TY3V01"]
[null,null,null,null,"zvrx19_s999_inbw_TY0V01","*='Specifieke informatie A'!$K$62","","C999 rekenpremies gedetineerden","zvrx19","s999","inbw","TY0V01"]
[null,null,null,null,"zvsx06k_a610_d1l_TY2V01","*='Specifieke informatie C'!$L$14","","C610 Overige kosten ziekenhuiszorg en curatieve zorg- eerstelijnsdiagnostiek eerstelijnszorgaanbieders - huisartslab- geaccepteerd","zvsx06k","a610","d1l","TY2V01"]
[null,null,null,null,"zvsx06k_a610_trmb_TY2V01","*='Specifieke informatie C'!$L$15","","C610 Overige kosten ziekenhuiszorg en curatieve zorg- Trombosediensten- geaccepteerd","zvsx06k","a610","trmb","TY2V01"]
[null,null,null,null,"zvsx06k_a610_sknt_TY2V01","*='Specifieke informatie C'!$L$16","","C610 Overige kosten ziekenhuiszorg en curatieve zorg- SKION en NTS- geaccepteerd","zvsx06k","a610","sknt","TY2V01"]
[null,null,null,null,"zvsx06k_c6102_d1l_TY0V01","*='Specifieke informatie C'!$H$22","","C6102 Overige kosten ziekenhuiszorg en curatieve zorg- eerstelijnsdiagnostiek eerstelijnszorgaanbieders - huisartslab- incl balans","zvsx06k","c6102","d1l","TY0V01"]
[null,null,null,null,"zvsx06k_a6102_d1l_TY0V01","*='Specifieke informatie C'!$I$22","","C6102 Overige kosten ziekenhuiszorg en curatieve zorg- eerstelijnsdiagnostiek eerstelijnszorgaanbieders - huisartslab- geaccepteerd","zvsx06k","a6102","d1l","TY0V01"]
[null,null,null,null,"zvsx06k_c6102_d1l_TY1V01","*='Specifieke informatie C'!$J$22","","C6102 Overige kosten ziekenhuiszorg en curatieve zorg- eerstelijnsdiagnostiek eerstelijnszorgaanbieders - huisartslab- incl balans","zvsx06k","c6102","d1l","TY1V01"]
[null,null,null,null,"zvsx06k_a6102_d1l_TY1V01","*='Specifieke informatie C'!$K$22","","C6102 Overige kosten ziekenhuiszorg en curatieve zorg- eerstelijnsdiagnostiek eerstelijnszorgaanbieders - huisartslab- geaccepteerd","zvsx06k","a6102","d1l","TY1V01"]
[null,null,null,null,"zvsx06k_c6102_trmb_TY0V01","*='Specifieke informatie C'!$H$23","","C6102 Overige kosten ziekenhuiszorg en curatieve zorg- Trombosediensten- incl balans","zvsx06k","c6102","trmb","TY0V01"]
[null,null,null,null,"zvsx06k_a6102_trmb_TY0V01","*='Specifieke informatie C'!$I$23","","C6102 Overige kosten ziekenhuiszorg en curatieve zorg- Trombosediensten- geaccepteerd","zvsx06k","a6102","trmb","TY0V01"]
[null,null,null,null,"zvsx06k_c6102_trmb_TY1V01","*='Specifieke informatie C'!$J$23","","C6102 Overige kosten ziekenhuiszorg en curatieve zorg- Trombosediensten- incl balans","zvsx06k","c6102","trmb","TY1V01"]
[null,null,null,null,"zvsx06k_a6102_trmb_TY1V01","*='Specifieke informatie C'!$K$23","","C6102 Overige kosten ziekenhuiszorg en curatieve zorg- Trombosediensten- geaccepteerd","zvsx06k","a6102","trmb","TY1V01"]
[null,null,null,null,"zvsx06k_c611_az_TY0V01","*='Specifieke informatie C'!$H$29","","C611 Naar Instelling- Academische ziekenhuizen- incl balans","zvsx06k","c611","az","TY0V01"]
[null,null,null,null,"zvsx06k_a611_az_TY0V01","*='Specifieke informatie C'!$I$29","","C611 Naar Instelling- Academische ziekenhuizen- geaccepteerd","zvsx06k","a611","az","TY0V01"]
[null,null,null,null,"zvsx06k_c611_az_TY1V01","*='Specifieke informatie C'!$J$29","","C611 Naar Instelling- Academische ziekenhuizen- incl balans","zvsx06k","c611","az","TY1V01"]
[null,null,null,null,"zvsx06k_a611_az_TY1V01","*='Specifieke informatie C'!$K$29","","C611 Naar Instelling- Academische ziekenhuizen- geaccepteerd","zvsx06k","a611","az","TY1V01"]
[null,null,null,null,"zvsx06k_a611_az_TY2V01","*='Specifieke informatie C'!$L$29","","C611 Naar Instelling- Academische ziekenhuizen- geaccepteerd","zvsx06k","a611","az","TY2V01"]
[null,null,null,null,"zvsx06k_c611_sz_TY0V01","*='Specifieke informatie C'!$H$30","","C611 Naar Instelling- Algemene ziekenhuizen- incl balans","zvsx06k","c611","sz","TY0V01"]
[null,null,null,null,"zvsx06k_a611_sz_TY0V01","*='Specifieke informatie C'!$I$30","","C611 Naar Instelling- Algemene ziekenhuizen- geaccepteerd","zvsx06k","a611","sz","TY0V01"]
[null,null,null,null,"zvsx06k_c611_sz_TY1V01","*='Specifieke informatie C'!$J$30","","C611 Naar Instelling- Algemene ziekenhuizen- incl balans","zvsx06k","c611","sz","TY1V01"]
[null,null,null,null,"zvsx06k_a611_sz_TY1V01","*='Specifieke informatie C'!$K$30","","C611 Naar Instelling- Algemene ziekenhuizen- geaccepteerd","zvsx06k","a611","sz","TY1V01"]
[null,null,null,null,"zvsx06k_a611_sz_TY2V01","*='Specifieke informatie C'!$L$30","","C611 Naar Instelling- Algemene ziekenhuizen- geaccepteerd","zvsx06k","a611","sz","TY2V01"]
[null,null,null,null,"zvsx06k_c611_zb_TY0V01","*='Specifieke informatie C'!$H$31","","C611 Naar Instelling- Zelfstandige behandelcentra- incl balans","zvsx06k","c611","zb","TY0V01"]
[null,null,null,null,"zvsx06k_a611_zb_TY0V01","*='Specifieke informatie C'!$I$31","","C611 Naar Instelling- Zelfstandige behandelcentra- geaccepteerd","zvsx06k","a611","zb","TY0V01"]
[null,null,null,null,"zvsx06k_c611_zb_TY1V01","*='Specifieke informatie C'!$J$31","","C611 Naar Instelling- Zelfstandige behandelcentra- incl balans","zvsx06k","c611","zb","TY1V01"]
[null,null,null,null,"zvsx06k_a611_zb_TY1V01","*='Specifieke informatie C'!$K$31","","C611 Naar Instelling- Zelfstandige behandelcentra- geaccepteerd","zvsx06k","a611","zb","TY1V01"]
[null,null,null,null,"zvsx06k_a611_zb_TY2V01","*='Specifieke informatie C'!$L$31","","C611 Naar Instelling- Zelfstandige behandelcentra- geaccepteerd","zvsx06k","a611","zb","TY2V01"]
[null,null,null,null,"zvsx06k_c611_ov_TY0V01","*='Specifieke informatie C'!$H$32","","C611 Naar Instelling- Overige zorgaanbieders- incl balans","zvsx06k","c611","ov","TY0V01"]
[null,null,null,null,"zvsx06k_a611_ov_TY0V01","*='Specifieke informatie C'!$I$32","","C611 Naar Instelling- Overige zorgaanbieders- geaccepteerd","zvsx06k","a611","ov","TY0V01"]
[null,null,null,null,"zvsx06k_c611_ov_TY1V01","*='Specifieke informatie C'!$J$32","","C611 Naar Instelling- Overige zorgaanbieders- incl balans","zvsx06k","c611","ov","TY1V01"]
[null,null,null,null,"zvsx06k_a611_ov_TY1V01","*='Specifieke informatie C'!$K$32","","C611 Naar Instelling- Overige zorgaanbieders- geaccepteerd","zvsx06k","a611","ov","TY1V01"]
[null,null,null,null,"zvsx06k_a611_ov_TY2V01","*='Specifieke informatie C'!$L$32","","C611 Naar Instelling- Overige zorgaanbieders- geaccepteerd","zvsx06k","a611","ov","TY2V01"]
[null,null,null,null,"zvsx06k_c6121_az_TY0V01","*='Specifieke informatie C'!$H$38","","C612.1 Kosten add-ons dure geneesmiddelen naar instelling- Academische ziekenhuizen- incl balans","zvsx06k","c6121","az","TY0V01"]
[null,null,null,null,"zvsx06k_a6121_az_TY0V01","*='Specifieke informatie C'!$I$38","","C612.1 Kosten add-ons dure geneesmiddelen naar instelling- Academische ziekenhuizen- geaccepteerd","zvsx06k","a6121","az","TY0V01"]
[null,null,null,null,"zvsx06k_c6121_az_TY1V01","*='Specifieke informatie C'!$J$38","","C612.1 Kosten add-ons dure geneesmiddelen naar instelling- Academische ziekenhuizen- incl balans","zvsx06k","c6121","az","TY1V01"]
[null,null,null,null,"zvsx06k_a6121_az_TY1V01","*='Specifieke informatie C'!$K$38","","C612.1 Kosten add-ons dure geneesmiddelen naar instelling- Academische ziekenhuizen- geaccepteerd","zvsx06k","a6121","az","TY1V01"]
[null,null,null,null,"zvsx06k_a6121_az_TY2V01","*='Specifieke informatie C'!$L$38","","C612.1 Kosten add-ons dure geneesmiddelen naar instelling- Academische ziekenhuizen- geaccepteerd","zvsx06k","a6121","az","TY2V01"]
[null,null,null,null,"zvsx06k_c6121_sz_TY0V01","*='Specifieke informatie C'!$H$39","","C612.1 Kosten add-ons dure geneesmiddelen naar instelling- Algemene ziekenhuizen- incl balans","zvsx06k","c6121","sz","TY0V01"]
[null,null,null,null,"zvsx06k_a6121_sz_TY0V01","*='Specifieke informatie C'!$I$39","","C612.1 Kosten add-ons dure geneesmiddelen naar instelling- Algemene ziekenhuizen- geaccepteerd","zvsx06k","a6121","sz","TY0V01"]
[null,null,null,null,"zvsx06k_c6121_sz_TY1V01","*='Specifieke informatie C'!$J$39","","C612.1 Kosten add-ons dure geneesmiddelen naar instelling- Algemene ziekenhuizen- incl balans","zvsx06k","c6121","sz","TY1V01"]
[null,null,null,null,"zvsx06k_a6121_sz_TY1V01","*='Specifieke informatie C'!$K$39","","C612.1 Kosten add-ons dure geneesmiddelen naar instelling- Algemene ziekenhuizen- geaccepteerd","zvsx06k","a6121","sz","TY1V01"]
[null,null,null,null,"zvsx06k_a6121_sz_TY2V01","*='Specifieke informatie C'!$L$39","","C612.1 Kosten add-ons dure geneesmiddelen naar instelling- Algemene ziekenhuizen- geaccepteerd","zvsx06k","a6121","sz","TY2V01"]
[null,null,null,null,"zvsx06k_c6121_zb_TY0V01","*='Specifieke informatie C'!$H$40","","C612.1 Kosten add-ons dure geneesmiddelen naar instelling- Zelfstandige behandelcentra- incl balans","zvsx06k","c6121","zb","TY0V01"]
[null,null,null,null,"zvsx06k_a6121_zb_TY0V01","*='Specifieke informatie C'!$I$40","","C612.1 Kosten add-ons dure geneesmiddelen naar instelling- Zelfstandige behandelcentra- geaccepteerd","zvsx06k","a6121","zb","TY0V01"]
[null,null,null,null,"zvsx06k_c6121_zb_TY1V01","*='Specifieke informatie C'!$J$40","","C612.1 Kosten add-ons dure geneesmiddelen naar instelling- Zelfstandige behandelcentra- incl balans","zvsx06k","c6121","zb","TY1V01"]
[null,null,null,null,"zvsx06k_a6121_zb_TY1V01","*='Specifieke informatie C'!$K$40","","C612.1 Kosten add-ons dure geneesmiddelen naar instelling- Zelfstandige behandelcentra- geaccepteerd","zvsx06k","a6121","zb","TY1V01"]
[null,null,null,null,"zvsx06k_a6121_zb_TY2V01","*='Specifieke informatie C'!$L$40","","C612.1 Kosten add-ons dure geneesmiddelen naar instelling- Zelfstandige behandelcentra- geaccepteerd","zvsx06k","a6121","zb","TY2V01"]
[null,null,null,null,"zvsx06k_c6121_ov_TY0V01","*='Specifieke informatie C'!$H$41","","C612.1 Kosten add-ons dure geneesmiddelen naar instelling- Overige zorgaanbieders- incl balans","zvsx06k","c6121","ov","TY0V01"]
[null,null,null,null,"zvsx06k_a6121_ov_TY0V01","*='Specifieke informatie C'!$I$41","","C612.1 Kosten add-ons dure geneesmiddelen naar instelling- Overige zorgaanbieders- geaccepteerd","zvsx06k","a6121","ov","TY0V01"]
[null,null,null,null,"zvsx06k_c6121_ov_TY1V01","*='Specifieke informatie C'!$J$41","","C612.1 Kosten add-ons dure geneesmiddelen naar instelling- Overige zorgaanbieders- incl balans","zvsx06k","c6121","ov","TY1V01"]
[null,null,null,null,"zvsx06k_a6121_ov_TY1V01","*='Specifieke informatie C'!$K$41","","C612.1 Kosten add-ons dure geneesmiddelen naar instelling- Overige zorgaanbieders- geaccepteerd","zvsx06k","a6121","ov","TY1V01"]
[null,null,null,null,"zvsx06k_a6121_ov_TY2V01","*='Specifieke informatie C'!$L$41","","C612.1 Kosten add-ons dure geneesmiddelen naar instelling- Overige zorgaanbieders- geaccepteerd","zvsx06k","a6121","ov","TY2V01"]
[null,null,null,null,"zvsx06k_c6122_az_TY0V01","*='Specifieke informatie C'!$H$52","","C612.2 Kosten add-ons IC naar instelling- Academische ziekenhuizen- incl balans","zvsx06k","c6122","az","TY0V01"]
[null,null,null,null,"zvsx06k_a6122_az_TY0V01","*='Specifieke informatie C'!$I$52","","C612.2 Kosten add-ons IC naar instelling- Academische ziekenhuizen- geaccepteerd","zvsx06k","a6122","az","TY0V01"]
[null,null,null,null,"zvsx06k_c6122_az_TY1V01","*='Specifieke informatie C'!$J$52","","C612.2 Kosten add-ons IC naar instelling- Academische ziekenhuizen- incl balans","zvsx06k","c6122","az","TY1V01"]
[null,null,null,null,"zvsx06k_a6122_az_TY1V01","*='Specifieke informatie C'!$K$52","","C612.2 Kosten add-ons IC naar instelling- Academische ziekenhuizen- geaccepteerd","zvsx06k","a6122","az","TY1V01"]
[null,null,null,null,"zvsx06k_a6122_az_TY2V01","*='Specifieke informatie C'!$L$52","","C612.2 Kosten add-ons IC naar instelling- Academische ziekenhuizen- geaccepteerd","zvsx06k","a6122","az","TY2V01"]
[null,null,null,null,"zvsx06k_c6122_sz_TY0V01","*='Specifieke informatie C'!$H$53","","C612.2 Kosten add-ons IC naar instelling- Algemene ziekenhuizen- incl balans","zvsx06k","c6122","sz","TY0V01"]
[null,null,null,null,"zvsx06k_a6122_sz_TY0V01","*='Specifieke informatie C'!$I$53","","C612.2 Kosten add-ons IC naar instelling- Algemene ziekenhuizen- geaccepteerd","zvsx06k","a6122","sz","TY0V01"]
[null,null,null,null,"zvsx06k_c6122_sz_TY1V01","*='Specifieke informatie C'!$J$53","","C612.2 Kosten add-ons IC naar instelling- Algemene ziekenhuizen- incl balans","zvsx06k","c6122","sz","TY1V01"]
[null,null,null,null,"zvsx06k_a6122_sz_TY1V01","*='Specifieke informatie C'!$K$53","","C612.2 Kosten add-ons IC naar instelling- Algemene ziekenhuizen- geaccepteerd","zvsx06k","a6122","sz","TY1V01"]
[null,null,null,null,"zvsx06k_a6122_sz_TY2V01","*='Specifieke informatie C'!$L$53","","C612.2 Kosten add-ons IC naar instelling- Algemene ziekenhuizen- geaccepteerd","zvsx06k","a6122","sz","TY2V01"]
[null,null,null,null,"zvsx06k_c6122_zb_TY0V01","*='Specifieke informatie C'!$H$54","","C612.2 Kosten add-ons IC naar instelling- Zelfstandige behandelcentra- incl balans","zvsx06k","c6122","zb","TY0V01"]
[null,null,null,null,"zvsx06k_a6122_zb_TY0V01","*='Specifieke informatie C'!$I$54","","C612.2 Kosten add-ons IC naar instelling- Zelfstandige behandelcentra- geaccepteerd","zvsx06k","a6122","zb","TY0V01"]
[null,null,null,null,"zvsx06k_c6122_zb_TY1V01","*='Specifieke informatie C'!$J$54","","C612.2 Kosten add-ons IC naar instelling- Zelfstandige behandelcentra- incl balans","zvsx06k","c6122","zb","TY1V01"]
[null,null,null,null,"zvsx06k_a6122_zb_TY1V01","*='Specifieke informatie C'!$K$54","","C612.2 Kosten add-ons IC naar instelling- Zelfstandige behandelcentra- geaccepteerd","zvsx06k","a6122","zb","TY1V01"]
[null,null,null,null,"zvsx06k_a6122_zb_TY2V01","*='Specifieke informatie C'!$L$54","","C612.2 Kosten add-ons IC naar instelling- Zelfstandige behandelcentra- geaccepteerd","zvsx06k","a6122","zb","TY2V01"]
[null,null,null,null,"zvsx06k_c6122_ov_TY0V01","*='Specifieke informatie C'!$H$55","","C612.2 Kosten add-ons IC naar instelling- Overige zorgaanbieders- incl balans","zvsx06k","c6122","ov","TY0V01"]
[null,null,null,null,"zvsx06k_a6122_ov_TY0V01","*='Specifieke informatie C'!$I$55","","C612.2 Kosten add-ons IC naar instelling- Overige zorgaanbieders- geaccepteerd","zvsx06k","a6122","ov","TY0V01"]
[null,null,null,null,"zvsx06k_c6122_ov_TY1V01","*='Specifieke informatie C'!$J$55","","C612.2 Kosten add-ons IC naar instelling- Overige zorgaanbieders- incl balans","zvsx06k","c6122","ov","TY1V01"]
[null,null,null,null,"zvsx06k_a6122_ov_TY1V01","*='Specifieke informatie C'!$K$55","","C612.2 Kosten add-ons IC naar instelling- Overige zorgaanbieders- geaccepteerd","zvsx06k","a6122","ov","TY1V01"]
[null,null,null,null,"zvsx06k_a6122_ov_TY2V01","*='Specifieke informatie C'!$L$55","","C612.2 Kosten add-ons IC naar instelling- Overige zorgaanbieders- geaccepteerd","zvsx06k","a6122","ov","TY2V01"]
[null,null,null,null,"zvsx06k_c6131_az_TY0V01","*='Specifieke informatie C'!$H$64","","C613.1 Integrale kosten DBC-zorgproducten gereguleerde segment- Academische ziekenhuizen- incl balans","zvsx06k","c6131","az","TY0V01"]
[null,null,null,null,"zvsx06k_a6131_az_TY0V01","*='Specifieke informatie C'!$I$64","","C613.1 Integrale kosten DBC-zorgproducten gereguleerde segment- Academische ziekenhuizen- geaccepteerd","zvsx06k","a6131","az","TY0V01"]
[null,null,null,null,"zvsx06k_c6131_az_TY1V01","*='Specifieke informatie C'!$J$64","","C613.1 Integrale kosten DBC-zorgproducten gereguleerde segment- Academische ziekenhuizen- incl balans","zvsx06k","c6131","az","TY1V01"]
[null,null,null,null,"zvsx06k_a6131_az_TY1V01","*='Specifieke informatie C'!$K$64","","C613.1 Integrale kosten DBC-zorgproducten gereguleerde segment- Academische ziekenhuizen- geaccepteerd","zvsx06k","a6131","az","TY1V01"]
[null,null,null,null,"zvsx06k_a6131_az_TY2V01","*='Specifieke informatie C'!$L$64","","C613.1 Integrale kosten DBC-zorgproducten gereguleerde segment- Academische ziekenhuizen- geaccepteerd","zvsx06k","a6131","az","TY2V01"]
[null,null,null,null,"zvsx06k_c6131_sz_TY0V01","*='Specifieke informatie C'!$H$65","","C613.1 Integrale kosten DBC-zorgproducten gereguleerde segment- Algemene ziekenhuizen- incl balans","zvsx06k","c6131","sz","TY0V01"]
[null,null,null,null,"zvsx06k_a6131_sz_TY0V01","*='Specifieke informatie C'!$I$65","","C613.1 Integrale kosten DBC-zorgproducten gereguleerde segment- Algemene ziekenhuizen- geaccepteerd","zvsx06k","a6131","sz","TY0V01"]
[null,null,null,null,"zvsx06k_c6131_sz_TY1V01","*='Specifieke informatie C'!$J$65","","C613.1 Integrale kosten DBC-zorgproducten gereguleerde segment- Algemene ziekenhuizen- incl balans","zvsx06k","c6131","sz","TY1V01"]
[null,null,null,null,"zvsx06k_a6131_sz_TY1V01","*='Specifieke informatie C'!$K$65","","C613.1 Integrale kosten DBC-zorgproducten gereguleerde segment- Algemene ziekenhuizen- geaccepteerd","zvsx06k","a6131","sz","TY1V01"]
[null,null,null,null,"zvsx06k_a6131_sz_TY2V01","*='Specifieke informatie C'!$L$65","","C613.1 Integrale kosten DBC-zorgproducten gereguleerde segment- Algemene ziekenhuizen- geaccepteerd","zvsx06k","a6131","sz","TY2V01"]
[null,null,null,null,"zvsx06k_c6131_zb_TY0V01","*='Specifieke informatie C'!$H$66","","C613.1 Integrale kosten DBC-zorgproducten gereguleerde segment- Zelfstandige behandelcentra- incl balans","zvsx06k","c6131","zb","TY0V01"]
[null,null,null,null,"zvsx06k_a6131_zb_TY0V01","*='Specifieke informatie C'!$I$66","","C613.1 Integrale kosten DBC-zorgproducten gereguleerde segment- Zelfstandige behandelcentra- geaccepteerd","zvsx06k","a6131","zb","TY0V01"]
[null,null,null,null,"zvsx06k_c6131_zb_TY1V01","*='Specifieke informatie C'!$J$66","","C613.1 Integrale kosten DBC-zorgproducten gereguleerde segment- Zelfstandige behandelcentra- incl balans","zvsx06k","c6131","zb","TY1V01"]
[null,null,null,null,"zvsx06k_a6131_zb_TY1V01","*='Specifieke informatie C'!$K$66","","C613.1 Integrale kosten DBC-zorgproducten gereguleerde segment- Zelfstandige behandelcentra- geaccepteerd","zvsx06k","a6131","zb","TY1V01"]
[null,null,null,null,"zvsx06k_a6131_zb_TY2V01","*='Specifieke informatie C'!$L$66","","C613.1 Integrale kosten DBC-zorgproducten gereguleerde segment- Zelfstandige behandelcentra- geaccepteerd","zvsx06k","a6131","zb","TY2V01"]
[null,null,null,null,"zvsx06k_c6131_ov_TY0V01","*='Specifieke informatie C'!$H$67","","C613.1 Integrale kosten DBC-zorgproducten gereguleerde segment- Overige zorgaanbieders- incl balans","zvsx06k","c6131","ov","TY0V01"]
[null,null,null,null,"zvsx06k_a6131_ov_TY0V01","*='Specifieke informatie C'!$I$67","","C613.1 Integrale kosten DBC-zorgproducten gereguleerde segment- Overige zorgaanbieders- geaccepteerd","zvsx06k","a6131","ov","TY0V01"]
[null,null,null,null,"zvsx06k_c6131_ov_TY1V01","*='Specifieke informatie C'!$J$67","","C613.1 Integrale kosten DBC-zorgproducten gereguleerde segment- Overige zorgaanbieders- incl balans","zvsx06k","c6131","ov","TY1V01"]
[null,null,null,null,"zvsx06k_a6131_ov_TY1V01","*='Specifieke informatie C'!$K$67","","C613.1 Integrale kosten DBC-zorgproducten gereguleerde segment- Overige zorgaanbieders- geaccepteerd","zvsx06k","a6131","ov","TY1V01"]
[null,null,null,null,"zvsx06k_a6131_ov_TY2V01","*='Specifieke informatie C'!$L$67","","C613.1 Integrale kosten DBC-zorgproducten gereguleerde segment- Overige zorgaanbieders- geaccepteerd","zvsx06k","a6131","ov","TY2V01"]
[null,null,null,null,"zvsx06k_c6151_az_TY0V01","*='Specifieke informatie C'!$H$74","","C615.1 Integrale kosten DBC-zorgproduct vrije segment- Academische ziekenhuizen- incl balans","zvsx06k","c6151","az","TY0V01"]
[null,null,null,null,"zvsx06k_a6151_az_TY0V01","*='Specifieke informatie C'!$I$74","","C615.1 Integrale kosten DBC-zorgproduct vrije segment- Academische ziekenhuizen- geaccepteerd","zvsx06k","a6151","az","TY0V01"]
[null,null,null,null,"zvsx06k_c6151_az_TY1V01","*='Specifieke informatie C'!$J$74","","C615.1 Integrale kosten DBC-zorgproduct vrije segment- Academische ziekenhuizen- incl balans","zvsx06k","c6151","az","TY1V01"]
[null,null,null,null,"zvsx06k_a6151_az_TY1V01","*='Specifieke informatie C'!$K$74","","C615.1 Integrale kosten DBC-zorgproduct vrije segment- Academische ziekenhuizen- geaccepteerd","zvsx06k","a6151","az","TY1V01"]
[null,null,null,null,"zvsx06k_a6151_az_TY2V01","*='Specifieke informatie C'!$L$74","","C615.1 Integrale kosten DBC-zorgproduct vrije segment- Academische ziekenhuizen- geaccepteerd","zvsx06k","a6151","az","TY2V01"]
[null,null,null,null,"zvsx06k_c6151_sz_TY0V01","*='Specifieke informatie C'!$H$75","","C615.1 Integrale kosten DBC-zorgproduct vrije segment- Algemene ziekenhuizen- incl balans","zvsx06k","c6151","sz","TY0V01"]
[null,null,null,null,"zvsx06k_a6151_sz_TY0V01","*='Specifieke informatie C'!$I$75","","C615.1 Integrale kosten DBC-zorgproduct vrije segment- Algemene ziekenhuizen- geaccepteerd","zvsx06k","a6151","sz","TY0V01"]
[null,null,null,null,"zvsx06k_c6151_sz_TY1V01","*='Specifieke informatie C'!$J$75","","C615.1 Integrale kosten DBC-zorgproduct vrije segment- Algemene ziekenhuizen- incl balans","zvsx06k","c6151","sz","TY1V01"]
[null,null,null,null,"zvsx06k_a6151_sz_TY1V01","*='Specifieke informatie C'!$K$75","","C615.1 Integrale kosten DBC-zorgproduct vrije segment- Algemene ziekenhuizen- geaccepteerd","zvsx06k","a6151","sz","TY1V01"]
[null,null,null,null,"zvsx06k_a6151_sz_TY2V01","*='Specifieke informatie C'!$L$75","","C615.1 Integrale kosten DBC-zorgproduct vrije segment- Algemene ziekenhuizen- geaccepteerd","zvsx06k","a6151","sz","TY2V01"]
[null,null,null,null,"zvsx06k_c6151_zb_TY0V01","*='Specifieke informatie C'!$H$76","","C615.1 Integrale kosten DBC-zorgproduct vrije segment- Zelfstandige behandelcentra- incl balans","zvsx06k","c6151","zb","TY0V01"]
[null,null,null,null,"zvsx06k_a6151_zb_TY0V01","*='Specifieke informatie C'!$I$76","","C615.1 Integrale kosten DBC-zorgproduct vrije segment- Zelfstandige behandelcentra- geaccepteerd","zvsx06k","a6151","zb","TY0V01"]
[null,null,null,null,"zvsx06k_c6151_zb_TY1V01","*='Specifieke informatie C'!$J$76","","C615.1 Integrale kosten DBC-zorgproduct vrije segment- Zelfstandige behandelcentra- incl balans","zvsx06k","c6151","zb","TY1V01"]
[null,null,null,null,"zvsx06k_a6151_zb_TY1V01","*='Specifieke informatie C'!$K$76","","C615.1 Integrale kosten DBC-zorgproduct vrije segment- Zelfstandige behandelcentra- geaccepteerd","zvsx06k","a6151","zb","TY1V01"]
[null,null,null,null,"zvsx06k_a6151_zb_TY2V01","*='Specifieke informatie C'!$L$76","","C615.1 Integrale kosten DBC-zorgproduct vrije segment- Zelfstandige behandelcentra- geaccepteerd","zvsx06k","a6151","zb","TY2V01"]
[null,null,null,null,"zvsx06k_c6151_ov_TY0V01","*='Specifieke informatie C'!$H$77","","C615.1 Integrale kosten DBC-zorgproduct vrije segment- Overige zorgaanbieders- incl balans","zvsx06k","c6151","ov","TY0V01"]
[null,null,null,null,"zvsx06k_a6151_ov_TY0V01","*='Specifieke informatie C'!$I$77","","C615.1 Integrale kosten DBC-zorgproduct vrije segment- Overige zorgaanbieders- geaccepteerd","zvsx06k","a6151","ov","TY0V01"]
[null,null,null,null,"zvsx06k_c6151_ov_TY1V01","*='Specifieke informatie C'!$J$77","","C615.1 Integrale kosten DBC-zorgproduct vrije segment- Overige zorgaanbieders- incl balans","zvsx06k","c6151","ov","TY1V01"]
[null,null,null,null,"zvsx06k_a6151_ov_TY1V01","*='Specifieke informatie C'!$K$77","","C615.1 Integrale kosten DBC-zorgproduct vrije segment- Overige zorgaanbieders- geaccepteerd","zvsx06k","a6151","ov","TY1V01"]
[null,null,null,null,"zvsx06k_a6151_ov_TY2V01","*='Specifieke informatie C'!$L$77","","C615.1 Integrale kosten DBC-zorgproduct vrije segment- Overige zorgaanbieders- geaccepteerd","zvsx06k","a6151","ov","TY2V01"]
[null,null,null,null,"zvsx13k_a701_g21_TY0V01","*='Specifieke informatie C'!$K$96","","C701 Overige geneeskundige zorg- Kort- geaccepteerd","zvsx13k","a701","g21","TY0V01"]
[null,null,null,null,"zvsx13k_a701_g21_TY1V01","*='Specifieke informatie C'!$L$96","","C701 Overige geneeskundige zorg- Kort- geaccepteerd","zvsx13k","a701","g21","TY1V01"]
[null,null,null,null,"zvsx13k_a701_g23_TY0V01","*='Specifieke informatie C'!$K$97","","C701 Overige geneeskundige zorg- Orthoptie- geaccepteerd","zvsx13k","a701","g23","TY0V01"]
[null,null,null,null,"zvsx13k_a701_g23_TY1V01","*='Specifieke informatie C'!$L$97","","C701 Overige geneeskundige zorg- Orthoptie- geaccepteerd","zvsx13k","a701","g23","TY1V01"]
[null,null,null,null,"zvsx13k_a701_g24_TY0V01","*='Specifieke informatie C'!$K$98","","C701 Overige geneeskundige zorg- Optometrie- geaccepteerd","zvsx13k","a701","g24","TY0V01"]
[null,null,null,null,"zvsx13k_a701_g24_TY1V01","*='Specifieke informatie C'!$L$98","","C701 Overige geneeskundige zorg- Optometrie- geaccepteerd","zvsx13k","a701","g24","TY1V01"]
[null,null,null,null,"zvsx13k_a701_g25_TY0V01","*='Specifieke informatie C'!$K$99","","C701 Overige geneeskundige zorg- voetzorg bij Diabetes Mellitus type 2- geaccepteerd","zvsx13k","a701","g25","TY0V01"]
[null,null,null,null,"zvsx13k_a701_g25_TY1V01","*='Specifieke informatie C'!$L$99","","C701 Overige geneeskundige zorg- voetzorg bij Diabetes Mellitus type 2- geaccepteerd","zvsx13k","a701","g25","TY1V01"]
[null,null,null,null,"zvsx13k_a701_g26_TY0V01","*='Specifieke informatie C'!$K$100","","C701 Overige geneeskundige zorg- Koemelkallergietest (niet horend bij Multidisciplinaire Zorg)- geaccepteerd","zvsx13k","a701","g26","TY0V01"]
[null,null,null,null,"zvsx13k_a701_g26_TY1V01","*='Specifieke informatie C'!$L$100","","C701 Overige geneeskundige zorg- Koemelkallergietest (niet horend bij Multidisciplinaire Zorg)- geaccepteerd","zvsx13k","a701","g26","TY1V01"]
[null,null,null,null,"zvsx13k_a701_g27_TY0V01","*='Specifieke informatie C'!$K$101","","C701 Overige geneeskundige zorg- Regiefunctie complexe wondzorg- geaccepteerd","zvsx13k","a701","g27","TY0V01"]
[null,null,null,null,"zvsx13k_a701_g27_TY1V01","*='Specifieke informatie C'!$L$101","","C701 Overige geneeskundige zorg- Regiefunctie complexe wondzorg- geaccepteerd","zvsx13k","a701","g27","TY1V01"]
[null,null,null,null,"zvsx13k_a701_g28_TY0V01","*='Specifieke informatie C'!$K$102","","C701 Overige geneeskundige zorg- ADZ-Parkinsonzorg- geaccepteerd","zvsx13k","a701","g28","TY0V01"]
[null,null,null,null,"zvsx13k_a701_g28_TY1V01","*='Specifieke informatie C'!$L$102","","C701 Overige geneeskundige zorg- ADZ-Parkinsonzorg- geaccepteerd","zvsx13k","a701","g28","TY1V01"]
[null,null,null,null,"zvsx13k_a701_g30_TY0V01","*='Specifieke informatie C'!$K$103","","C701 Overige geneeskundige zorg- Overig- geaccepteerd","zvsx13k","a701","g30","TY0V01"]
[null,null,null,null,"zvsx13k_a701_g30_TY1V01","*='Specifieke informatie C'!$L$103","","C701 Overige geneeskundige zorg- Overig- geaccepteerd","zvsx13k","a701","g30","TY1V01"]
[null,null,null,null,"zvsx13k_a702_g01_TY0V01","*='Specifieke informatie C'!$K$108","","C702 Zintuiglijk gehandicapten- visuele beperking- geaccepteerd","zvsx13k","a702","g01","TY0V01"]
[null,null,null,null,"zvsx13k_a702_g01_TY1V01","*='Specifieke informatie C'!$L$108","","C702 Zintuiglijk gehandicapten- visuele beperking- geaccepteerd","zvsx13k","a702","g01","TY1V01"]
[null,null,null,null,"zvsx13k_a702_g02_TY0V01","*='Specifieke informatie C'!$K$109","","C702 Zintuiglijk gehandicapten- auditieve  en communicatieve beperking- geaccepteerd","zvsx13k","a702","g02","TY0V01"]
[null,null,null,null,"zvsx13k_a702_g02_TY1V01","*='Specifieke informatie C'!$L$109","","C702 Zintuiglijk gehandicapten- auditieve  en communicatieve beperking- geaccepteerd","zvsx13k","a702","g02","TY1V01"]
[null,null,null,null,"zvsx15i_a720g_u12_TY0V01","*='Specifieke informatie C'!$K$115","","C720 Grensoverschrijdende zorg- wonen in Nederland (op basis van contract- geaccepteerd","zvsx15i","a720g","u12","TY0V01"]
[null,null,null,null,"zvsx15i_a720g_u12_TY1V01","*='Specifieke informatie C'!$L$115","","C720 Grensoverschrijdende zorg- wonen in Nederland (op basis van contract- geaccepteerd","zvsx15i","a720g","u12","TY1V01"]
[null,null,null,null,"zvsx15i_a720g_u13_TY0V01","*='Specifieke informatie C'!$K$116","","C720 Grensoverschrijdende zorg- wonen in Nederland (niet op basis van contract)- geaccepteerd","zvsx15i","a720g","u13","TY0V01"]
[null,null,null,null,"zvsx15i_a720g_u13_TY1V01","*='Specifieke informatie C'!$L$116","","C720 Grensoverschrijdende zorg- wonen in Nederland (niet op basis van contract)- geaccepteerd","zvsx15i","a720g","u13","TY1V01"]
[null,null,null,null,"zvsx15i_a720g_u02_TY0V01","*='Specifieke informatie C'!$K$117","","C720 Grensoverschrijdende zorg- Zvw verzekerden die wonen in het buitenland- geaccepteerd","zvsx15i","a720g","u02","TY0V01"]
[null,null,null,null,"zvsx15i_a720g_u02_TY1V01","*='Specifieke informatie C'!$L$117","","C720 Grensoverschrijdende zorg- Zvw verzekerden die wonen in het buitenland- geaccepteerd","zvsx15i","a720g","u02","TY1V01"]
[null,null,null,null,"zvsx15i_n720g_u12_TY0V01","*='Specifieke informatie C'!$K$122",null,"C720 Grensoverschrijdende zorg- wonen in Nederland (op basis van contract)- geaccepteerd","zvsx15i","a720g","u12","TY0V01"]
[null,null,null,null,"zvsx15i_n720g_u12_TY1V01","*='Specifieke informatie C'!$L$122",null,"C720 Grensoverschrijdende zorg- wonen in Nederland (op basis van contract)- geaccepteerd","zvsx15i","a720g","u12","TY1V01"]
[null,null,null,null,"zvsx15i_n720g_u13_TY0V01","*='Specifieke informatie C'!$K$123",null,"C720 Grensoverschrijdende zorg- wonen in Nederland (niet op basis van contract)- geaccepteerd","zvsx15i","a720g","u13","TY0V01"]
[null,null,null,null,"zvsx15i_n720g_u13_TY1V01","*='Specifieke informatie C'!$L$123",null,"C720 Grensoverschrijdende zorg- wonen in Nederland (niet op basis van contract)- geaccepteerd","zvsx15i","a720g","u13","TY1V01"]
[null,null,null,null,"zvsx15i_n720g_u02_TY0V01","*='Specifieke informatie C'!$K$124",null,"C720 Grensoverschrijdende zorg- Zvw verzekerden die wonen in het buitenland- geaccepteerd","zvsx15i","a720g","u02","TY0V01"]
[null,null,null,null,"zvsx15i_n720g_u02_TY1V01","*='Specifieke informatie C'!$L$124",null,"C720 Grensoverschrijdende zorg- Zvw verzekerden die wonen in het buitenland- geaccepteerd","zvsx15i","a720g","u02","TY1V01"]

{"sheet":"Parameters","index":10,"n_rows":62,"n_cols":12,"rows_kept":62,"cut":false,"hidden":true,"merged":[[0,10,0,11]]}
[null,null,null,null,"Alle mogelijke modelovereenkomsten 2023 waaruit gekozen kan worden",null,null,null,null,null,"Weergave van de gekozen modelovereenkomsten (voor het doorsluizen naar Blad1)"]
["Kwartaal:",null,null,null,"nummer DWH","Naam modelovereenkomst","verzekeraar","Combi","nummer DWH",null,"Overeenkomst","Keuze"]
["Jaar:",2024,null,null,80,"De Friesland Alles Verzorgd Polis","De Friesland Zorgverzekeraar N.V.",{"$f":"E3&\"  \"&F3","v":"80  De Friesland Alles Verzorgd Polis"},80,null,1,{"$f":"IFERROR(VLOOKUP('Specifieke informatie A'!#REF!,Parameters!$H$2:$I$68,2,FALSE),\"\")","v":""}]
["Wet:","ZVW",null,null,109,"De Friesland Zelf Bewust Polis","De Friesland Zorgverzekeraar N.V.","109  De Friesland Zelf Bewust Polis",109,null,2,{"$f":"IFERROR(VLOOKUP('Specifieke informatie A'!#REF!,Parameters!$H$2:$I$68,2,FALSE),\"\")","v":""}]
["Document:",{"$f":"CONCATENATE(\"JS\",jaar_id,wet_id,\".\",kwartaal_id,revisie_id)","v":"JS2024ZVW.C"},null,null,104,"FBTO Zorgverzekering Basis Plus","FBTO Zorgverzekeringen N.V.","104  FBTO Zorgverzekering Basis Plus",104,null,3,{"$f":"IFERROR(VLOOKUP('Specifieke informatie A'!#REF!,Parameters!$H$2:$I$68,2,FALSE),\"\")","v":""}]
["Revisie:","C",null,null,105,"FBTO Zorgverzekering Basis Vrij","FBTO Zorgverzekeringen N.V.","105  FBTO Zorgverzekering Basis Vrij",105,null,4,{"$f":"IFERROR(VLOOKUP('Specifieke informatie A'!#REF!,Parameters!$H$2:$I$68,2,FALSE),\"\")","v":""}]
["Revisiedatum:","2024-11-01",null,null,130,"FBTO Zorgverzekering Basis","FBTO Zorgverzekeringen N.V.","130  FBTO Zorgverzekering Basis",130,null,5,{"$f":"IFERROR(VLOOKUP('Specifieke informatie A'!#REF!,Parameters!$H$2:$I$68,2,FALSE),\"\")","v":""}]
["Versie:",{"$f":"CONCATENATE(document_id,)","v":"JS2024ZVW.C"},null,null,27,"Interpolis ZorgActief ","Interpolis Zorgverzekeringen N.V.","27  Interpolis ZorgActief ",27,null,6,{"$f":"IFERROR(VLOOKUP('Specifieke informatie A'!#REF!,Parameters!$H$2:$I$68,2,FALSE),\"\")","v":""}]
[null,null,null,null,113,"Interpolis ZorgCompact","Interpolis Zorgverzekeringen N.V.","113  Interpolis ZorgCompact",113]
[null,null,null,null,55,"Zilveren Kruis Basis Zeker","Zilveren Kruis Zorgverzekeringen N.V.","55  Zilveren Kruis Basis Zeker",55]
[null,null,null,null,66,"Zilveren Kruis Basis Exclusief","Zilveren Kruis Zorgverzekeringen N.V.","66  Zilveren Kruis Basis Exclusief",66]
["NUMMER_UO","NAAM_UO","FORMAT_UO1",null,85,"Zilveren Kruis Basis Budget","Zilveren Kruis Zorgverzekeringen N.V.","85  Zilveren Kruis Basis Budget",85]
["0000","KIES UW UZOVI-NUMMER",{"$f":"CONCATENATE(A13,\" \",B13)","v":"0000 KIES UW UZOVI-NUMMER"},null,91,"Pro Life Principe Polis (natura)","Zilveren Kruis Zorgverzekeringen N.V.","91  Pro Life Principe Polis (natura)",91]
["0101","UNIVÉ ZORG",{"$f":"CONCATENATE(A14,\" \",B14)","v":"0101 UNIVÉ ZORG"},null,114,"Pro Life Principe Polis Budget","Zilveren Kruis Zorgverzekeringen N.V.","114  Pro Life Principe Polis Budget",114]
["0104","CENTRALE ZORGVERZEKERINGEN NZV N.V.","0104 CENTRALE ZORGVERZEKERINGEN NZV N.V.",null,108,"ZieZo Basis","Zilveren Kruis Zorgverzekeringen N.V.","108  ZieZo Basis",108]
["0201","OHRA ZORGVERZEKERINGEN N.V.","0201 OHRA ZORGVERZEKERINGEN N.V.",null,83,"ik kies zelf van A.S.R. Vrije Keuze combinatie","ASR Basis Ziektekostenverzekeringen N.V.","83  ik kies zelf van A.S.R. Vrije Keuze combinatie",83]
["0403","ASR ","0403 ASR ",null,122,"ik kies zelf van A.S.R. Goede Keuze natura","ASR Basis Ziektekostenverzekeringen N.V.","122  ik kies zelf van A.S.R. Goede Keuze natura",122]
["0699","IZA","0699 IZA",null,96,"a.s.r. Eigen Keuze","ASR Basis Ziektekostenverzekeringen N.V.","96  a.s.r. Eigen Keuze",96]
["0736","UMC","0736 UMC",null,121,"a.s.r. Ruime Keuze","ASR Basis Ziektekostenverzekeringen N.V.","121  a.s.r. Ruime Keuze",121]
["3311","ZILVEREN KRUIS","3311 ZILVEREN KRUIS",null,19,"NN Zorgverzekering Combinatie","Centrale Ziektekostenverzekering NZV NV","19  NN Zorgverzekering Combinatie",19]
["3313","INTERPOLIS","3313 INTERPOLIS",null,133,"NN Zorgverzekering Natura (Zorg Voordelig) ","Centrale Ziektekostenverzekering NZV NV","133  NN Zorgverzekering Natura (Zorg Voordelig) ",133]
["3332","MENZIS","3332 MENZIS",null,33,"OHRA Zorgverzekering Combinatie","OHRA Zorgverzekeringen N.V.","33  OHRA Zorgverzekering Combinatie",33]
["3333","ANDERZORG","3333 ANDERZORG",null,14,"CZ Zorg op maatpolis (Natura)","CZ Zorgverzekeringen N.V.","14  CZ Zorg op maatpolis (Natura)",14]
["3343","ONVZ",{"$f":"CONCATENATE(A24,\" \",B24)","v":"3343 ONVZ"},null,15,"CZ Zorgkeuzepolis (Restitutie)","CZ Zorgverzekeringen N.V.","15  CZ Zorgkeuzepolis (Restitutie)",15]
["3347","SALLAND ZORGVERZEKERAAR",{"$f":"CONCATENATE(A25,\" \",B25)","v":"3347 SALLAND ZORGVERZEKERAAR"},null,73,"CZdirect (Natura)","CZ Zorgverzekeringen N.V.","73  CZdirect (Natura)",73]
["3351","FBTO",{"$f":"CONCATENATE(A26,\" \",B26)","v":"3351 FBTO"},null,97,"CZ Zorgbewustpolis (Natura)","CZ Zorgverzekeringen N.V.","97  CZ Zorgbewustpolis (Natura)",97]
["3358","DE FRIESLAND",{"$f":"CONCATENATE(A27,\" \",B27)","v":"3358 DE FRIESLAND"},null,123,"CZ Just Basic (Natura Just)","CZ Zorgverzekeringen N.V.","123  CZ Just Basic (Natura Just)",123]
["3359","EUCARE INSURANCE PCC LTD","3359 EUCARE INSURANCE PCC LTD",null,20,"DSW polisvoorwaarden","OWM DSW Zorgverzekeraar U.A.","20  DSW polisvoorwaarden",20]
["7029","DSW","7029 DSW",null,44,"Stad Holland polisvoorwaarden","OWM Stad Holland Zorgverzekeraar U.A.","44  Stad Holland polisvoorwaarden",44]
["7037","STAD HOLLAND","7037 STAD HOLLAND",null,42,"Salland Basisverzekering","Eno Zorgverzekeraar N.V.","42  Salland Basisverzekering",42]
["7085","ZORG EN ZEKERHEID","7085 ZORG EN ZEKERHEID",null,110,"HollandZorg Basisverzekering","Eno Zorgverzekeraar N.V.","110  HollandZorg Basisverzekering",110]
["7095","VGZ ZORGVERZEKERAAR","7095 VGZ ZORGVERZEKERAAR",null,115,"Basisverzekering Natura","EUCARE Insurance PCC Limited","115  Basisverzekering Natura",115]
["7119","CZ ZORGVERZEKERINGEN N.V.","7119 CZ ZORGVERZEKERINGEN N.V.",null,116,"Basisverzekering Restitutie","EUCARE Insurance PCC Limited","116  Basisverzekering Restitutie",116]
[null,null,null,null,118,"Basisverzekering Bewust Verzekerd","EUCARE Insurance PCC Limited","118  Basisverzekering Bewust Verzekerd",118]
[null,null,null,null,126,"Basisverzekering Natura Select","EUCARE Insurance PCC Limited","126  Basisverzekering Natura Select",126]
[null,null,null,null,134,"Basisverzekering Bewust Verzekerd Restitutie ","EUCARE Insurance PCC Limited","134  Basisverzekering Bewust Verzekerd Restitutie ",134]
[null,null,null,null,5,"Anderzorg Basis","AnderZorg N.V.","5  Anderzorg Basis",5]
[null,null,null,null,31,"Menzis Basis","Menzis Zorgverzekeraar N.V.","31  Menzis Basis",31]
[null,null,null,null,32,"Menzis Basis Vrij","Menzis Zorgverzekeraar N.V.","32  Menzis Basis Vrij",32]
[null,null,null,null,102,"Hema Basisverzekering","Menzis Zorgverzekeraar N.V.","102  Hema Basisverzekering",102]
[null,null,null,null,103,"Menzis Basis Voordelig","Menzis Zorgverzekeraar N.V.","103  Menzis Basis Voordelig",103]
[null,null,null,null,132,"VinkVink Basisverzekering","Menzis Zorgverzekeraar N.V.","132  VinkVink Basisverzekering",132]
[null,null,null,null,39,"ONVZ Vrije Keuze Basisverzekering","ONVZ Ziektekostenverzekeraar N.V.","39  ONVZ Vrije Keuze Basisverzekering",39]
[null,null,null,null,127,"Jaaah basis","ONVZ Ziektekostenverzekeraar N.V.","127  Jaaah basis",127]
[null,null,null,null,74,"IZA Eigen Keuze","IZA Zorgverzekeraar N.V.","74  IZA Eigen Keuze",74]
[null,null,null,null,98,"IZA Ruime Keuze","IZA Zorgverzekeraar N.V.","98  IZA Ruime Keuze",98]
[null,null,null,null,128,"IZA Basis Keuze","IZA Zorgverzekeraar N.V.","128  IZA Basis Keuze",128]
[null,null,null,null,50,"Univé Zorg Geregeld polis ","N.V. Univé Zorg","50  Univé Zorg Geregeld polis ",50]
[null,null,null,null,51,"Univé Zorg Vrij polis ","N.V. Univé Zorg","51  Univé Zorg Vrij polis ",51]
[null,null,null,null,65,"Univé Gewoon ZEKUR Zorg","N.V. Univé Zorg","65  Univé Gewoon ZEKUR Zorg",65]
[null,null,null,null,107,"Univé Zorg Select Polis","N.V. Univé Zorg","107  Univé Zorg Select Polis",107]
[null,null,null,null,136,"Univé Zorg Basis Natura ","N.V. Univé Zorg","136  Univé Zorg Basis Natura ",136]
[null,null,null,null,47,"UMC Eigen Keuze","N.V. Zorgverzekeraar UMC","47  UMC Eigen Keuze",47]
[null,null,null,null,125,"UMC Ruime Keuze","N.V. Zorgverzekeraar UMC","125  UMC Ruime Keuze",125]
[null,null,null,null,53,"VGZ Ruime Keuze","VGZ Zorgverzekeraar N.V.","53  VGZ Ruime Keuze",53]
[null,null,null,null,54,"VGZ Eigen Keuze","VGZ Zorgverzekeraar N.V.","54  VGZ Eigen Keuze",54]
[null,null,null,null,82,"VGZ Bewuzt Basis","VGZ Zorgverzekeraar N.V.","82  VGZ Bewuzt Basis",82]
[null,null,null,null,124,"VGZ Basis Keuze","VGZ Zorgverzekeraar N.V.","124  VGZ Basis Keuze",124]
[null,null,null,null,57,"Zorg en Zekerheid Zorg Vrij Polis","OWM Zorgverzekeraar Zorg en Zekerheid U.A.","57  Zorg en Zekerheid Zorg Vrij Polis",57]
[null,null,null,null,58,"Zorg en Zekerheid Zorg Zeker Polis","OWM Zorgverzekeraar Zorg en Zekerheid U.A.","58  Zorg en Zekerheid Zorg Zeker Polis",58]
[null,null,null,null,84,"Zorg en Zekerheid Zorg Gemak Polis","OWM Zorgverzekeraar Zorg en Zekerheid U.A.","84  Zorg en Zekerheid Zorg Gemak Polis",84]
[null,null,null,null,131,"ZEM Polis","OWM Zorgverzekeraar Zorg en Zekerheid U.A.","131  ZEM Polis",131]